{"text_format":"1","workbook":"xlsx","n_sheets":8,"sheets":["fx","fx+","bnch","(2402 dynChart","2312 cosmetic","2309 autoConv","1903 pict2data","abouts"],"not_rendered":{"charts":1,"images":15,"macros":1,"external_links":0,"defined_names":183,"comments":2,"pivot_tables":0},"unopened":[],"bounds":{"document_bytes":16777216,"sheet_cells":100000,"rows_first":2000,"rows_last":500,"rows_between":2000,"halvings":0,"cell_chars":16384,"cell_head_chars":4096},"cells_cut":0,"cells_raw":0,"read":"whole","date_system":"1900"}

{"sheet":"fx","index":0,"n_rows":85,"n_cols":39,"rows_kept":85,"cut":false,"hidden":false,"merged":[[44,4,44,8],[51,4,51,8]]}
["Country","Amount",null,"Country","Amount",null,"Delta",{"$f":"SUM(_xlfn.ANCHORARRAY(H2))","v":6799932},null,"Updated",null,null,null,null,null,null,null,"365 v2501",null,"365 v2409, v2411",null,"365 v2402",null,"2021 Pro+ v2108",null,"2019 Pro+ v1808"]
["Portugal",400000,null,"Bulgaria",5120,null,{"$f":"_xlfn.UNIQUE(_xlfn.FILTERXML(\"<TR><TD>\"&_xlfn.TEXTJOIN(\"</TD><TD>\",1,A:A,D:D)&\"</TD></TR>\",\"//TD\"))","v":"Country"},{"$f":"SUMIFS(E:E,D:D,_xlfn.ANCHORARRAY(G2))-SUMIFS(B:B,A:A,_xlfn.ANCHORARRAY(G2))","v":0},null,null,{"$f":"_xlfn._xlws.SORT(G2)","v":"Country"},null,{"$f":"_xlfn.FORMULATEXT(K2:K30)","v":"=SORT(G2)"},null,null,null,null,null,null,"=SORT(G2)",null,"=SORT(G2)",null,"=SORT(G2)",null,"{=_xlfn._xlws.SORT(G2)}"]
["Austria",300,null,"Norway",73600,null,"Portugal",-271500,null,null,{"$f":"_xlfn._xlws.FILTER(G2,1)","v":"Country"},null,"=FILTER(G2;1)",null,null,null,null,null,null,"=FILTER(G2;1)",null,"=FILTER(G2;1)",null,"=FILTER(G2;1)",null,"{=_xlfn._xlws.FILTER(G2;1)}"]
["Czech Republic",388,null,"Sweden",7000000,null,"Austria",-5100,null,null,{"$f":"_xlfn.TAKE(_xlfn.ANCHORARRAY(G2),-1)","v":"Sweden"},null,"=TAKE(G2#;-1)",null,null,null,null,null,null,"=TAKE(G2#;-1)",null,"=TAKE(G2#;-1)",null,"=_xlfn.TAKE(G2#;-1)",null,"{=_xlfn.TAKE(_xlfn.ANCHORARRAY(G2);-1)}"]
["Germany",20000,null,"Sweden",18700,null,"Czech Republic",-388,null,null,{"$f":"_xlfn.DROP(_xlfn.ANCHORARRAY(G2),-ROWS(_xlfn.ANCHORARRAY(G2))+1)","v":"Country"},null,"=DROP(G2#;-ROWS(G2#)+1)",null,null,null,null,null,null,"=DROP(G2#;-ROWS(G2#)+1)",null,"=DROP(G2#;-ROWS(G2#)+1)",null,"=_xlfn.DROP(G2#;-ROWS(G2#)+1)",null,"{=_xlfn.DROP(_xlfn.ANCHORARRAY(G2);-RADER(_xlfn.ANCHORARRAY(G2))+1)}"]
["Bulgaria",500,null,"Portugal",128500,null,"Germany",-20000,null,null,{"$f":"_xlfn.VSTACK(G2)","v":"Country"},null,"=VSTACK(G2)","k",null,null,null,null,null,"=VSTACK(G2)",null,"=VSTACK(G2)",null,"=_xlfn.VSTACK(G2)",null,"{=_xlfn.VSTACK(G2)}"]
["Austria",4800,null,null,null,null,"Bulgaria",4620,null,null,{"$f":"_xlfn.UNIQUE(G2)","v":"Country"},null,"=UNIQUE(G2)",null,null,null,null,null,null,"=UNIQUE(G2)",null,"=UNIQUE(G2)",null,"=UNIQUE(G2)",null,"{=_xlfn.UNIQUE(G2)}"]
[null,null,null,null,null,null,"Norway",73600,null,null,{"$f":"_xlfn.LAMBDA(_xlpm.x,_xlpm.x)(G2)","v":"Country"},null,"=LAMBDA(x;x)(G2)",null,null,null,null,null,null,"=LAMBDA(x;x)(G2)",null,"=LAMBDA(x;x)(G2)",null,"=_xlfn.LAMBDA(_xlpm.x;_xlpm.x)(G2)",null,"{=_xlfn.LAMBDA(_xlpm.x;_xlpm.x)(G2)}"]
[null,null,null,null,null,null,"Sweden",7018700,null,null,{"$f":"_xlfn.LET(_xlpm.x,G2,_xlpm.x)","v":"Country"},null,"=LET(x;G2;x)",null,null,null,null,null,null,"=LET(x;G2;x)",null,"=LET(x;G2;x)",null,"=LET(x;G2;x)",null,"=_xlfn.LET(_xlpm.x;G2;_xlpm.x)"]
[null,null,null,null,null,null,null,null,null,null,{"$f":"_xlfn.BYROW(G2,_xlfn.LAMBDA(_xlpm.x,_xlpm.x))","v":"Country"},null,"=BYROW(G2;LAMBDA(x;x))",null,null,null,null,null,null,"=BYROW(G2;LAMBDA(x;x))",null,"=BYROW(G2;LAMBDA(x;x))",null,"=_xlfn.BYROW(G2;_xlfn.LAMBDA(_xlpm.x;_xlpm.x))",null,"{=_xlfn.BYROW(G2;_xlfn.LAMBDA(_xlpm.x;_xlpm.x))}"]
[null,null,null,null,null,null,null,null,null,null,{"$f":"_xlfn.IFS(1,G2)","v":"Country"},null,"=IFS(1;G2)",null,null,null,null,null,null,"=IFS(1;G2)",null,"=IFS(1;G2)",null,"=IFS(1;G2)",null,"{=IFS(1;G2)}"]
[null,null,null,null,null,null,null,null,null,null,{"$f":"_xlfn.SWITCH(,,G2)","v":"Country"},null,"=SWITCH(;;G2)",null,null,null,null,null,null,"=SWITCH(;;G2)",null,"=SWITCH(;;G2)",null,"=SWITCH(;;G2)",null,"{=VÄXLA(;;G2)}"]
[null,null,null,null,null,null,null,null,null,null,{"$f":"CHOOSE(1,G2)","v":"Country"},null,"=CHOOSE(1;G2)",null,null,null,null,null,null,"=CHOOSE(1;G2)",null,"=CHOOSE(1;G2)",null,"=CHOOSE(1;G2)",null,"=VÄLJ(1;G2)"]
[null,null,null,null,null,null,null,null,null,null,{"$f":"_xlfn.CHOOSECOLS(G2,1)","v":"Country"},null,"=CHOOSECOLS(G2;1)",null,null,null,null,null,null,"=CHOOSECOLS(G2;1)",null,"=CHOOSECOLS(G2;1)",null,"=_xlfn.CHOOSECOLS(G2;1)",null,"{=_xlfn.CHOOSECOLS(G2;1)}"]
[null,null,null,null,null,null,null,null,null,null,{"$f":"_xlfn.TEXTJOIN(\"\",,G2)","v":"Country"},null,"=TEXTJOIN(\"\";;G2)",null,null,null,null,null,null,"=TEXTJOIN(\"\";;G2)",null,"=TEXTJOIN(\"\";;G2)",null,"=TEXTJOIN(\"\";;G2)",null,"=TEXTJOIN(\"\";;G2)"]
[null,null,null,null,null,null,null,null,null,null,{"$f":"_xlfn.TEXTSPLIT(G2,\"#\")","v":"Country"},null,"=TEXTSPLIT(G2;\"#\")",null,null,null,null,null,null,"=TEXTSPLIT(G2;\"#\")",null,"=TEXTSPLIT(G2;\"#\")",null,"=_xlfn.TEXTSPLIT(G2;\"#\")",null,"{=_xlfn.TEXTSPLIT(G2;\"#\")}"]
[null,null,null,null,null,null,null,null,null,null,{"$f":"_xlfn.SEQUENCE(,)","v":1},null,"=SEQUENCE(;)",null,null,null,null,null,null,"=SEQUENCE(;)",null,"=SEQUENCE(;)",null,"=SEQUENCE(;)",null,"{=_xlfn.SEQUENCE(;)}"]
[null,null,null,null,null,null,null,null,null,null,{"$f":"_xlfn.XLOOKUP(G2,G2,G2)","v":"Country"},null,"=XLOOKUP(G2;G2;G2)",null,null,null,null,null,null,"=XLOOKUP(G2;G2;G2)",null,"=XLOOKUP(G2;G2;G2)",null,"=XLOOKUP(G2;G2;G2)",null,"=_xlfn.XLOOKUP(G2;G2;G2)"]
[null,null,null,null,null,null,null,null,null,null,{"$f":"_xlfn.XMATCH(G2,G2)","v":1},null,"=XMATCH(G2;G2)",null,null,null,null,null,null,"=XMATCH(G2;G2)",null,"=XMATCH(G2;G2)",null,"=XMATCH(G2;G2)",null,"=_xlfn.XMATCH(G2;G2)"]
[null,null,null,null,null,null,null,null,null,null,{"$f":"_xlfn.SCAN(\"\",G2,_xlfn.LAMBDA(_xlpm.str,_xlpm.input,_xlpm.str&_xlpm.input))","v":"Country"},null,"=SCAN(\"\";G2;LAMBDA(str;input;str&input))",null,null,null,null,null,null,"=SCAN(\"\";G2;LAMBDA(str;input;str&input))",null,"=SCAN(\"\";G2;LAMBDA(str;input;str&input))",null,"=_xlfn.SCAN(\"\";G2;_xlfn.LAMBDA(_xlpm.str;_xlpm.input;_xlpm.str&_xlpm.input))",null,"{=_xlfn.SCAN(\"\";G2;_xlfn.LAMBDA(_xlpm.str;_xlpm.input;_xlpm.str&_xlpm.input))}"]
[null,null,null,null,null,null,null,null,null,null,{"$f":"_xlfn.MAKEARRAY(1,,_xlfn.LAMBDA(_xlpm.r,_xlpm.c,G2))","v":"Country"},null,"=MAKEARRAY(1;;LAMBDA(r;c;G2))",null,null,null,null,null,null,"=MAKEARRAY(1;;LAMBDA(r;c;G2))",null,"=MAKEARRAY(1;;LAMBDA(r;c;G2))",null,"=_xlfn.MAKEARRAY(1;;_xlfn.LAMBDA(_xlpm.r;_xlpm.c;G2))",null,"{=_xlfn.MAKEARRAY(1;;_xlfn.LAMBDA(_xlpm.r;_xlpm.c;G2))}"]
[null,null,null,null,null,null,null,null,null,null,{"$f":"_xlfn.MAP(G2,_xlfn.LAMBDA(_xlpm.a,_xlpm.a))","v":"Country"},null,"=MAP(G2;LAMBDA(a;a))",null,null,null,null,null,null,"=MAP(G2;LAMBDA(a;a))",null,"=MAP(G2;LAMBDA(a;a))",null,"=_xlfn.MAP(G2;_xlfn.LAMBDA(_xlpm.a;_xlpm.a))",null,"{=_xlfn.MAP(G2;_xlfn.LAMBDA(_xlpm.a;_xlpm.a))}"]
[null,null,null,null,null,null,null,null,null,null,{"$f":"_xlfn.FORMULATEXT(G2)","v":"=UNIQUE(FILTERXML(\"<TR><TD>\"&TEXTJOIN(\"</TD><TD>\";1;A:A;D:D)&\"</TD></TR>\";\"//TD\"))"},null,"=FORMULATEXT(G2)",null,null,null,null,null,null,"=FORMULATEXT(G2)",null,"=FORMULATEXT(G2)",null,"=FORMULATEXT(G2)",null,"=FORMELTEXT(G2)"]
[null,null,null,null,null,null,null,null,null,"2024-04-04",{"$f":"_xlfn.MAP(G2,_xlfn.LAMBDA(_xlpm.arr,T(_xlpm.arr)))","v":"Country"},null,"=MAP(G2;LAMBDA(arr;T(arr)))"]
[null,null,null,null,null,null,null,null,null,"2^8",{"$f":"Evaluateλ(J25)","v":256},null,"=Evaluateλ(J25)"]
[null,null,null,null,null,null,null,null,null,2408,{"$f":"_xlfn.GROUPBY(G1,H1,_xleta.SUM,0,0)","v":"Delta"},6799932,"=GROUPBY(G1;H1;SUM;0;0)",null,null,null,null,null,null,"=GROUPBY(G1;H1;SUM;0;0)",null,null,null,"=_xlfn.LAMBDA(_xlpm.array1;_xlpm.array2;_xlop.array3;_xlop.array4;_xlop.array5;_xlop.array6;_xlop.array7;_xlop.array8;"]
[null,null,null,null,null,null,null,null,null,2408,{"$f":"_xlfn.PIVOTBY(G1,,H1,_xleta.SUM,0,0)","v":"Delta"},6799932,"=PIVOTBY(G1;;H1;SUM;0;0)",null,null,null,null,null,null,"=PIVOTBY(G1;;H1;SUM;0;0)"]
[null,null,null,null,null,null,null,null,null,null,{"$f":"_xleta.REGEXTEST","v":{"$error":"#VALUE!"}},null,"=REGEXTEST","https://www.myonlinetraininghub.com/excel-groupby-and-pivotby-functions?utm_source=linkedin&utm_medium=cheatsheet&utm_campaign=240925_pivotby_cheatsheet",null,null,null,null,null,null,null,null,null,"(vstack)",null,null,null,null,null,null,null,null,null,null,null,null,"Dynamic vstack",null,"Ancient static vstack"]
[null,null,null,null,null,null,null,null,null,null,{"$f":"_xlfn.TRIMRANGE(I1:Q1)","v":"Updated"},null,"=TRIMRANGE(I1:Q1)","https://support.microsoft.com/en-us/office/trimrange-function-d7812248-3bc5-4c6b-901c-1afa9564f999",null,null,null,"=TRIMRANGE(I1:Q1)",null,null,null,null,null,"2024-08-14 fill uniq -> unique via tab",null,null,null,null,null,null,null,null,null,null,null,null,{"$f":"_xlfn.LAMBDA(_xlpm.array1,_xlpm.array2,_xlop.array3,_xlop.array4,_xlop.array5,_xlop.array6,_xlop.array7,_xlop.array8,\n\n_xlfn.LET(\n    _xlpm.pattern, MAX(   2,\n                    3*NOT(_xlfn.ISOMITTED(_xlpm.array3)),\n                    4*NOT(_xlfn.ISOMITTED(_xlpm.array4)),\n                    5*NOT(_xlfn.ISOMITTED(_xlpm.array5)),\n                    6*NOT(_xlfn.ISOMITTED(_xlpm.array6)),\n                    7*NOT(_xlfn.ISOMITTED(_xlpm.array7)),\n                    8*NOT(_xlfn.ISOMITTED(_xlpm.array8)) ),\n    _xlpm.stack, _xlfn.LAMBDA(_xlpm.array_1,_xlpm.array_2,\n            _xlfn.LET(\n                _xlpm.rows1, ROWS( _xlpm.array_1 ), _xlpm.rows2, ROWS( _xlpm.array_2 ),\n                _xlpm.columns1, COLUMNS( _xlpm.array_1 ), _xlpm.columns2, COLUMNS( _xlpm.array_2 ),\n                _xlpm.rSeq, _xlfn.SEQUENCE( _xlpm.rows1 + _xlpm.rows2 ),\n                _xlpm.cSeq, _xlfn.SEQUENCE(, MAX( _xlpm.columns1, _xlpm.columns2 ) ),\n                IF( _xlfn.ISOMITTED(_xlpm.array_1),\n                    _xlpm.array_2,\n                    IF( _xlfn.ISOMITTED(_xlpm.array_2),\n                        _xlpm.array_1,\n                        IF( _xlpm.rSeq <= _xlpm.rows1,\n                            INDEX( IF( _xlpm.array_1 = \"\", \"\", _xlpm.array_1), _xlpm.rSeq, _xlpm.cSeq ),\n                            INDEX( IF( _xlpm.array_2 = \"\", \"\", _xlpm.array_2), _xlpm.rSeq-_xlpm.rows1, _xlpm.cSeq ) ) ) ) )\n            ),\n    _xlfn.SWITCH( _xlpm.pattern,\n            2, _xlpm.stack(_xlpm.array1,_xlpm.array2),\n            3, _xlpm.stack(_xlpm.stack(_xlpm.array1,_xlpm.array2),_xlpm.array3),\n            4, _xlpm.stack(_xlpm.stack(_xlpm.stack(_xlpm.array1,_xlpm.array2),_xlpm.array3),_xlpm.array4),\n            5, _xlpm.stack(_xlpm.stack(_xlpm.stack(_xlpm.stack(_xlpm.array1,_xlpm.array2),_xlpm.array3),_xlpm.array4),_xlpm.array5),\n            6, _xlpm.stack(_xlpm.stack(_xlpm.stack(_xlpm.stack(_xlpm.stack(_xlpm.array1,_xlpm.array2),_xlpm.array3),_xlpm.array4),_xlpm.array5),_xlpm.array6),\n            7, _xlpm.stack(_xlpm.stack(_xlpm.stack(_xlpm.stack(_xlpm.stack(_xlpm.stack(_xlpm.array1,_xlpm.array2),_xlpm.array3),_xlpm.array4),_xlpm.array5),_xlpm.array6),_xlpm.array7),\n            8, _xlpm.stack(_xlpm.stack(_xlpm.stack(_xlpm.stack(_xlpm.stack(_xlpm.stack(_xlpm.array1,_xlpm.array2),_xlpm.array3),_xlpm.array4),_xlpm.array5,_xlpm.array6),_xlpm.array7),_xlpm.array8), )\n    )\n)(A1,B1)","v":"Country"},null,{"$f":"_xlfn.LET(\n_xlpm.list1,D1,\n_xlpm.list2,E1,\n_xlpm.maxRows,MAX(ROWS(_xlpm.list1),ROWS(_xlpm.list2)),\n_xlpm.seq,_xlfn.SEQUENCE(_xlpm.maxRows*2,,0),\n_xlpm.row,MOD(_xlpm.seq,_xlpm.maxRows)+1,\n_xlpm.loop,INT(_xlpm.seq/_xlpm.maxRows)+1,\n_xlpm.dimensions,CHOOSE(_xlpm.loop,\n   INDEX(_xlpm.list1,_xlpm.row,_xlfn.SEQUENCE(1,COLUMNS(_xlpm.list1))),\n   INDEX(_xlpm.list2,_xlpm.row,_xlfn.SEQUENCE(,COLUMNS(_xlpm.list2)))),\n_xlpm.dims,_xlfn.UNIQUE(_xlpm.dimensions),\n_xlpm.output,_xlfn._xlws.FILTER(_xlpm.dims,NOT(ISERROR(INDEX(_xlpm.dims,0,1)))),\n_xlpm.output\n)","v":"Country"}]
[null,null,null,null,null,null,null,null,null,null,{"$f":"ROWS(_xlfn._TRO_TRAILING(H:H))","v":9},null,"=ROWS(H:.H)",null,null,null,null,"=ROWS(H:.H)",null,null,null,null,null,null,null,null,null,null,null,null,null,null,null,null,null,null,"Amount",null,"Amount"]
[null,null,null,null,null,null,null,null,null,null,null,null,{"$f":"LAG","v":{"$error":"#NAME?"}},null,null,null,null,"‏"]
[]
[]
[]
[]
[null,null,null,null,null,null,null,null,null,null,"Uppdateringsloggen"]
[null,null,null,null,null,null,null,null,null,null,"https://learn.microsoft.com/sv-se/officeupdates/current-channel",null,null,null,null,null,null,null,null,null,null,"Check Boxes 1/0"]
[]
[]
[]
[]
[]
[]
[null,null,null,null,"Version 2406: June 26"]
[null,null,null,null," Use Microsoft Purview to prevent some connected experiences that analyze content: Use a new sensitivity label setting or protection with Double Key Encryption to prevent content within Word, Excel, PowerPoint, and Outlook from being sent to Microsoft for content analysis as a privacy control, even when these are stored in Microsoft’s cloud, such as SharePoint or OneDrive. This helps your organization to optimize your data privacy needs on a per-content basis using the familiar configurations and end-user experiences available with Microsoft Purview. Learn More"]
[null,null,null,null,"https://learn.microsoft.com/en-us/purview/sensitivity-labels-office-apps#prevent-some-connected-experiences-that-analyze-content"]
[]
[null,null,null,null,null,null,null,null,null,null,null,null,null,null,null,null,null,null,null,"365 v2410",null,null,null,"2021 Pro+ 2108 LTSC"]
[null,null,null,null,null,null,null,null,null,null,2506,"Enhanced",null,null,null,null,null,null,null,"Unique lists",null,null,null,"Full lists"]
[]
[null,null,null,null,"Version 2409: September 23"]
[null,null,null,null,"Modernized user-defined permissions experience: We’ve improved the user experience for selecting which users should have which permissions when a sensitivity label configured for user-defined permissions is applied to a file or when configuring standalone Information Rights Management through the Restrict Access feature."]
[]
[]
[]
[]
[]
[]
[]
[]
[]
[]
[]
[]
[]
[]
[]
[]
[]
[]
[]
[]
[]
[]
[]
[]
[]
[]
[]
[]
[]
[]
[null,null,null,null,null,null,null,null,null,null,"Version","Funktioner med ändringar","Beskrivning av ändringar","Excel-versioner som har åtkomst"]
[null,null,null,null,null,null,null,null,null,null,"Version 1 (rekommenderas)","Saknas (Kompatibelt med äldre Excel)",null,"Alla versioner"]
[null,null,null,null,null,null,null,null,null,null,"Version 2","Funktionerna LÄNGD, EXTEXT, SÖK, SÖK och ERSÄTT","Stöd för Unicode-surrogatpar","Excel för M365"]

{"sheet":"fx+","index":1,"n_rows":23,"n_cols":2,"rows_kept":23,"cut":false,"hidden":false,"merged":[]}
["Funktioner som kräver nyare Excel-versioner (365 / 2019+)"]
[]
[null,"kan du lista alla funktioner som påverkas av kryssrutan \"suggest formula variations that are supported by older versions of excel\"?"]
["Absolut! När du avmarkerar kryssrutan \"Föreslå formelvarianter som stöds av äldre versioner av Excel\" (eng. \"Suggest formula variations that are supported by older versions of Excel\") i Excel, tillåts användning av moderna funktioner som inte är kompatibla med äldre versioner som Excel 2010, 2013 eller 2016."]
["Här är en komplett lista över funktioner som påverkas av detta val – alltså funktioner som inte föreslås om du vill behålla kompatibilitet med äldre versioner:"]
[]
["Funktion","Beskrivning"]
["XLOOKUP","Ersätter VLOOKUP och HLOOKUP med mer flexibel sökning"]
["FILTER","Filtrerar en matris baserat på ett villkor"]
["SORT, SORTBY","Sorterar data dynamiskt"]
["UNIQUE","Returnerar unika värden från en lista"]
["SEQUENCE","Skapar en sekvens av tal"]
["LET","Namnger mellanresultat i en formel"]
["LAMBDA","Skapar egna funktioner direkt i celler"]
["TEXTSPLIT, TEXTBEFORE, TEXTAFTER","Avancerad textmanipulation"]
["VSTACK, HSTACK","Kombinerar områden vertikalt eller horisontellt"]
["CHOOSECOLS, CHOOSEROWS","Väljer specifika kolumner eller rader från en matris"]
["WRAPROWS, WRAPCOLS","Omformar en lista till tabellformat"]
["SCAN, REDUCE, MAP","Funktionell programmering i Excel"]
["XMATCH","Mer kraftfull matchningsfunktion än MATCH"]
["ISOMITTED","Identifierar om ett argument har utelämnats"]
["TOCOL, TOROW","Omvandlar matris till kolumn eller rad"]
["DROP, TAKE","Tar bort eller hämtar delar av en matris"]

{"sheet":"bnch","index":2,"n_rows":1000001,"n_cols":14,"rows_kept":4500,"cut":true,"hidden":false,"merged":[],"bounds":{"rows_first":2000,"rows_last":500,"rows_between":2000,"halvings":0}}
["Benchmark",null,{"$f":"_xlfn.TEXTSPLIT(\"lookup_value;lookup_array;return_array;if_not_found;match_mode;search_mode\",\";\")","v":"lookup_value"},"lookup_array","return_array","if_not_found","match_mode","search_mode",null,"RANDARRAY(3;;MAX(D:D)-10;MAX(D:D))",null,"mSec"]
[null,null,{"$f":"_xlfn.RANDARRAY(3,,MAX(D:D)-10,MAX(D:D))","v":999993.87464333163},{"$f":"_xlfn.SEQUENCE(1000000)","v":1},{"$f":"E1 & \"_\" &_xlfn.ANCHORARRAY( D2)","v":"return_array_1"},null,null,null,null,null,null,{"$f":"_xlfn.LET(_xlpm.input,NOW(),\nINT((_xlpm.input-INT(_xlpm.input))*86400000)+RAND()*0\n)","v":53880049},{"$f":"_xlfn.XLOOKUP(INT(_xlfn.ANCHORARRAY($C$2)),$D:$D,$E:$E)","v":"return_array_999993"},{"$f":"_xlfn.LET(_xlpm.input,NOW(),\nINT((_xlpm.input-INT(_xlpm.input))*86400000)+RAND()*0\n)","v":53880049}]
[null,null,999997.51316088263,2,"return_array_2",null,null,null,"Δ mSec",null,null,null,"return_array_999997",{"$f":"N2-L2","v":0}]
[null,null,999998.37006065599,3,"return_array_3",null,null,"timer_1",{"$f":"#REF!-F3","v":0},"XLOOKUP(INT($C$2#);$D:$D;$E:$E)",null,null,"return_array_999998"]
[null,null,null,4,"return_array_4",null,null,"timer_2",{"$f":"#REF!-F4","v":0},"XLOOKUP(INT($C$2#);$D:.$D;$E:.$E)"]
[null,null,null,5,"return_array_5",null,null,"timer_3",{"$f":"#REF!-F5","v":0},"XLOOKUP(INT($C$2#);$D:$D;$E:$E)"]
[null,null,null,6,"return_array_6",null,null,"timer_4",{"$f":"#REF!-F6","v":0},"XLOOKUP(INT($C$2#);$D:$D;$E:$E)"]
[null,null,null,7,"return_array_7"]
[null,null,null,8,"return_array_8"]
[null,null,null,9,"return_array_9"]
[null,null,null,10,"return_array_10"]
[null,null,null,11,"return_array_11"]
[null,null,null,12,"return_array_12"]
[null,null,null,13,"return_array_13"]
[null,null,null,14,"return_array_14"]
[null,null,null,15,"return_array_15"]
[null,null,null,16,"return_array_16"]
[null,null,null,17,"return_array_17"]
[null,null,null,18,"return_array_18"]
[null,null,null,19,"return_array_19"]
[null,null,null,20,"return_array_20"]
[null,null,null,21,"return_array_21"]
[null,null,null,22,"return_array_22"]
[null,null,null,23,"return_array_23"]
[null,null,null,24,"return_array_24"]
[null,null,null,25,"return_array_25"]
[null,null,null,26,"return_array_26"]
[null,null,null,27,"return_array_27"]
[null,null,null,28,"return_array_28"]
[null,null,null,29,"return_array_29"]
[null,null,null,30,"return_array_30"]
[null,null,null,31,"return_array_31"]
[null,null,null,32,"return_array_32"]
[null,null,null,33,"return_array_33"]
[null,null,null,34,"return_array_34"]
[null,null,null,35,"return_array_35"]
[null,null,null,36,"return_array_36"]
[null,null,null,37,"return_array_37"]
[null,null,null,38,"return_array_38"]
[null,null,null,39,"return_array_39"]
[null,null,null,40,"return_array_40"]
[null,null,null,41,"return_array_41"]
[null,null,null,42,"return_array_42"]
[null,null,null,43,"return_array_43"]
[null,null,null,44,"return_array_44"]
[null,null,null,45,"return_array_45"]
[null,null,null,46,"return_array_46"]
[null,null,null,47,"return_array_47"]
[null,null,null,48,"return_array_48"]
[null,null,null,49,"return_array_49"]
[null,null,null,50,"return_array_50"]
[null,null,null,51,"return_array_51"]
[null,null,null,52,"return_array_52"]
[null,null,null,53,"return_array_53"]
[null,null,null,54,"return_array_54"]
[null,null,null,55,"return_array_55"]
[null,null,null,56,"return_array_56"]
[null,null,null,57,"return_array_57"]
[null,null,null,58,"return_array_58"]
[null,null,null,59,"return_array_59"]
[null,null,null,60,"return_array_60"]
[null,null,null,61,"return_array_61"]
[null,null,null,62,"return_array_62"]
[null,null,null,63,"return_array_63"]
[null,null,null,64,"return_array_64"]
[null,null,null,65,"return_array_65"]
[null,null,null,66,"return_array_66"]
[null,null,null,67,"return_array_67"]
[null,null,null,68,"return_array_68"]
[null,null,null,69,"return_array_69"]
[null,null,null,70,"return_array_70"]
[null,null,null,71,"return_array_71"]
[null,null,null,72,"return_array_72"]
[null,null,null,73,"return_array_73"]
[null,null,null,74,"return_array_74"]
[null,null,null,75,"return_array_75"]
[null,null,null,76,"return_array_76"]
[null,null,null,77,"return_array_77"]
[null,null,null,78,"return_array_78"]
[null,null,null,79,"return_array_79"]
[null,null,null,80,"return_array_80"]
[null,null,null,81,"return_array_81"]
[null,null,null,82,"return_array_82"]
[null,null,null,83,"return_array_83"]
[null,null,null,84,"return_array_84"]
[null,null,null,85,"return_array_85"]
[null,null,null,86,"return_array_86"]
[null,null,null,87,"return_array_87"]
[null,null,null,88,"return_array_88"]
[null,null,null,89,"return_array_89"]
[null,null,null,90,"return_array_90"]
[null,null,null,91,"return_array_91"]
[null,null,null,92,"return_array_92"]
[null,null,null,93,"return_array_93"]
[null,null,null,94,"return_array_94"]
[null,null,null,95,"return_array_95"]
[null,null,null,96,"return_array_96"]
[null,null,null,97,"return_array_97"]
[null,null,null,98,"return_array_98"]
[null,null,null,99,"return_array_99"]
[null,null,null,100,"return_array_100"]
[null,null,null,101,"return_array_101"]
[null,null,null,102,"return_array_102"]
[null,null,null,103,"return_array_103"]
[null,null,null,104,"return_array_104"]
[null,null,null,105,"return_array_105"]
[null,null,null,106,"return_array_106"]
[null,null,null,107,"return_array_107"]
[null,null,null,108,"return_array_108"]
[null,null,null,109,"return_array_109"]
[null,null,null,110,"return_array_110"]
[null,null,null,111,"return_array_111"]
[null,null,null,112,"return_array_112"]
[null,null,null,113,"return_array_113"]
[null,null,null,114,"return_array_114"]
[null,null,null,115,"return_array_115"]
[null,null,null,116,"return_array_116"]
[null,null,null,117,"return_array_117"]
[null,null,null,118,"return_array_118"]
[null,null,null,119,"return_array_119"]
[null,null,null,120,"return_array_120"]
[null,null,null,121,"return_array_121"]
[null,null,null,122,"return_array_122"]
[null,null,null,123,"return_array_123"]
[null,null,null,124,"return_array_124"]
[null,null,null,125,"return_array_125"]
[null,null,null,126,"return_array_126"]
[null,null,null,127,"return_array_127"]
[null,null,null,128,"return_array_128"]
[null,null,null,129,"return_array_129"]
[null,null,null,130,"return_array_130"]
[null,null,null,131,"return_array_131"]
[null,null,null,132,"return_array_132"]
[null,null,null,133,"return_array_133"]
[null,null,null,134,"return_array_134"]
[null,null,null,135,"return_array_135"]
[null,null,null,136,"return_array_136"]
[null,null,null,137,"return_array_137"]
[null,null,null,138,"return_array_138"]
[null,null,null,139,"return_array_139"]
[null,null,null,140,"return_array_140"]
[null,null,null,141,"return_array_141"]
[null,null,null,142,"return_array_142"]
[null,null,null,143,"return_array_143"]
[null,null,null,144,"return_array_144"]
[null,null,null,145,"return_array_145"]
[null,null,null,146,"return_array_146"]
[null,null,null,147,"return_array_147"]
[null,null,null,148,"return_array_148"]
[null,null,null,149,"return_array_149"]
[null,null,null,150,"return_array_150"]
[null,null,null,151,"return_array_151"]
[null,null,null,152,"return_array_152"]
[null,null,null,153,"return_array_153"]
[null,null,null,154,"return_array_154"]
[null,null,null,155,"return_array_155"]
[null,null,null,156,"return_array_156"]
[null,null,null,157,"return_array_157"]
[null,null,null,158,"return_array_158"]
[null,null,null,159,"return_array_159"]
[null,null,null,160,"return_array_160"]
[null,null,null,161,"return_array_161"]
[null,null,null,162,"return_array_162"]
[null,null,null,163,"return_array_163"]
[null,null,null,164,"return_array_164"]
[null,null,null,165,"return_array_165"]
[null,null,null,166,"return_array_166"]
[null,null,null,167,"return_array_167"]
[null,null,null,168,"return_array_168"]
[null,null,null,169,"return_array_169"]
[null,null,null,170,"return_array_170"]
[null,null,null,171,"return_array_171"]
[null,null,null,172,"return_array_172"]
[null,null,null,173,"return_array_173"]
[null,null,null,174,"return_array_174"]
[null,null,null,175,"return_array_175"]
[null,null,null,176,"return_array_176"]
[null,null,null,177,"return_array_177"]
[null,null,null,178,"return_array_178"]
[null,null,null,179,"return_array_179"]
[null,null,null,180,"return_array_180"]
[null,null,null,181,"return_array_181"]
[null,null,null,182,"return_array_182"]
[null,null,null,183,"return_array_183"]
[null,null,null,184,"return_array_184"]
[null,null,null,185,"return_array_185"]
[null,null,null,186,"return_array_186"]
[null,null,null,187,"return_array_187"]
[null,null,null,188,"return_array_188"]
[null,null,null,189,"return_array_189"]
[null,null,null,190,"return_array_190"]
[null,null,null,191,"return_array_191"]
[null,null,null,192,"return_array_192"]
[null,null,null,193,"return_array_193"]
[null,null,null,194,"return_array_194"]
[null,null,null,195,"return_array_195"]
[null,null,null,196,"return_array_196"]
[null,null,null,197,"return_array_197"]
[null,null,null,198,"return_array_198"]
[null,null,null,199,"return_array_199"]
[null,null,null,200,"return_array_200"]
[null,null,null,201,"return_array_201"]
[null,null,null,202,"return_array_202"]
[null,null,null,203,"return_array_203"]
[null,null,null,204,"return_array_204"]
[null,null,null,205,"return_array_205"]
[null,null,null,206,"return_array_206"]
[null,null,null,207,"return_array_207"]
[null,null,null,208,"return_array_208"]
[null,null,null,209,"return_array_209"]
[null,null,null,210,"return_array_210"]
[null,null,null,211,"return_array_211"]
[null,null,null,212,"return_array_212"]
[null,null,null,213,"return_array_213"]
[null,null,null,214,"return_array_214"]
[null,null,null,215,"return_array_215"]
[null,null,null,216,"return_array_216"]
[null,null,null,217,"return_array_217"]
[null,null,null,218,"return_array_218"]
[null,null,null,219,"return_array_219"]
[null,null,null,220,"return_array_220"]
[null,null,null,221,"return_array_221"]
[null,null,null,222,"return_array_222"]
[null,null,null,223,"return_array_223"]
[null,null,null,224,"return_array_224"]
[null,null,null,225,"return_array_225"]
[null,null,null,226,"return_array_226"]
[null,null,null,227,"return_array_227"]
[null,null,null,228,"return_array_228"]
[null,null,null,229,"return_array_229"]
[null,null,null,230,"return_array_230"]
[null,null,null,231,"return_array_231"]
[null,null,null,232,"return_array_232"]
[null,null,null,233,"return_array_233"]
[null,null,null,234,"return_array_234"]
[null,null,null,235,"return_array_235"]
[null,null,null,236,"return_array_236"]
[null,null,null,237,"return_array_237"]
[null,null,null,238,"return_array_238"]
[null,null,null,239,"return_array_239"]
[null,null,null,240,"return_array_240"]
[null,null,null,241,"return_array_241"]
[null,null,null,242,"return_array_242"]
[null,null,null,243,"return_array_243"]
[null,null,null,244,"return_array_244"]
[null,null,null,245,"return_array_245"]
[null,null,null,246,"return_array_246"]
[null,null,null,247,"return_array_247"]
[null,null,null,248,"return_array_248"]
[null,null,null,249,"return_array_249"]
[null,null,null,250,"return_array_250"]
[null,null,null,251,"return_array_251"]
[null,null,null,252,"return_array_252"]
[null,null,null,253,"return_array_253"]
[null,null,null,254,"return_array_254"]
[null,null,null,255,"return_array_255"]
[null,null,null,256,"return_array_256"]
[null,null,null,257,"return_array_257"]
[null,null,null,258,"return_array_258"]
[null,null,null,259,"return_array_259"]
[null,null,null,260,"return_array_260"]
[null,null,null,261,"return_array_261"]
[null,null,null,262,"return_array_262"]
[null,null,null,263,"return_array_263"]
[null,null,null,264,"return_array_264"]
[null,null,null,265,"return_array_265"]
[null,null,null,266,"return_array_266"]
[null,null,null,267,"return_array_267"]
[null,null,null,268,"return_array_268"]
[null,null,null,269,"return_array_269"]
[null,null,null,270,"return_array_270"]
[null,null,null,271,"return_array_271"]
[null,null,null,272,"return_array_272"]
[null,null,null,273,"return_array_273"]
[null,null,null,274,"return_array_274"]
[null,null,null,275,"return_array_275"]
[null,null,null,276,"return_array_276"]
[null,null,null,277,"return_array_277"]
[null,null,null,278,"return_array_278"]
[null,null,null,279,"return_array_279"]
[null,null,null,280,"return_array_280"]
[null,null,null,281,"return_array_281"]
[null,null,null,282,"return_array_282"]
[null,null,null,283,"return_array_283"]
[null,null,null,284,"return_array_284"]
[null,null,null,285,"return_array_285"]
[null,null,null,286,"return_array_286"]
[null,null,null,287,"return_array_287"]
[null,null,null,288,"return_array_288"]
[null,null,null,289,"return_array_289"]
[null,null,null,290,"return_array_290"]
[null,null,null,291,"return_array_291"]
[null,null,null,292,"return_array_292"]
[null,null,null,293,"return_array_293"]
[null,null,null,294,"return_array_294"]
[null,null,null,295,"return_array_295"]
[null,null,null,296,"return_array_296"]
[null,null,null,297,"return_array_297"]
[null,null,null,298,"return_array_298"]
[null,null,null,299,"return_array_299"]
[null,null,null,300,"return_array_300"]
[null,null,null,301,"return_array_301"]
[null,null,null,302,"return_array_302"]
[null,null,null,303,"return_array_303"]
[null,null,null,304,"return_array_304"]
[null,null,null,305,"return_array_305"]
[null,null,null,306,"return_array_306"]
[null,null,null,307,"return_array_307"]
[null,null,null,308,"return_array_308"]
[null,null,null,309,"return_array_309"]
[null,null,null,310,"return_array_310"]
[null,null,null,311,"return_array_311"]
[null,null,null,312,"return_array_312"]
[null,null,null,313,"return_array_313"]
[null,null,null,314,"return_array_314"]
[null,null,null,315,"return_array_315"]
[null,null,null,316,"return_array_316"]
[null,null,null,317,"return_array_317"]
[null,null,null,318,"return_array_318"]
[null,null,null,319,"return_array_319"]
[null,null,null,320,"return_array_320"]
[null,null,null,321,"return_array_321"]
[null,null,null,322,"return_array_322"]
[null,null,null,323,"return_array_323"]
[null,null,null,324,"return_array_324"]
[null,null,null,325,"return_array_325"]
[null,null,null,326,"return_array_326"]
[null,null,null,327,"return_array_327"]
[null,null,null,328,"return_array_328"]
[null,null,null,329,"return_array_329"]
[null,null,null,330,"return_array_330"]
[null,null,null,331,"return_array_331"]
[null,null,null,332,"return_array_332"]
[null,null,null,333,"return_array_333"]
[null,null,null,334,"return_array_334"]
[null,null,null,335,"return_array_335"]
[null,null,null,336,"return_array_336"]
[null,null,null,337,"return_array_337"]
[null,null,null,338,"return_array_338"]
[null,null,null,339,"return_array_339"]
[null,null,null,340,"return_array_340"]
[null,null,null,341,"return_array_341"]
[null,null,null,342,"return_array_342"]
[null,null,null,343,"return_array_343"]
[null,null,null,344,"return_array_344"]
[null,null,null,345,"return_array_345"]
[null,null,null,346,"return_array_346"]
[null,null,null,347,"return_array_347"]
[null,null,null,348,"return_array_348"]
[null,null,null,349,"return_array_349"]
[null,null,null,350,"return_array_350"]
[null,null,null,351,"return_array_351"]
[null,null,null,352,"return_array_352"]
[null,null,null,353,"return_array_353"]
[null,null,null,354,"return_array_354"]
[null,null,null,355,"return_array_355"]
[null,null,null,356,"return_array_356"]
[null,null,null,357,"return_array_357"]
[null,null,null,358,"return_array_358"]
[null,null,null,359,"return_array_359"]
[null,null,null,360,"return_array_360"]
[null,null,null,361,"return_array_361"]
[null,null,null,362,"return_array_362"]
[null,null,null,363,"return_array_363"]
[null,null,null,364,"return_array_364"]
[null,null,null,365,"return_array_365"]
[null,null,null,366,"return_array_366"]
[null,null,null,367,"return_array_367"]
[null,null,null,368,"return_array_368"]
[null,null,null,369,"return_array_369"]
[null,null,null,370,"return_array_370"]
[null,null,null,371,"return_array_371"]
[null,null,null,372,"return_array_372"]
[null,null,null,373,"return_array_373"]
[null,null,null,374,"return_array_374"]
[null,null,null,375,"return_array_375"]
[null,null,null,376,"return_array_376"]
[null,null,null,377,"return_array_377"]
[null,null,null,378,"return_array_378"]
[null,null,null,379,"return_array_379"]
[null,null,null,380,"return_array_380"]
[null,null,null,381,"return_array_381"]
[null,null,null,382,"return_array_382"]
[null,null,null,383,"return_array_383"]
[null,null,null,384,"return_array_384"]
[null,null,null,385,"return_array_385"]
[null,null,null,386,"return_array_386"]
[null,null,null,387,"return_array_387"]
[null,null,null,388,"return_array_388"]
[null,null,null,389,"return_array_389"]
[null,null,null,390,"return_array_390"]
[null,null,null,391,"return_array_391"]
[null,null,null,392,"return_array_392"]
[null,null,null,393,"return_array_393"]
[null,null,null,394,"return_array_394"]
[null,null,null,395,"return_array_395"]
[null,null,null,396,"return_array_396"]
[null,null,null,397,"return_array_397"]
[null,null,null,398,"return_array_398"]
[null,null,null,399,"return_array_399"]
[null,null,null,400,"return_array_400"]
[null,null,null,401,"return_array_401"]
[null,null,null,402,"return_array_402"]
[null,null,null,403,"return_array_403"]
[null,null,null,404,"return_array_404"]
[null,null,null,405,"return_array_405"]
[null,null,null,406,"return_array_406"]
[null,null,null,407,"return_array_407"]
[null,null,null,408,"return_array_408"]
[null,null,null,409,"return_array_409"]
[null,null,null,410,"return_array_410"]
[null,null,null,411,"return_array_411"]
[null,null,null,412,"return_array_412"]
[null,null,null,413,"return_array_413"]
[null,null,null,414,"return_array_414"]
[null,null,null,415,"return_array_415"]
[null,null,null,416,"return_array_416"]
[null,null,null,417,"return_array_417"]
[null,null,null,418,"return_array_418"]
[null,null,null,419,"return_array_419"]
[null,null,null,420,"return_array_420"]
[null,null,null,421,"return_array_421"]
[null,null,null,422,"return_array_422"]
[null,null,null,423,"return_array_423"]
[null,null,null,424,"return_array_424"]
[null,null,null,425,"return_array_425"]
[null,null,null,426,"return_array_426"]
[null,null,null,427,"return_array_427"]
[null,null,null,428,"return_array_428"]
[null,null,null,429,"return_array_429"]
[null,null,null,430,"return_array_430"]
[null,null,null,431,"return_array_431"]
[null,null,null,432,"return_array_432"]
[null,null,null,433,"return_array_433"]
[null,null,null,434,"return_array_434"]
[null,null,null,435,"return_array_435"]
[null,null,null,436,"return_array_436"]
[null,null,null,437,"return_array_437"]
[null,null,null,438,"return_array_438"]
[null,null,null,439,"return_array_439"]
[null,null,null,440,"return_array_440"]
[null,null,null,441,"return_array_441"]
[null,null,null,442,"return_array_442"]
[null,null,null,443,"return_array_443"]
[null,null,null,444,"return_array_444"]
[null,null,null,445,"return_array_445"]
[null,null,null,446,"return_array_446"]
[null,null,null,447,"return_array_447"]
[null,null,null,448,"return_array_448"]
[null,null,null,449,"return_array_449"]
[null,null,null,450,"return_array_450"]
[null,null,null,451,"return_array_451"]
[null,null,null,452,"return_array_452"]
[null,null,null,453,"return_array_453"]
[null,null,null,454,"return_array_454"]
[null,null,null,455,"return_array_455"]
[null,null,null,456,"return_array_456"]
[null,null,null,457,"return_array_457"]
[null,null,null,458,"return_array_458"]
[null,null,null,459,"return_array_459"]
[null,null,null,460,"return_array_460"]
[null,null,null,461,"return_array_461"]
[null,null,null,462,"return_array_462"]
[null,null,null,463,"return_array_463"]
[null,null,null,464,"return_array_464"]
[null,null,null,465,"return_array_465"]
[null,null,null,466,"return_array_466"]
[null,null,null,467,"return_array_467"]
[null,null,null,468,"return_array_468"]
[null,null,null,469,"return_array_469"]
[null,null,null,470,"return_array_470"]
[null,null,null,471,"return_array_471"]
[null,null,null,472,"return_array_472"]
[null,null,null,473,"return_array_473"]
[null,null,null,474,"return_array_474"]
[null,null,null,475,"return_array_475"]
[null,null,null,476,"return_array_476"]
[null,null,null,477,"return_array_477"]
[null,null,null,478,"return_array_478"]
[null,null,null,479,"return_array_479"]
[null,null,null,480,"return_array_480"]
[null,null,null,481,"return_array_481"]
[null,null,null,482,"return_array_482"]
[null,null,null,483,"return_array_483"]
[null,null,null,484,"return_array_484"]
[null,null,null,485,"return_array_485"]
[null,null,null,486,"return_array_486"]
[null,null,null,487,"return_array_487"]
[null,null,null,488,"return_array_488"]
[null,null,null,489,"return_array_489"]
[null,null,null,490,"return_array_490"]
[null,null,null,491,"return_array_491"]
[null,null,null,492,"return_array_492"]
[null,null,null,493,"return_array_493"]
[null,null,null,494,"return_array_494"]
[null,null,null,495,"return_array_495"]
[null,null,null,496,"return_array_496"]
[null,null,null,497,"return_array_497"]
[null,null,null,498,"return_array_498"]
[null,null,null,499,"return_array_499"]
[null,null,null,500,"return_array_500"]
[null,null,null,501,"return_array_501"]
[null,null,null,502,"return_array_502"]
[null,null,null,503,"return_array_503"]
[null,null,null,504,"return_array_504"]
[null,null,null,505,"return_array_505"]
[null,null,null,506,"return_array_506"]
[null,null,null,507,"return_array_507"]
[null,null,null,508,"return_array_508"]
[null,null,null,509,"return_array_509"]
[null,null,null,510,"return_array_510"]
[null,null,null,511,"return_array_511"]
[null,null,null,512,"return_array_512"]
[null,null,null,513,"return_array_513"]
[null,null,null,514,"return_array_514"]
[null,null,null,515,"return_array_515"]
[null,null,null,516,"return_array_516"]
[null,null,null,517,"return_array_517"]
[null,null,null,518,"return_array_518"]
[null,null,null,519,"return_array_519"]
[null,null,null,520,"return_array_520"]
[null,null,null,521,"return_array_521"]
[null,null,null,522,"return_array_522"]
[null,null,null,523,"return_array_523"]
[null,null,null,524,"return_array_524"]
[null,null,null,525,"return_array_525"]
[null,null,null,526,"return_array_526"]
[null,null,null,527,"return_array_527"]
[null,null,null,528,"return_array_528"]
[null,null,null,529,"return_array_529"]
[null,null,null,530,"return_array_530"]
[null,null,null,531,"return_array_531"]
[null,null,null,532,"return_array_532"]
[null,null,null,533,"return_array_533"]
[null,null,null,534,"return_array_534"]
[null,null,null,535,"return_array_535"]
[null,null,null,536,"return_array_536"]
[null,null,null,537,"return_array_537"]
[null,null,null,538,"return_array_538"]
[null,null,null,539,"return_array_539"]
[null,null,null,540,"return_array_540"]
[null,null,null,541,"return_array_541"]
[null,null,null,542,"return_array_542"]
[null,null,null,543,"return_array_543"]
[null,null,null,544,"return_array_544"]
[null,null,null,545,"return_array_545"]
[null,null,null,546,"return_array_546"]
[null,null,null,547,"return_array_547"]
[null,null,null,548,"return_array_548"]
[null,null,null,549,"return_array_549"]
[null,null,null,550,"return_array_550"]
[null,null,null,551,"return_array_551"]
[null,null,null,552,"return_array_552"]
[null,null,null,553,"return_array_553"]
[null,null,null,554,"return_array_554"]
[null,null,null,555,"return_array_555"]
[null,null,null,556,"return_array_556"]
[null,null,null,557,"return_array_557"]
[null,null,null,558,"return_array_558"]
[null,null,null,559,"return_array_559"]
[null,null,null,560,"return_array_560"]
[null,null,null,561,"return_array_561"]
[null,null,null,562,"return_array_562"]
[null,null,null,563,"return_array_563"]
[null,null,null,564,"return_array_564"]
[null,null,null,565,"return_array_565"]
[null,null,null,566,"return_array_566"]
[null,null,null,567,"return_array_567"]
[null,null,null,568,"return_array_568"]
[null,null,null,569,"return_array_569"]
[null,null,null,570,"return_array_570"]
[null,null,null,571,"return_array_571"]
[null,null,null,572,"return_array_572"]
[null,null,null,573,"return_array_573"]
[null,null,null,574,"return_array_574"]
[null,null,null,575,"return_array_575"]
[null,null,null,576,"return_array_576"]
[null,null,null,577,"return_array_577"]
[null,null,null,578,"return_array_578"]
[null,null,null,579,"return_array_579"]
[null,null,null,580,"return_array_580"]
[null,null,null,581,"return_array_581"]
[null,null,null,582,"return_array_582"]
[null,null,null,583,"return_array_583"]
[null,null,null,584,"return_array_584"]
[null,null,null,585,"return_array_585"]
[null,null,null,586,"return_array_586"]
[null,null,null,587,"return_array_587"]
[null,null,null,588,"return_array_588"]
[null,null,null,589,"return_array_589"]
[null,null,null,590,"return_array_590"]
[null,null,null,591,"return_array_591"]
[null,null,null,592,"return_array_592"]
[null,null,null,593,"return_array_593"]
[null,null,null,594,"return_array_594"]
[null,null,null,595,"return_array_595"]
[null,null,null,596,"return_array_596"]
[null,null,null,597,"return_array_597"]
[null,null,null,598,"return_array_598"]
[null,null,null,599,"return_array_599"]
[null,null,null,600,"return_array_600"]
[null,null,null,601,"return_array_601"]
[null,null,null,602,"return_array_602"]
[null,null,null,603,"return_array_603"]
[null,null,null,604,"return_array_604"]
[null,null,null,605,"return_array_605"]
[null,null,null,606,"return_array_606"]
[null,null,null,607,"return_array_607"]
[null,null,null,608,"return_array_608"]
[null,null,null,609,"return_array_609"]
[null,null,null,610,"return_array_610"]
[null,null,null,611,"return_array_611"]
[null,null,null,612,"return_array_612"]
[null,null,null,613,"return_array_613"]
[null,null,null,614,"return_array_614"]
[null,null,null,615,"return_array_615"]
[null,null,null,616,"return_array_616"]
[null,null,null,617,"return_array_617"]
[null,null,null,618,"return_array_618"]
[null,null,null,619,"return_array_619"]
[null,null,null,620,"return_array_620"]
[null,null,null,621,"return_array_621"]
[null,null,null,622,"return_array_622"]
[null,null,null,623,"return_array_623"]
[null,null,null,624,"return_array_624"]
[null,null,null,625,"return_array_625"]
[null,null,null,626,"return_array_626"]
[null,null,null,627,"return_array_627"]
[null,null,null,628,"return_array_628"]
[null,null,null,629,"return_array_629"]
[null,null,null,630,"return_array_630"]
[null,null,null,631,"return_array_631"]
[null,null,null,632,"return_array_632"]
[null,null,null,633,"return_array_633"]
[null,null,null,634,"return_array_634"]
[null,null,null,635,"return_array_635"]
[null,null,null,636,"return_array_636"]
[null,null,null,637,"return_array_637"]
[null,null,null,638,"return_array_638"]
[null,null,null,639,"return_array_639"]
[null,null,null,640,"return_array_640"]
[null,null,null,641,"return_array_641"]
[null,null,null,642,"return_array_642"]
[null,null,null,643,"return_array_643"]
[null,null,null,644,"return_array_644"]
[null,null,null,645,"return_array_645"]
[null,null,null,646,"return_array_646"]
[null,null,null,647,"return_array_647"]
[null,null,null,648,"return_array_648"]
[null,null,null,649,"return_array_649"]
[null,null,null,650,"return_array_650"]
[null,null,null,651,"return_array_651"]
[null,null,null,652,"return_array_652"]
[null,null,null,653,"return_array_653"]
[null,null,null,654,"return_array_654"]
[null,null,null,655,"return_array_655"]
[null,null,null,656,"return_array_656"]
[null,null,null,657,"return_array_657"]
[null,null,null,658,"return_array_658"]
[null,null,null,659,"return_array_659"]
[null,null,null,660,"return_array_660"]
[null,null,null,661,"return_array_661"]
[null,null,null,662,"return_array_662"]
[null,null,null,663,"return_array_663"]
[null,null,null,664,"return_array_664"]
[null,null,null,665,"return_array_665"]
[null,null,null,666,"return_array_666"]
[null,null,null,667,"return_array_667"]
[null,null,null,668,"return_array_668"]
[null,null,null,669,"return_array_669"]
[null,null,null,670,"return_array_670"]
[null,null,null,671,"return_array_671"]
[null,null,null,672,"return_array_672"]
[null,null,null,673,"return_array_673"]
[null,null,null,674,"return_array_674"]
[null,null,null,675,"return_array_675"]
[null,null,null,676,"return_array_676"]
[null,null,null,677,"return_array_677"]
[null,null,null,678,"return_array_678"]
[null,null,null,679,"return_array_679"]
[null,null,null,680,"return_array_680"]
[null,null,null,681,"return_array_681"]
[null,null,null,682,"return_array_682"]
[null,null,null,683,"return_array_683"]
[null,null,null,684,"return_array_684"]
[null,null,null,685,"return_array_685"]
[null,null,null,686,"return_array_686"]
[null,null,null,687,"return_array_687"]
[null,null,null,688,"return_array_688"]
[null,null,null,689,"return_array_689"]
[null,null,null,690,"return_array_690"]
[null,null,null,691,"return_array_691"]
[null,null,null,692,"return_array_692"]
[null,null,null,693,"return_array_693"]
[null,null,null,694,"return_array_694"]
[null,null,null,695,"return_array_695"]
[null,null,null,696,"return_array_696"]
[null,null,null,697,"return_array_697"]
[null,null,null,698,"return_array_698"]
[null,null,null,699,"return_array_699"]
[null,null,null,700,"return_array_700"]
[null,null,null,701,"return_array_701"]
[null,null,null,702,"return_array_702"]
[null,null,null,703,"return_array_703"]
[null,null,null,704,"return_array_704"]
[null,null,null,705,"return_array_705"]
[null,null,null,706,"return_array_706"]
[null,null,null,707,"return_array_707"]
[null,null,null,708,"return_array_708"]
[null,null,null,709,"return_array_709"]
[null,null,null,710,"return_array_710"]
[null,null,null,711,"return_array_711"]
[null,null,null,712,"return_array_712"]
[null,null,null,713,"return_array_713"]
[null,null,null,714,"return_array_714"]
[null,null,null,715,"return_array_715"]
[null,null,null,716,"return_array_716"]
[null,null,null,717,"return_array_717"]
[null,null,null,718,"return_array_718"]
[null,null,null,719,"return_array_719"]
[null,null,null,720,"return_array_720"]
[null,null,null,721,"return_array_721"]
[null,null,null,722,"return_array_722"]
[null,null,null,723,"return_array_723"]
[null,null,null,724,"return_array_724"]
[null,null,null,725,"return_array_725"]
[null,null,null,726,"return_array_726"]
[null,null,null,727,"return_array_727"]
[null,null,null,728,"return_array_728"]
[null,null,null,729,"return_array_729"]
[null,null,null,730,"return_array_730"]
[null,null,null,731,"return_array_731"]
[null,null,null,732,"return_array_732"]
[null,null,null,733,"return_array_733"]
[null,null,null,734,"return_array_734"]
[null,null,null,735,"return_array_735"]
[null,null,null,736,"return_array_736"]
[null,null,null,737,"return_array_737"]
[null,null,null,738,"return_array_738"]
[null,null,null,739,"return_array_739"]
[null,null,null,740,"return_array_740"]
[null,null,null,741,"return_array_741"]
[null,null,null,742,"return_array_742"]
[null,null,null,743,"return_array_743"]
[null,null,null,744,"return_array_744"]
[null,null,null,745,"return_array_745"]
[null,null,null,746,"return_array_746"]
[null,null,null,747,"return_array_747"]
[null,null,null,748,"return_array_748"]
[null,null,null,749,"return_array_749"]
[null,null,null,750,"return_array_750"]
[null,null,null,751,"return_array_751"]
[null,null,null,752,"return_array_752"]
[null,null,null,753,"return_array_753"]
[null,null,null,754,"return_array_754"]
[null,null,null,755,"return_array_755"]
[null,null,null,756,"return_array_756"]
[null,null,null,757,"return_array_757"]
[null,null,null,758,"return_array_758"]
[null,null,null,759,"return_array_759"]
[null,null,null,760,"return_array_760"]
[null,null,null,761,"return_array_761"]
[null,null,null,762,"return_array_762"]
[null,null,null,763,"return_array_763"]
[null,null,null,764,"return_array_764"]
[null,null,null,765,"return_array_765"]
[null,null,null,766,"return_array_766"]
[null,null,null,767,"return_array_767"]
[null,null,null,768,"return_array_768"]
[null,null,null,769,"return_array_769"]
[null,null,null,770,"return_array_770"]
[null,null,null,771,"return_array_771"]
[null,null,null,772,"return_array_772"]
[null,null,null,773,"return_array_773"]
[null,null,null,774,"return_array_774"]
[null,null,null,775,"return_array_775"]
[null,null,null,776,"return_array_776"]
[null,null,null,777,"return_array_777"]
[null,null,null,778,"return_array_778"]
[null,null,null,779,"return_array_779"]
[null,null,null,780,"return_array_780"]
[null,null,null,781,"return_array_781"]
[null,null,null,782,"return_array_782"]
[null,null,null,783,"return_array_783"]
[null,null,null,784,"return_array_784"]
[null,null,null,785,"return_array_785"]
[null,null,null,786,"return_array_786"]
[null,null,null,787,"return_array_787"]
[null,null,null,788,"return_array_788"]
[null,null,null,789,"return_array_789"]
[null,null,null,790,"return_array_790"]
[null,null,null,791,"return_array_791"]
[null,null,null,792,"return_array_792"]
[null,null,null,793,"return_array_793"]
[null,null,null,794,"return_array_794"]
[null,null,null,795,"return_array_795"]
[null,null,null,796,"return_array_796"]
[null,null,null,797,"return_array_797"]
[null,null,null,798,"return_array_798"]
[null,null,null,799,"return_array_799"]
[null,null,null,800,"return_array_800"]
[null,null,null,801,"return_array_801"]
[null,null,null,802,"return_array_802"]
[null,null,null,803,"return_array_803"]
[null,null,null,804,"return_array_804"]
[null,null,null,805,"return_array_805"]
[null,null,null,806,"return_array_806"]
[null,null,null,807,"return_array_807"]
[null,null,null,808,"return_array_808"]
[null,null,null,809,"return_array_809"]
[null,null,null,810,"return_array_810"]
[null,null,null,811,"return_array_811"]
[null,null,null,812,"return_array_812"]
[null,null,null,813,"return_array_813"]
[null,null,null,814,"return_array_814"]
[null,null,null,815,"return_array_815"]
[null,null,null,816,"return_array_816"]
[null,null,null,817,"return_array_817"]
[null,null,null,818,"return_array_818"]
[null,null,null,819,"return_array_819"]
[null,null,null,820,"return_array_820"]
[null,null,null,821,"return_array_821"]
[null,null,null,822,"return_array_822"]
[null,null,null,823,"return_array_823"]
[null,null,null,824,"return_array_824"]
[null,null,null,825,"return_array_825"]
[null,null,null,826,"return_array_826"]
[null,null,null,827,"return_array_827"]
[null,null,null,828,"return_array_828"]
[null,null,null,829,"return_array_829"]
[null,null,null,830,"return_array_830"]
[null,null,null,831,"return_array_831"]
[null,null,null,832,"return_array_832"]
[null,null,null,833,"return_array_833"]
[null,null,null,834,"return_array_834"]
[null,null,null,835,"return_array_835"]
[null,null,null,836,"return_array_836"]
[null,null,null,837,"return_array_837"]
[null,null,null,838,"return_array_838"]
[null,null,null,839,"return_array_839"]
[null,null,null,840,"return_array_840"]
[null,null,null,841,"return_array_841"]
[null,null,null,842,"return_array_842"]
[null,null,null,843,"return_array_843"]
[null,null,null,844,"return_array_844"]
[null,null,null,845,"return_array_845"]
[null,null,null,846,"return_array_846"]
[null,null,null,847,"return_array_847"]
[null,null,null,848,"return_array_848"]
[null,null,null,849,"return_array_849"]
[null,null,null,850,"return_array_850"]
[null,null,null,851,"return_array_851"]
[null,null,null,852,"return_array_852"]
[null,null,null,853,"return_array_853"]
[null,null,null,854,"return_array_854"]
[null,null,null,855,"return_array_855"]
[null,null,null,856,"return_array_856"]
[null,null,null,857,"return_array_857"]
[null,null,null,858,"return_array_858"]
[null,null,null,859,"return_array_859"]
[null,null,null,860,"return_array_860"]
[null,null,null,861,"return_array_861"]
[null,null,null,862,"return_array_862"]
[null,null,null,863,"return_array_863"]
[null,null,null,864,"return_array_864"]
[null,null,null,865,"return_array_865"]
[null,null,null,866,"return_array_866"]
[null,null,null,867,"return_array_867"]
[null,null,null,868,"return_array_868"]
[null,null,null,869,"return_array_869"]
[null,null,null,870,"return_array_870"]
[null,null,null,871,"return_array_871"]
[null,null,null,872,"return_array_872"]
[null,null,null,873,"return_array_873"]
[null,null,null,874,"return_array_874"]
[null,null,null,875,"return_array_875"]
[null,null,null,876,"return_array_876"]
[null,null,null,877,"return_array_877"]
[null,null,null,878,"return_array_878"]
[null,null,null,879,"return_array_879"]
[null,null,null,880,"return_array_880"]
[null,null,null,881,"return_array_881"]
[null,null,null,882,"return_array_882"]
[null,null,null,883,"return_array_883"]
[null,null,null,884,"return_array_884"]
[null,null,null,885,"return_array_885"]
[null,null,null,886,"return_array_886"]
[null,null,null,887,"return_array_887"]
[null,null,null,888,"return_array_888"]
[null,null,null,889,"return_array_889"]
[null,null,null,890,"return_array_890"]
[null,null,null,891,"return_array_891"]
[null,null,null,892,"return_array_892"]
[null,null,null,893,"return_array_893"]
[null,null,null,894,"return_array_894"]
[null,null,null,895,"return_array_895"]
[null,null,null,896,"return_array_896"]
[null,null,null,897,"return_array_897"]
[null,null,null,898,"return_array_898"]
[null,null,null,899,"return_array_899"]
[null,null,null,900,"return_array_900"]
[null,null,null,901,"return_array_901"]
[null,null,null,902,"return_array_902"]
[null,null,null,903,"return_array_903"]
[null,null,null,904,"return_array_904"]
[null,null,null,905,"return_array_905"]
[null,null,null,906,"return_array_906"]
[null,null,null,907,"return_array_907"]
[null,null,null,908,"return_array_908"]
[null,null,null,909,"return_array_909"]
[null,null,null,910,"return_array_910"]
[null,null,null,911,"return_array_911"]
[null,null,null,912,"return_array_912"]
[null,null,null,913,"return_array_913"]
[null,null,null,914,"return_array_914"]
[null,null,null,915,"return_array_915"]
[null,null,null,916,"return_array_916"]
[null,null,null,917,"return_array_917"]
[null,null,null,918,"return_array_918"]
[null,null,null,919,"return_array_919"]
[null,null,null,920,"return_array_920"]
[null,null,null,921,"return_array_921"]
[null,null,null,922,"return_array_922"]
[null,null,null,923,"return_array_923"]
[null,null,null,924,"return_array_924"]
[null,null,null,925,"return_array_925"]
[null,null,null,926,"return_array_926"]
[null,null,null,927,"return_array_927"]
[null,null,null,928,"return_array_928"]
[null,null,null,929,"return_array_929"]
[null,null,null,930,"return_array_930"]
[null,null,null,931,"return_array_931"]
[null,null,null,932,"return_array_932"]
[null,null,null,933,"return_array_933"]
[null,null,null,934,"return_array_934"]
[null,null,null,935,"return_array_935"]
[null,null,null,936,"return_array_936"]
[null,null,null,937,"return_array_937"]
[null,null,null,938,"return_array_938"]
[null,null,null,939,"return_array_939"]
[null,null,null,940,"return_array_940"]
[null,null,null,941,"return_array_941"]
[null,null,null,942,"return_array_942"]
[null,null,null,943,"return_array_943"]
[null,null,null,944,"return_array_944"]
[null,null,null,945,"return_array_945"]
[null,null,null,946,"return_array_946"]
[null,null,null,947,"return_array_947"]
[null,null,null,948,"return_array_948"]
[null,null,null,949,"return_array_949"]
[null,null,null,950,"return_array_950"]
[null,null,null,951,"return_array_951"]
[null,null,null,952,"return_array_952"]
[null,null,null,953,"return_array_953"]
[null,null,null,954,"return_array_954"]
[null,null,null,955,"return_array_955"]
[null,null,null,956,"return_array_956"]
[null,null,null,957,"return_array_957"]
[null,null,null,958,"return_array_958"]
[null,null,null,959,"return_array_959"]
[null,null,null,960,"return_array_960"]
[null,null,null,961,"return_array_961"]
[null,null,null,962,"return_array_962"]
[null,null,null,963,"return_array_963"]
[null,null,null,964,"return_array_964"]
[null,null,null,965,"return_array_965"]
[null,null,null,966,"return_array_966"]
[null,null,null,967,"return_array_967"]
[null,null,null,968,"return_array_968"]
[null,null,null,969,"return_array_969"]
[null,null,null,970,"return_array_970"]
[null,null,null,971,"return_array_971"]
[null,null,null,972,"return_array_972"]
[null,null,null,973,"return_array_973"]
[null,null,null,974,"return_array_974"]
[null,null,null,975,"return_array_975"]
[null,null,null,976,"return_array_976"]
[null,null,null,977,"return_array_977"]
[null,null,null,978,"return_array_978"]
[null,null,null,979,"return_array_979"]
[null,null,null,980,"return_array_980"]
[null,null,null,981,"return_array_981"]
[null,null,null,982,"return_array_982"]
[null,null,null,983,"return_array_983"]
[null,null,null,984,"return_array_984"]
[null,null,null,985,"return_array_985"]
[null,null,null,986,"return_array_986"]
[null,null,null,987,"return_array_987"]
[null,null,null,988,"return_array_988"]
[null,null,null,989,"return_array_989"]
[null,null,null,990,"return_array_990"]
[null,null,null,991,"return_array_991"]
[null,null,null,992,"return_array_992"]
[null,null,null,993,"return_array_993"]
[null,null,null,994,"return_array_994"]
[null,null,null,995,"return_array_995"]
[null,null,null,996,"return_array_996"]
[null,null,null,997,"return_array_997"]
[null,null,null,998,"return_array_998"]
[null,null,null,999,"return_array_999"]
[null,null,null,1000,"return_array_1000"]
[null,null,null,1001,"return_array_1001"]
[null,null,null,1002,"return_array_1002"]
[null,null,null,1003,"return_array_1003"]
[null,null,null,1004,"return_array_1004"]
[null,null,null,1005,"return_array_1005"]
[null,null,null,1006,"return_array_1006"]
[null,null,null,1007,"return_array_1007"]
[null,null,null,1008,"return_array_1008"]
[null,null,null,1009,"return_array_1009"]
[null,null,null,1010,"return_array_1010"]
[null,null,null,1011,"return_array_1011"]
[null,null,null,1012,"return_array_1012"]
[null,null,null,1013,"return_array_1013"]
[null,null,null,1014,"return_array_1014"]
[null,null,null,1015,"return_array_1015"]
[null,null,null,1016,"return_array_1016"]
[null,null,null,1017,"return_array_1017"]
[null,null,null,1018,"return_array_1018"]
[null,null,null,1019,"return_array_1019"]
[null,null,null,1020,"return_array_1020"]
[null,null,null,1021,"return_array_1021"]
[null,null,null,1022,"return_array_1022"]
[null,null,null,1023,"return_array_1023"]
[null,null,null,1024,"return_array_1024"]
[null,null,null,1025,"return_array_1025"]
[null,null,null,1026,"return_array_1026"]
[null,null,null,1027,"return_array_1027"]
[null,null,null,1028,"return_array_1028"]
[null,null,null,1029,"return_array_1029"]
[null,null,null,1030,"return_array_1030"]
[null,null,null,1031,"return_array_1031"]
[null,null,null,1032,"return_array_1032"]
[null,null,null,1033,"return_array_1033"]
[null,null,null,1034,"return_array_1034"]
[null,null,null,1035,"return_array_1035"]
[null,null,null,1036,"return_array_1036"]
[null,null,null,1037,"return_array_1037"]
[null,null,null,1038,"return_array_1038"]
[null,null,null,1039,"return_array_1039"]
[null,null,null,1040,"return_array_1040"]
[null,null,null,1041,"return_array_1041"]
[null,null,null,1042,"return_array_1042"]
[null,null,null,1043,"return_array_1043"]
[null,null,null,1044,"return_array_1044"]
[null,null,null,1045,"return_array_1045"]
[null,null,null,1046,"return_array_1046"]
[null,null,null,1047,"return_array_1047"]
[null,null,null,1048,"return_array_1048"]
[null,null,null,1049,"return_array_1049"]
[null,null,null,1050,"return_array_1050"]
[null,null,null,1051,"return_array_1051"]
[null,null,null,1052,"return_array_1052"]
[null,null,null,1053,"return_array_1053"]
[null,null,null,1054,"return_array_1054"]
[null,null,null,1055,"return_array_1055"]
[null,null,null,1056,"return_array_1056"]
[null,null,null,1057,"return_array_1057"]
[null,null,null,1058,"return_array_1058"]
[null,null,null,1059,"return_array_1059"]
[null,null,null,1060,"return_array_1060"]
[null,null,null,1061,"return_array_1061"]
[null,null,null,1062,"return_array_1062"]
[null,null,null,1063,"return_array_1063"]
[null,null,null,1064,"return_array_1064"]
[null,null,null,1065,"return_array_1065"]
[null,null,null,1066,"return_array_1066"]
[null,null,null,1067,"return_array_1067"]
[null,null,null,1068,"return_array_1068"]
[null,null,null,1069,"return_array_1069"]
[null,null,null,1070,"return_array_1070"]
[null,null,null,1071,"return_array_1071"]
[null,null,null,1072,"return_array_1072"]
[null,null,null,1073,"return_array_1073"]
[null,null,null,1074,"return_array_1074"]
[null,null,null,1075,"return_array_1075"]
[null,null,null,1076,"return_array_1076"]
[null,null,null,1077,"return_array_1077"]
[null,null,null,1078,"return_array_1078"]
[null,null,null,1079,"return_array_1079"]
[null,null,null,1080,"return_array_1080"]
[null,null,null,1081,"return_array_1081"]
[null,null,null,1082,"return_array_1082"]
[null,null,null,1083,"return_array_1083"]
[null,null,null,1084,"return_array_1084"]
[null,null,null,1085,"return_array_1085"]
[null,null,null,1086,"return_array_1086"]
[null,null,null,1087,"return_array_1087"]
[null,null,null,1088,"return_array_1088"]
[null,null,null,1089,"return_array_1089"]
[null,null,null,1090,"return_array_1090"]
[null,null,null,1091,"return_array_1091"]
[null,null,null,1092,"return_array_1092"]
[null,null,null,1093,"return_array_1093"]
[null,null,null,1094,"return_array_1094"]
[null,null,null,1095,"return_array_1095"]
[null,null,null,1096,"return_array_1096"]
[null,null,null,1097,"return_array_1097"]
[null,null,null,1098,"return_array_1098"]
[null,null,null,1099,"return_array_1099"]
[null,null,null,1100,"return_array_1100"]
[null,null,null,1101,"return_array_1101"]
[null,null,null,1102,"return_array_1102"]
[null,null,null,1103,"return_array_1103"]
[null,null,null,1104,"return_array_1104"]
[null,null,null,1105,"return_array_1105"]
[null,null,null,1106,"return_array_1106"]
[null,null,null,1107,"return_array_1107"]
[null,null,null,1108,"return_array_1108"]
[null,null,null,1109,"return_array_1109"]
[null,null,null,1110,"return_array_1110"]
[null,null,null,1111,"return_array_1111"]
[null,null,null,1112,"return_array_1112"]
[null,null,null,1113,"return_array_1113"]
[null,null,null,1114,"return_array_1114"]
[null,null,null,1115,"return_array_1115"]
[null,null,null,1116,"return_array_1116"]
[null,null,null,1117,"return_array_1117"]
[null,null,null,1118,"return_array_1118"]
[null,null,null,1119,"return_array_1119"]
[null,null,null,1120,"return_array_1120"]
[null,null,null,1121,"return_array_1121"]
[null,null,null,1122,"return_array_1122"]
[null,null,null,1123,"return_array_1123"]
[null,null,null,1124,"return_array_1124"]
[null,null,null,1125,"return_array_1125"]
[null,null,null,1126,"return_array_1126"]
[null,null,null,1127,"return_array_1127"]
[null,null,null,1128,"return_array_1128"]
[null,null,null,1129,"return_array_1129"]
[null,null,null,1130,"return_array_1130"]
[null,null,null,1131,"return_array_1131"]
[null,null,null,1132,"return_array_1132"]
[null,null,null,1133,"return_array_1133"]
[null,null,null,1134,"return_array_1134"]
[null,null,null,1135,"return_array_1135"]
[null,null,null,1136,"return_array_1136"]
[null,null,null,1137,"return_array_1137"]
[null,null,null,1138,"return_array_1138"]
[null,null,null,1139,"return_array_1139"]
[null,null,null,1140,"return_array_1140"]
[null,null,null,1141,"return_array_1141"]
[null,null,null,1142,"return_array_1142"]
[null,null,null,1143,"return_array_1143"]
[null,null,null,1144,"return_array_1144"]
[null,null,null,1145,"return_array_1145"]
[null,null,null,1146,"return_array_1146"]
[null,null,null,1147,"return_array_1147"]
[null,null,null,1148,"return_array_1148"]
[null,null,null,1149,"return_array_1149"]
[null,null,null,1150,"return_array_1150"]
[null,null,null,1151,"return_array_1151"]
[null,null,null,1152,"return_array_1152"]
[null,null,null,1153,"return_array_1153"]
[null,null,null,1154,"return_array_1154"]
[null,null,null,1155,"return_array_1155"]
[null,null,null,1156,"return_array_1156"]
[null,null,null,1157,"return_array_1157"]
[null,null,null,1158,"return_array_1158"]
[null,null,null,1159,"return_array_1159"]
[null,null,null,1160,"return_array_1160"]
[null,null,null,1161,"return_array_1161"]
[null,null,null,1162,"return_array_1162"]
[null,null,null,1163,"return_array_1163"]
[null,null,null,1164,"return_array_1164"]
[null,null,null,1165,"return_array_1165"]
[null,null,null,1166,"return_array_1166"]
[null,null,null,1167,"return_array_1167"]
[null,null,null,1168,"return_array_1168"]
[null,null,null,1169,"return_array_1169"]
[null,null,null,1170,"return_array_1170"]
[null,null,null,1171,"return_array_1171"]
[null,null,null,1172,"return_array_1172"]
[null,null,null,1173,"return_array_1173"]
[null,null,null,1174,"return_array_1174"]
[null,null,null,1175,"return_array_1175"]
[null,null,null,1176,"return_array_1176"]
[null,null,null,1177,"return_array_1177"]
[null,null,null,1178,"return_array_1178"]
[null,null,null,1179,"return_array_1179"]
[null,null,null,1180,"return_array_1180"]
[null,null,null,1181,"return_array_1181"]
[null,null,null,1182,"return_array_1182"]
[null,null,null,1183,"return_array_1183"]
[null,null,null,1184,"return_array_1184"]
[null,null,null,1185,"return_array_1185"]
[null,null,null,1186,"return_array_1186"]
[null,null,null,1187,"return_array_1187"]
[null,null,null,1188,"return_array_1188"]
[null,null,null,1189,"return_array_1189"]
[null,null,null,1190,"return_array_1190"]
[null,null,null,1191,"return_array_1191"]
[null,null,null,1192,"return_array_1192"]
[null,null,null,1193,"return_array_1193"]
[null,null,null,1194,"return_array_1194"]
[null,null,null,1195,"return_array_1195"]
[null,null,null,1196,"return_array_1196"]
[null,null,null,1197,"return_array_1197"]
[null,null,null,1198,"return_array_1198"]
[null,null,null,1199,"return_array_1199"]
[null,null,null,1200,"return_array_1200"]
[null,null,null,1201,"return_array_1201"]
[null,null,null,1202,"return_array_1202"]
[null,null,null,1203,"return_array_1203"]
[null,null,null,1204,"return_array_1204"]
[null,null,null,1205,"return_array_1205"]
[null,null,null,1206,"return_array_1206"]
[null,null,null,1207,"return_array_1207"]
[null,null,null,1208,"return_array_1208"]
[null,null,null,1209,"return_array_1209"]
[null,null,null,1210,"return_array_1210"]
[null,null,null,1211,"return_array_1211"]
[null,null,null,1212,"return_array_1212"]
[null,null,null,1213,"return_array_1213"]
[null,null,null,1214,"return_array_1214"]
[null,null,null,1215,"return_array_1215"]
[null,null,null,1216,"return_array_1216"]
[null,null,null,1217,"return_array_1217"]
[null,null,null,1218,"return_array_1218"]
[null,null,null,1219,"return_array_1219"]
[null,null,null,1220,"return_array_1220"]
[null,null,null,1221,"return_array_1221"]
[null,null,null,1222,"return_array_1222"]
[null,null,null,1223,"return_array_1223"]
[null,null,null,1224,"return_array_1224"]
[null,null,null,1225,"return_array_1225"]
[null,null,null,1226,"return_array_1226"]
[null,null,null,1227,"return_array_1227"]
[null,null,null,1228,"return_array_1228"]
[null,null,null,1229,"return_array_1229"]
[null,null,null,1230,"return_array_1230"]
[null,null,null,1231,"return_array_1231"]
[null,null,null,1232,"return_array_1232"]
[null,null,null,1233,"return_array_1233"]
[null,null,null,1234,"return_array_1234"]
[null,null,null,1235,"return_array_1235"]
[null,null,null,1236,"return_array_1236"]
[null,null,null,1237,"return_array_1237"]
[null,null,null,1238,"return_array_1238"]
[null,null,null,1239,"return_array_1239"]
[null,null,null,1240,"return_array_1240"]
[null,null,null,1241,"return_array_1241"]
[null,null,null,1242,"return_array_1242"]
[null,null,null,1243,"return_array_1243"]
[null,null,null,1244,"return_array_1244"]
[null,null,null,1245,"return_array_1245"]
[null,null,null,1246,"return_array_1246"]
[null,null,null,1247,"return_array_1247"]
[null,null,null,1248,"return_array_1248"]
[null,null,null,1249,"return_array_1249"]
[null,null,null,1250,"return_array_1250"]
[null,null,null,1251,"return_array_1251"]
[null,null,null,1252,"return_array_1252"]
[null,null,null,1253,"return_array_1253"]
[null,null,null,1254,"return_array_1254"]
[null,null,null,1255,"return_array_1255"]
[null,null,null,1256,"return_array_1256"]
[null,null,null,1257,"return_array_1257"]
[null,null,null,1258,"return_array_1258"]
[null,null,null,1259,"return_array_1259"]
[null,null,null,1260,"return_array_1260"]
[null,null,null,1261,"return_array_1261"]
[null,null,null,1262,"return_array_1262"]
[null,null,null,1263,"return_array_1263"]
[null,null,null,1264,"return_array_1264"]
[null,null,null,1265,"return_array_1265"]
[null,null,null,1266,"return_array_1266"]
[null,null,null,1267,"return_array_1267"]
[null,null,null,1268,"return_array_1268"]
[null,null,null,1269,"return_array_1269"]
[null,null,null,1270,"return_array_1270"]
[null,null,null,1271,"return_array_1271"]
[null,null,null,1272,"return_array_1272"]
[null,null,null,1273,"return_array_1273"]
[null,null,null,1274,"return_array_1274"]
[null,null,null,1275,"return_array_1275"]
[null,null,null,1276,"return_array_1276"]
[null,null,null,1277,"return_array_1277"]
[null,null,null,1278,"return_array_1278"]
[null,null,null,1279,"return_array_1279"]
[null,null,null,1280,"return_array_1280"]
[null,null,null,1281,"return_array_1281"]
[null,null,null,1282,"return_array_1282"]
[null,null,null,1283,"return_array_1283"]
[null,null,null,1284,"return_array_1284"]
[null,null,null,1285,"return_array_1285"]
[null,null,null,1286,"return_array_1286"]
[null,null,null,1287,"return_array_1287"]
[null,null,null,1288,"return_array_1288"]
[null,null,null,1289,"return_array_1289"]
[null,null,null,1290,"return_array_1290"]
[null,null,null,1291,"return_array_1291"]
[null,null,null,1292,"return_array_1292"]
[null,null,null,1293,"return_array_1293"]
[null,null,null,1294,"return_array_1294"]
[null,null,null,1295,"return_array_1295"]
[null,null,null,1296,"return_array_1296"]
[null,null,null,1297,"return_array_1297"]
[null,null,null,1298,"return_array_1298"]
[null,null,null,1299,"return_array_1299"]
[null,null,null,1300,"return_array_1300"]
[null,null,null,1301,"return_array_1301"]
[null,null,null,1302,"return_array_1302"]
[null,null,null,1303,"return_array_1303"]
[null,null,null,1304,"return_array_1304"]
[null,null,null,1305,"return_array_1305"]
[null,null,null,1306,"return_array_1306"]
[null,null,null,1307,"return_array_1307"]
[null,null,null,1308,"return_array_1308"]
[null,null,null,1309,"return_array_1309"]
[null,null,null,1310,"return_array_1310"]
[null,null,null,1311,"return_array_1311"]
[null,null,null,1312,"return_array_1312"]
[null,null,null,1313,"return_array_1313"]
[null,null,null,1314,"return_array_1314"]
[null,null,null,1315,"return_array_1315"]
[null,null,null,1316,"return_array_1316"]
[null,null,null,1317,"return_array_1317"]
[null,null,null,1318,"return_array_1318"]
[null,null,null,1319,"return_array_1319"]
[null,null,null,1320,"return_array_1320"]
[null,null,null,1321,"return_array_1321"]
[null,null,null,1322,"return_array_1322"]
[null,null,null,1323,"return_array_1323"]
[null,null,null,1324,"return_array_1324"]
[null,null,null,1325,"return_array_1325"]
[null,null,null,1326,"return_array_1326"]
[null,null,null,1327,"return_array_1327"]
[null,null,null,1328,"return_array_1328"]
[null,null,null,1329,"return_array_1329"]
[null,null,null,1330,"return_array_1330"]
[null,null,null,1331,"return_array_1331"]
[null,null,null,1332,"return_array_1332"]
[null,null,null,1333,"return_array_1333"]
[null,null,null,1334,"return_array_1334"]
[null,null,null,1335,"return_array_1335"]
[null,null,null,1336,"return_array_1336"]
[null,null,null,1337,"return_array_1337"]
[null,null,null,1338,"return_array_1338"]
[null,null,null,1339,"return_array_1339"]
[null,null,null,1340,"return_array_1340"]
[null,null,null,1341,"return_array_1341"]
[null,null,null,1342,"return_array_1342"]
[null,null,null,1343,"return_array_1343"]
[null,null,null,1344,"return_array_1344"]
[null,null,null,1345,"return_array_1345"]
[null,null,null,1346,"return_array_1346"]
[null,null,null,1347,"return_array_1347"]
[null,null,null,1348,"return_array_1348"]
[null,null,null,1349,"return_array_1349"]
[null,null,null,1350,"return_array_1350"]
[null,null,null,1351,"return_array_1351"]
[null,null,null,1352,"return_array_1352"]
[null,null,null,1353,"return_array_1353"]
[null,null,null,1354,"return_array_1354"]
[null,null,null,1355,"return_array_1355"]
[null,null,null,1356,"return_array_1356"]
[null,null,null,1357,"return_array_1357"]
[null,null,null,1358,"return_array_1358"]
[null,null,null,1359,"return_array_1359"]
[null,null,null,1360,"return_array_1360"]
[null,null,null,1361,"return_array_1361"]
[null,null,null,1362,"return_array_1362"]
[null,null,null,1363,"return_array_1363"]
[null,null,null,1364,"return_array_1364"]
[null,null,null,1365,"return_array_1365"]
[null,null,null,1366,"return_array_1366"]
[null,null,null,1367,"return_array_1367"]
[null,null,null,1368,"return_array_1368"]
[null,null,null,1369,"return_array_1369"]
[null,null,null,1370,"return_array_1370"]
[null,null,null,1371,"return_array_1371"]
[null,null,null,1372,"return_array_1372"]
[null,null,null,1373,"return_array_1373"]
[null,null,null,1374,"return_array_1374"]
[null,null,null,1375,"return_array_1375"]
[null,null,null,1376,"return_array_1376"]
[null,null,null,1377,"return_array_1377"]
[null,null,null,1378,"return_array_1378"]
[null,null,null,1379,"return_array_1379"]
[null,null,null,1380,"return_array_1380"]
[null,null,null,1381,"return_array_1381"]
[null,null,null,1382,"return_array_1382"]
[null,null,null,1383,"return_array_1383"]
[null,null,null,1384,"return_array_1384"]
[null,null,null,1385,"return_array_1385"]
[null,null,null,1386,"return_array_1386"]
[null,null,null,1387,"return_array_1387"]
[null,null,null,1388,"return_array_1388"]
[null,null,null,1389,"return_array_1389"]
[null,null,null,1390,"return_array_1390"]
[null,null,null,1391,"return_array_1391"]
[null,null,null,1392,"return_array_1392"]
[null,null,null,1393,"return_array_1393"]
[null,null,null,1394,"return_array_1394"]
[null,null,null,1395,"return_array_1395"]
[null,null,null,1396,"return_array_1396"]
[null,null,null,1397,"return_array_1397"]
[null,null,null,1398,"return_array_1398"]
[null,null,null,1399,"return_array_1399"]
[null,null,null,1400,"return_array_1400"]
[null,null,null,1401,"return_array_1401"]
[null,null,null,1402,"return_array_1402"]
[null,null,null,1403,"return_array_1403"]
[null,null,null,1404,"return_array_1404"]
[null,null,null,1405,"return_array_1405"]
[null,null,null,1406,"return_array_1406"]
[null,null,null,1407,"return_array_1407"]
[null,null,null,1408,"return_array_1408"]
[null,null,null,1409,"return_array_1409"]
[null,null,null,1410,"return_array_1410"]
[null,null,null,1411,"return_array_1411"]
[null,null,null,1412,"return_array_1412"]
[null,null,null,1413,"return_array_1413"]
[null,null,null,1414,"return_array_1414"]
[null,null,null,1415,"return_array_1415"]
[null,null,null,1416,"return_array_1416"]
[null,null,null,1417,"return_array_1417"]
[null,null,null,1418,"return_array_1418"]
[null,null,null,1419,"return_array_1419"]
[null,null,null,1420,"return_array_1420"]
[null,null,null,1421,"return_array_1421"]
[null,null,null,1422,"return_array_1422"]
[null,null,null,1423,"return_array_1423"]
[null,null,null,1424,"return_array_1424"]
[null,null,null,1425,"return_array_1425"]
[null,null,null,1426,"return_array_1426"]
[null,null,null,1427,"return_array_1427"]
[null,null,null,1428,"return_array_1428"]
[null,null,null,1429,"return_array_1429"]
[null,null,null,1430,"return_array_1430"]
[null,null,null,1431,"return_array_1431"]
[null,null,null,1432,"return_array_1432"]
[null,null,null,1433,"return_array_1433"]
[null,null,null,1434,"return_array_1434"]
[null,null,null,1435,"return_array_1435"]
[null,null,null,1436,"return_array_1436"]
[null,null,null,1437,"return_array_1437"]
[null,null,null,1438,"return_array_1438"]
[null,null,null,1439,"return_array_1439"]
[null,null,null,1440,"return_array_1440"]
[null,null,null,1441,"return_array_1441"]
[null,null,null,1442,"return_array_1442"]
[null,null,null,1443,"return_array_1443"]
[null,null,null,1444,"return_array_1444"]
[null,null,null,1445,"return_array_1445"]
[null,null,null,1446,"return_array_1446"]
[null,null,null,1447,"return_array_1447"]
[null,null,null,1448,"return_array_1448"]
[null,null,null,1449,"return_array_1449"]
[null,null,null,1450,"return_array_1450"]
[null,null,null,1451,"return_array_1451"]
[null,null,null,1452,"return_array_1452"]
[null,null,null,1453,"return_array_1453"]
[null,null,null,1454,"return_array_1454"]
[null,null,null,1455,"return_array_1455"]
[null,null,null,1456,"return_array_1456"]
[null,null,null,1457,"return_array_1457"]
[null,null,null,1458,"return_array_1458"]
[null,null,null,1459,"return_array_1459"]
[null,null,null,1460,"return_array_1460"]
[null,null,null,1461,"return_array_1461"]
[null,null,null,1462,"return_array_1462"]
[null,null,null,1463,"return_array_1463"]
[null,null,null,1464,"return_array_1464"]
[null,null,null,1465,"return_array_1465"]
[null,null,null,1466,"return_array_1466"]
[null,null,null,1467,"return_array_1467"]
[null,null,null,1468,"return_array_1468"]
[null,null,null,1469,"return_array_1469"]
[null,null,null,1470,"return_array_1470"]
[null,null,null,1471,"return_array_1471"]
[null,null,null,1472,"return_array_1472"]
[null,null,null,1473,"return_array_1473"]
[null,null,null,1474,"return_array_1474"]
[null,null,null,1475,"return_array_1475"]
[null,null,null,1476,"return_array_1476"]
[null,null,null,1477,"return_array_1477"]
[null,null,null,1478,"return_array_1478"]
[null,null,null,1479,"return_array_1479"]
[null,null,null,1480,"return_array_1480"]
[null,null,null,1481,"return_array_1481"]
[null,null,null,1482,"return_array_1482"]
[null,null,null,1483,"return_array_1483"]
[null,null,null,1484,"return_array_1484"]
[null,null,null,1485,"return_array_1485"]
[null,null,null,1486,"return_array_1486"]
[null,null,null,1487,"return_array_1487"]
[null,null,null,1488,"return_array_1488"]
[null,null,null,1489,"return_array_1489"]
[null,null,null,1490,"return_array_1490"]
[null,null,null,1491,"return_array_1491"]
[null,null,null,1492,"return_array_1492"]
[null,null,null,1493,"return_array_1493"]
[null,null,null,1494,"return_array_1494"]
[null,null,null,1495,"return_array_1495"]
[null,null,null,1496,"return_array_1496"]
[null,null,null,1497,"return_array_1497"]
[null,null,null,1498,"return_array_1498"]
[null,null,null,1499,"return_array_1499"]
[null,null,null,1500,"return_array_1500"]
[null,null,null,1501,"return_array_1501"]
[null,null,null,1502,"return_array_1502"]
[null,null,null,1503,"return_array_1503"]
[null,null,null,1504,"return_array_1504"]
[null,null,null,1505,"return_array_1505"]
[null,null,null,1506,"return_array_1506"]
[null,null,null,1507,"return_array_1507"]
[null,null,null,1508,"return_array_1508"]
[null,null,null,1509,"return_array_1509"]
[null,null,null,1510,"return_array_1510"]
[null,null,null,1511,"return_array_1511"]
[null,null,null,1512,"return_array_1512"]
[null,null,null,1513,"return_array_1513"]
[null,null,null,1514,"return_array_1514"]
[null,null,null,1515,"return_array_1515"]
[null,null,null,1516,"return_array_1516"]
[null,null,null,1517,"return_array_1517"]
[null,null,null,1518,"return_array_1518"]
[null,null,null,1519,"return_array_1519"]
[null,null,null,1520,"return_array_1520"]
[null,null,null,1521,"return_array_1521"]
[null,null,null,1522,"return_array_1522"]
[null,null,null,1523,"return_array_1523"]
[null,null,null,1524,"return_array_1524"]
[null,null,null,1525,"return_array_1525"]
[null,null,null,1526,"return_array_1526"]
[null,null,null,1527,"return_array_1527"]
[null,null,null,1528,"return_array_1528"]
[null,null,null,1529,"return_array_1529"]
[null,null,null,1530,"return_array_1530"]
[null,null,null,1531,"return_array_1531"]
[null,null,null,1532,"return_array_1532"]
[null,null,null,1533,"return_array_1533"]
[null,null,null,1534,"return_array_1534"]
[null,null,null,1535,"return_array_1535"]
[null,null,null,1536,"return_array_1536"]
[null,null,null,1537,"return_array_1537"]
[null,null,null,1538,"return_array_1538"]
[null,null,null,1539,"return_array_1539"]
[null,null,null,1540,"return_array_1540"]
[null,null,null,1541,"return_array_1541"]
[null,null,null,1542,"return_array_1542"]
[null,null,null,1543,"return_array_1543"]
[null,null,null,1544,"return_array_1544"]
[null,null,null,1545,"return_array_1545"]
[null,null,null,1546,"return_array_1546"]
[null,null,null,1547,"return_array_1547"]
[null,null,null,1548,"return_array_1548"]
[null,null,null,1549,"return_array_1549"]
[null,null,null,1550,"return_array_1550"]
[null,null,null,1551,"return_array_1551"]
[null,null,null,1552,"return_array_1552"]
[null,null,null,1553,"return_array_1553"]
[null,null,null,1554,"return_array_1554"]
[null,null,null,1555,"return_array_1555"]
[null,null,null,1556,"return_array_1556"]
[null,null,null,1557,"return_array_1557"]
[null,null,null,1558,"return_array_1558"]
[null,null,null,1559,"return_array_1559"]
[null,null,null,1560,"return_array_1560"]
[null,null,null,1561,"return_array_1561"]
[null,null,null,1562,"return_array_1562"]
[null,null,null,1563,"return_array_1563"]
[null,null,null,1564,"return_array_1564"]
[null,null,null,1565,"return_array_1565"]
[null,null,null,1566,"return_array_1566"]
[null,null,null,1567,"return_array_1567"]
[null,null,null,1568,"return_array_1568"]
[null,null,null,1569,"return_array_1569"]
[null,null,null,1570,"return_array_1570"]
[null,null,null,1571,"return_array_1571"]
[null,null,null,1572,"return_array_1572"]
[null,null,null,1573,"return_array_1573"]
[null,null,null,1574,"return_array_1574"]
[null,null,null,1575,"return_array_1575"]
[null,null,null,1576,"return_array_1576"]
[null,null,null,1577,"return_array_1577"]
[null,null,null,1578,"return_array_1578"]
[null,null,null,1579,"return_array_1579"]
[null,null,null,1580,"return_array_1580"]
[null,null,null,1581,"return_array_1581"]
[null,null,null,1582,"return_array_1582"]
[null,null,null,1583,"return_array_1583"]
[null,null,null,1584,"return_array_1584"]
[null,null,null,1585,"return_array_1585"]
[null,null,null,1586,"return_array_1586"]
[null,null,null,1587,"return_array_1587"]
[null,null,null,1588,"return_array_1588"]
[null,null,null,1589,"return_array_1589"]
[null,null,null,1590,"return_array_1590"]
[null,null,null,1591,"return_array_1591"]
[null,null,null,1592,"return_array_1592"]
[null,null,null,1593,"return_array_1593"]
[null,null,null,1594,"return_array_1594"]
[null,null,null,1595,"return_array_1595"]
[null,null,null,1596,"return_array_1596"]
[null,null,null,1597,"return_array_1597"]
[null,null,null,1598,"return_array_1598"]
[null,null,null,1599,"return_array_1599"]
[null,null,null,1600,"return_array_1600"]
[null,null,null,1601,"return_array_1601"]
[null,null,null,1602,"return_array_1602"]
[null,null,null,1603,"return_array_1603"]
[null,null,null,1604,"return_array_1604"]
[null,null,null,1605,"return_array_1605"]
[null,null,null,1606,"return_array_1606"]
[null,null,null,1607,"return_array_1607"]
[null,null,null,1608,"return_array_1608"]
[null,null,null,1609,"return_array_1609"]
[null,null,null,1610,"return_array_1610"]
[null,null,null,1611,"return_array_1611"]
[null,null,null,1612,"return_array_1612"]
[null,null,null,1613,"return_array_1613"]
[null,null,null,1614,"return_array_1614"]
[null,null,null,1615,"return_array_1615"]
[null,null,null,1616,"return_array_1616"]
[null,null,null,1617,"return_array_1617"]
[null,null,null,1618,"return_array_1618"]
[null,null,null,1619,"return_array_1619"]
[null,null,null,1620,"return_array_1620"]
[null,null,null,1621,"return_array_1621"]
[null,null,null,1622,"return_array_1622"]
[null,null,null,1623,"return_array_1623"]
[null,null,null,1624,"return_array_1624"]
[null,null,null,1625,"return_array_1625"]
[null,null,null,1626,"return_array_1626"]
[null,null,null,1627,"return_array_1627"]
[null,null,null,1628,"return_array_1628"]
[null,null,null,1629,"return_array_1629"]
[null,null,null,1630,"return_array_1630"]
[null,null,null,1631,"return_array_1631"]
[null,null,null,1632,"return_array_1632"]
[null,null,null,1633,"return_array_1633"]
[null,null,null,1634,"return_array_1634"]
[null,null,null,1635,"return_array_1635"]
[null,null,null,1636,"return_array_1636"]
[null,null,null,1637,"return_array_1637"]
[null,null,null,1638,"return_array_1638"]
[null,null,null,1639,"return_array_1639"]
[null,null,null,1640,"return_array_1640"]
[null,null,null,1641,"return_array_1641"]
[null,null,null,1642,"return_array_1642"]
[null,null,null,1643,"return_array_1643"]
[null,null,null,1644,"return_array_1644"]
[null,null,null,1645,"return_array_1645"]
[null,null,null,1646,"return_array_1646"]
[null,null,null,1647,"return_array_1647"]
[null,null,null,1648,"return_array_1648"]
[null,null,null,1649,"return_array_1649"]
[null,null,null,1650,"return_array_1650"]
[null,null,null,1651,"return_array_1651"]
[null,null,null,1652,"return_array_1652"]
[null,null,null,1653,"return_array_1653"]
[null,null,null,1654,"return_array_1654"]
[null,null,null,1655,"return_array_1655"]
[null,null,null,1656,"return_array_1656"]
[null,null,null,1657,"return_array_1657"]
[null,null,null,1658,"return_array_1658"]
[null,null,null,1659,"return_array_1659"]
[null,null,null,1660,"return_array_1660"]
[null,null,null,1661,"return_array_1661"]
[null,null,null,1662,"return_array_1662"]
[null,null,null,1663,"return_array_1663"]
[null,null,null,1664,"return_array_1664"]
[null,null,null,1665,"return_array_1665"]
[null,null,null,1666,"return_array_1666"]
[null,null,null,1667,"return_array_1667"]
[null,null,null,1668,"return_array_1668"]
[null,null,null,1669,"return_array_1669"]
[null,null,null,1670,"return_array_1670"]
[null,null,null,1671,"return_array_1671"]
[null,null,null,1672,"return_array_1672"]
[null,null,null,1673,"return_array_1673"]
[null,null,null,1674,"return_array_1674"]
[null,null,null,1675,"return_array_1675"]
[null,null,null,1676,"return_array_1676"]
[null,null,null,1677,"return_array_1677"]
[null,null,null,1678,"return_array_1678"]
[null,null,null,1679,"return_array_1679"]
[null,null,null,1680,"return_array_1680"]
[null,null,null,1681,"return_array_1681"]
[null,null,null,1682,"return_array_1682"]
[null,null,null,1683,"return_array_1683"]
[null,null,null,1684,"return_array_1684"]
[null,null,null,1685,"return_array_1685"]
[null,null,null,1686,"return_array_1686"]
[null,null,null,1687,"return_array_1687"]
[null,null,null,1688,"return_array_1688"]
[null,null,null,1689,"return_array_1689"]
[null,null,null,1690,"return_array_1690"]
[null,null,null,1691,"return_array_1691"]
[null,null,null,1692,"return_array_1692"]
[null,null,null,1693,"return_array_1693"]
[null,null,null,1694,"return_array_1694"]
[null,null,null,1695,"return_array_1695"]
[null,null,null,1696,"return_array_1696"]
[null,null,null,1697,"return_array_1697"]
[null,null,null,1698,"return_array_1698"]
[null,null,null,1699,"return_array_1699"]
[null,null,null,1700,"return_array_1700"]
[null,null,null,1701,"return_array_1701"]
[null,null,null,1702,"return_array_1702"]
[null,null,null,1703,"return_array_1703"]
[null,null,null,1704,"return_array_1704"]
[null,null,null,1705,"return_array_1705"]
[null,null,null,1706,"return_array_1706"]
[null,null,null,1707,"return_array_1707"]
[null,null,null,1708,"return_array_1708"]
[null,null,null,1709,"return_array_1709"]
[null,null,null,1710,"return_array_1710"]
[null,null,null,1711,"return_array_1711"]
[null,null,null,1712,"return_array_1712"]
[null,null,null,1713,"return_array_1713"]
[null,null,null,1714,"return_array_1714"]
[null,null,null,1715,"return_array_1715"]
[null,null,null,1716,"return_array_1716"]
[null,null,null,1717,"return_array_1717"]
[null,null,null,1718,"return_array_1718"]
[null,null,null,1719,"return_array_1719"]
[null,null,null,1720,"return_array_1720"]
[null,null,null,1721,"return_array_1721"]
[null,null,null,1722,"return_array_1722"]
[null,null,null,1723,"return_array_1723"]
[null,null,null,1724,"return_array_1724"]
[null,null,null,1725,"return_array_1725"]
[null,null,null,1726,"return_array_1726"]
[null,null,null,1727,"return_array_1727"]
[null,null,null,1728,"return_array_1728"]
[null,null,null,1729,"return_array_1729"]
[null,null,null,1730,"return_array_1730"]
[null,null,null,1731,"return_array_1731"]
[null,null,null,1732,"return_array_1732"]
[null,null,null,1733,"return_array_1733"]
[null,null,null,1734,"return_array_1734"]
[null,null,null,1735,"return_array_1735"]
[null,null,null,1736,"return_array_1736"]
[null,null,null,1737,"return_array_1737"]
[null,null,null,1738,"return_array_1738"]
[null,null,null,1739,"return_array_1739"]
[null,null,null,1740,"return_array_1740"]
[null,null,null,1741,"return_array_1741"]
[null,null,null,1742,"return_array_1742"]
[null,null,null,1743,"return_array_1743"]
[null,null,null,1744,"return_array_1744"]
[null,null,null,1745,"return_array_1745"]
[null,null,null,1746,"return_array_1746"]
[null,null,null,1747,"return_array_1747"]
[null,null,null,1748,"return_array_1748"]
[null,null,null,1749,"return_array_1749"]
[null,null,null,1750,"return_array_1750"]
[null,null,null,1751,"return_array_1751"]
[null,null,null,1752,"return_array_1752"]
[null,null,null,1753,"return_array_1753"]
[null,null,null,1754,"return_array_1754"]
[null,null,null,1755,"return_array_1755"]
[null,null,null,1756,"return_array_1756"]
[null,null,null,1757,"return_array_1757"]
[null,null,null,1758,"return_array_1758"]
[null,null,null,1759,"return_array_1759"]
[null,null,null,1760,"return_array_1760"]
[null,null,null,1761,"return_array_1761"]
[null,null,null,1762,"return_array_1762"]
[null,null,null,1763,"return_array_1763"]
[null,null,null,1764,"return_array_1764"]
[null,null,null,1765,"return_array_1765"]
[null,null,null,1766,"return_array_1766"]
[null,null,null,1767,"return_array_1767"]
[null,null,null,1768,"return_array_1768"]
[null,null,null,1769,"return_array_1769"]
[null,null,null,1770,"return_array_1770"]
[null,null,null,1771,"return_array_1771"]
[null,null,null,1772,"return_array_1772"]
[null,null,null,1773,"return_array_1773"]
[null,null,null,1774,"return_array_1774"]
[null,null,null,1775,"return_array_1775"]
[null,null,null,1776,"return_array_1776"]
[null,null,null,1777,"return_array_1777"]
[null,null,null,1778,"return_array_1778"]
[null,null,null,1779,"return_array_1779"]
[null,null,null,1780,"return_array_1780"]
[null,null,null,1781,"return_array_1781"]
[null,null,null,1782,"return_array_1782"]
[null,null,null,1783,"return_array_1783"]
[null,null,null,1784,"return_array_1784"]
[null,null,null,1785,"return_array_1785"]
[null,null,null,1786,"return_array_1786"]
[null,null,null,1787,"return_array_1787"]
[null,null,null,1788,"return_array_1788"]
[null,null,null,1789,"return_array_1789"]
[null,null,null,1790,"return_array_1790"]
[null,null,null,1791,"return_array_1791"]
[null,null,null,1792,"return_array_1792"]
[null,null,null,1793,"return_array_1793"]
[null,null,null,1794,"return_array_1794"]
[null,null,null,1795,"return_array_1795"]
[null,null,null,1796,"return_array_1796"]
[null,null,null,1797,"return_array_1797"]
[null,null,null,1798,"return_array_1798"]
[null,null,null,1799,"return_array_1799"]
[null,null,null,1800,"return_array_1800"]
[null,null,null,1801,"return_array_1801"]
[null,null,null,1802,"return_array_1802"]
[null,null,null,1803,"return_array_1803"]
[null,null,null,1804,"return_array_1804"]
[null,null,null,1805,"return_array_1805"]
[null,null,null,1806,"return_array_1806"]
[null,null,null,1807,"return_array_1807"]
[null,null,null,1808,"return_array_1808"]
[null,null,null,1809,"return_array_1809"]
[null,null,null,1810,"return_array_1810"]
[null,null,null,1811,"return_array_1811"]
[null,null,null,1812,"return_array_1812"]
[null,null,null,1813,"return_array_1813"]
[null,null,null,1814,"return_array_1814"]
[null,null,null,1815,"return_array_1815"]
[null,null,null,1816,"return_array_1816"]
[null,null,null,1817,"return_array_1817"]
[null,null,null,1818,"return_array_1818"]
[null,null,null,1819,"return_array_1819"]
[null,null,null,1820,"return_array_1820"]
[null,null,null,1821,"return_array_1821"]
[null,null,null,1822,"return_array_1822"]
[null,null,null,1823,"return_array_1823"]
[null,null,null,1824,"return_array_1824"]
[null,null,null,1825,"return_array_1825"]
[null,null,null,1826,"return_array_1826"]
[null,null,null,1827,"return_array_1827"]
[null,null,null,1828,"return_array_1828"]
[null,null,null,1829,"return_array_1829"]
[null,null,null,1830,"return_array_1830"]
[null,null,null,1831,"return_array_1831"]
[null,null,null,1832,"return_array_1832"]
[null,null,null,1833,"return_array_1833"]
[null,null,null,1834,"return_array_1834"]
[null,null,null,1835,"return_array_1835"]
[null,null,null,1836,"return_array_1836"]
[null,null,null,1837,"return_array_1837"]
[null,null,null,1838,"return_array_1838"]
[null,null,null,1839,"return_array_1839"]
[null,null,null,1840,"return_array_1840"]
[null,null,null,1841,"return_array_1841"]
[null,null,null,1842,"return_array_1842"]
[null,null,null,1843,"return_array_1843"]
[null,null,null,1844,"return_array_1844"]
[null,null,null,1845,"return_array_1845"]
[null,null,null,1846,"return_array_1846"]
[null,null,null,1847,"return_array_1847"]
[null,null,null,1848,"return_array_1848"]
[null,null,null,1849,"return_array_1849"]
[null,null,null,1850,"return_array_1850"]
[null,null,null,1851,"return_array_1851"]
[null,null,null,1852,"return_array_1852"]
[null,null,null,1853,"return_array_1853"]
[null,null,null,1854,"return_array_1854"]
[null,null,null,1855,"return_array_1855"]
[null,null,null,1856,"return_array_1856"]
[null,null,null,1857,"return_array_1857"]
[null,null,null,1858,"return_array_1858"]
[null,null,null,1859,"return_array_1859"]
[null,null,null,1860,"return_array_1860"]
[null,null,null,1861,"return_array_1861"]
[null,null,null,1862,"return_array_1862"]
[null,null,null,1863,"return_array_1863"]
[null,null,null,1864,"return_array_1864"]
[null,null,null,1865,"return_array_1865"]
[null,null,null,1866,"return_array_1866"]
[null,null,null,1867,"return_array_1867"]
[null,null,null,1868,"return_array_1868"]
[null,null,null,1869,"return_array_1869"]
[null,null,null,1870,"return_array_1870"]
[null,null,null,1871,"return_array_1871"]
[null,null,null,1872,"return_array_1872"]
[null,null,null,1873,"return_array_1873"]
[null,null,null,1874,"return_array_1874"]
[null,null,null,1875,"return_array_1875"]
[null,null,null,1876,"return_array_1876"]
[null,null,null,1877,"return_array_1877"]
[null,null,null,1878,"return_array_1878"]
[null,null,null,1879,"return_array_1879"]
[null,null,null,1880,"return_array_1880"]
[null,null,null,1881,"return_array_1881"]
[null,null,null,1882,"return_array_1882"]
[null,null,null,1883,"return_array_1883"]
[null,null,null,1884,"return_array_1884"]
[null,null,null,1885,"return_array_1885"]
[null,null,null,1886,"return_array_1886"]
[null,null,null,1887,"return_array_1887"]
[null,null,null,1888,"return_array_1888"]
[null,null,null,1889,"return_array_1889"]
[null,null,null,1890,"return_array_1890"]
[null,null,null,1891,"return_array_1891"]
[null,null,null,1892,"return_array_1892"]
[null,null,null,1893,"return_array_1893"]
[null,null,null,1894,"return_array_1894"]
[null,null,null,1895,"return_array_1895"]
[null,null,null,1896,"return_array_1896"]
[null,null,null,1897,"return_array_1897"]
[null,null,null,1898,"return_array_1898"]
[null,null,null,1899,"return_array_1899"]
[null,null,null,1900,"return_array_1900"]
[null,null,null,1901,"return_array_1901"]
[null,null,null,1902,"return_array_1902"]
[null,null,null,1903,"return_array_1903"]
[null,null,null,1904,"return_array_1904"]
[null,null,null,1905,"return_array_1905"]
[null,null,null,1906,"return_array_1906"]
[null,null,null,1907,"return_array_1907"]
[null,null,null,1908,"return_array_1908"]
[null,null,null,1909,"return_array_1909"]
[null,null,null,1910,"return_array_1910"]
[null,null,null,1911,"return_array_1911"]
[null,null,null,1912,"return_array_1912"]
[null,null,null,1913,"return_array_1913"]
[null,null,null,1914,"return_array_1914"]
[null,null,null,1915,"return_array_1915"]
[null,null,null,1916,"return_array_1916"]
[null,null,null,1917,"return_array_1917"]
[null,null,null,1918,"return_array_1918"]
[null,null,null,1919,"return_array_1919"]
[null,null,null,1920,"return_array_1920"]
[null,null,null,1921,"return_array_1921"]
[null,null,null,1922,"return_array_1922"]
[null,null,null,1923,"return_array_1923"]
[null,null,null,1924,"return_array_1924"]
[null,null,null,1925,"return_array_1925"]
[null,null,null,1926,"return_array_1926"]
[null,null,null,1927,"return_array_1927"]
[null,null,null,1928,"return_array_1928"]
[null,null,null,1929,"return_array_1929"]
[null,null,null,1930,"return_array_1930"]
[null,null,null,1931,"return_array_1931"]
[null,null,null,1932,"return_array_1932"]
[null,null,null,1933,"return_array_1933"]
[null,null,null,1934,"return_array_1934"]
[null,null,null,1935,"return_array_1935"]
[null,null,null,1936,"return_array_1936"]
[null,null,null,1937,"return_array_1937"]
[null,null,null,1938,"return_array_1938"]
[null,null,null,1939,"return_array_1939"]
[null,null,null,1940,"return_array_1940"]
[null,null,null,1941,"return_array_1941"]
[null,null,null,1942,"return_array_1942"]
[null,null,null,1943,"return_array_1943"]
[null,null,null,1944,"return_array_1944"]
[null,null,null,1945,"return_array_1945"]
[null,null,null,1946,"return_array_1946"]
[null,null,null,1947,"return_array_1947"]
[null,null,null,1948,"return_array_1948"]
[null,null,null,1949,"return_array_1949"]
[null,null,null,1950,"return_array_1950"]
[null,null,null,1951,"return_array_1951"]
[null,null,null,1952,"return_array_1952"]
[null,null,null,1953,"return_array_1953"]
[null,null,null,1954,"return_array_1954"]
[null,null,null,1955,"return_array_1955"]
[null,null,null,1956,"return_array_1956"]
[null,null,null,1957,"return_array_1957"]
[null,null,null,1958,"return_array_1958"]
[null,null,null,1959,"return_array_1959"]
[null,null,null,1960,"return_array_1960"]
[null,null,null,1961,"return_array_1961"]
[null,null,null,1962,"return_array_1962"]
[null,null,null,1963,"return_array_1963"]
[null,null,null,1964,"return_array_1964"]
[null,null,null,1965,"return_array_1965"]
[null,null,null,1966,"return_array_1966"]
[null,null,null,1967,"return_array_1967"]
[null,null,null,1968,"return_array_1968"]
[null,null,null,1969,"return_array_1969"]
[null,null,null,1970,"return_array_1970"]
[null,null,null,1971,"return_array_1971"]
[null,null,null,1972,"return_array_1972"]
[null,null,null,1973,"return_array_1973"]
[null,null,null,1974,"return_array_1974"]
[null,null,null,1975,"return_array_1975"]
[null,null,null,1976,"return_array_1976"]
[null,null,null,1977,"return_array_1977"]
[null,null,null,1978,"return_array_1978"]
[null,null,null,1979,"return_array_1979"]
[null,null,null,1980,"return_array_1980"]
[null,null,null,1981,"return_array_1981"]
[null,null,null,1982,"return_array_1982"]
[null,null,null,1983,"return_array_1983"]
[null,null,null,1984,"return_array_1984"]
[null,null,null,1985,"return_array_1985"]
[null,null,null,1986,"return_array_1986"]
[null,null,null,1987,"return_array_1987"]
[null,null,null,1988,"return_array_1988"]
[null,null,null,1989,"return_array_1989"]
[null,null,null,1990,"return_array_1990"]
[null,null,null,1991,"return_array_1991"]
[null,null,null,1992,"return_array_1992"]
[null,null,null,1993,"return_array_1993"]
[null,null,null,1994,"return_array_1994"]
[null,null,null,1995,"return_array_1995"]
[null,null,null,1996,"return_array_1996"]
[null,null,null,1997,"return_array_1997"]
[null,null,null,1998,"return_array_1998"]
[null,null,null,1999,"return_array_1999"]
[null,null,null,2393,"return_array_2393"]
[null,null,null,2639,"return_array_2639"]
[null,null,null,3464,"return_array_3464"]
[null,null,null,3735,"return_array_3735"]
[null,null,null,4150,"return_array_4150"]
[null,null,null,4885,"return_array_4885"]
[null,null,null,5156,"return_array_5156"]
[null,null,null,5981,"return_array_5981"]
[null,null,null,6405,"return_array_6405"]
[null,null,null,6577,"return_array_6577"]
[null,null,null,7402,"return_array_7402"]
[null,null,null,7673,"return_array_7673"]
[null,null,null,8002,"return_array_8002"]
[null,null,null,8823,"return_array_8823"]
[null,null,null,9094,"return_array_9094"]
[null,null,null,9919,"return_array_9919"]
[null,null,null,10257,"return_array_10257"]
[null,null,null,10515,"return_array_10515"]
[null,null,null,11340,"return_array_11340"]
[null,null,null,11611,"return_array_11611"]
[null,null,null,12352,"return_array_12352"]
[null,null,null,12706,"return_array_12706"]
[null,null,null,13032,"return_array_13032"]
[null,null,null,13857,"return_array_13857"]
[null,null,null,14109,"return_array_14109"]
[null,null,null,14952,"return_array_14952"]
[null,null,null,15278,"return_array_15278"]
[null,null,null,15549,"return_array_15549"]
[null,null,null,16204,"return_array_16204"]
[null,null,null,16644,"return_array_16644"]
[null,null,null,16970,"return_array_16970"]
[null,null,null,17795,"return_array_17795"]
[null,null,null,17961,"return_array_17961"]
[null,null,null,18890,"return_array_18890"]
[null,null,null,19216,"return_array_19216"]
[null,null,null,19487,"return_array_19487"]
[null,null,null,20056,"return_array_20056"]
[null,null,null,20582,"return_array_20582"]
[null,null,null,21407,"return_array_21407"]
[null,null,null,21733,"return_array_21733"]
[null,null,null,22311,"return_array_22311"]
[null,null,null,22828,"return_array_22828"]
[null,null,null,23099,"return_array_23099"]
[null,null,null,23924,"return_array_23924"]
[null,null,null,24406,"return_array_24406"]
[null,null,null,24520,"return_array_24520"]
[null,null,null,25345,"return_array_25345"]
[null,null,null,25671,"return_array_25671"]
[null,null,null,26163,"return_array_26163"]
[null,null,null,26766,"return_array_26766"]
[null,null,null,27037,"return_array_27037"]
[null,null,null,27862,"return_array_27862"]
[null,null,null,28258,"return_array_28258"]
[null,null,null,28458,"return_array_28458"]
[null,null,null,29283,"return_array_29283"]
[null,null,null,29554,"return_array_29554"]
[null,null,null,30015,"return_array_30015"]
[null,null,null,30704,"return_array_30704"]
[null,null,null,30975,"return_array_30975"]
[null,null,null,31800,"return_array_31800"]
[null,null,null,32110,"return_array_32110"]
[null,null,null,32895,"return_array_32895"]
[null,null,null,33221,"return_array_33221"]
[null,null,null,33492,"return_array_33492"]
[null,null,null,34365,"return_array_34365"]
[null,null,null,34642,"return_array_34642"]
[null,null,null,35412,"return_array_35412"]
[null,null,null,35738,"return_array_35738"]
[null,null,null,35962,"return_array_35962"]
[null,null,null,36833,"return_array_36833"]
[null,null,null,37159,"return_array_37159"]
[null,null,null,37430,"return_array_37430"]
[null,null,null,38217,"return_array_38217"]
[null,null,null,38580,"return_array_38580"]
[null,null,null,39350,"return_array_39350"]
[null,null,null,39676,"return_array_39676"]
[null,null,null,39974,"return_array_39974"]
[null,null,null,40771,"return_array_40771"]
[null,null,null,41097,"return_array_41097"]
[null,null,null,41867,"return_array_41867"]
[null,null,null,42069,"return_array_42069"]
[null,null,null,42518,"return_array_42518"]
[null,null,null,43288,"return_array_43288"]
[null,null,null,43614,"return_array_43614"]
[null,null,null,44324,"return_array_44324"]
[null,null,null,44709,"return_array_44709"]
[null,null,null,45035,"return_array_45035"]
[null,null,null,45805,"return_array_45805"]
[null,null,null,45921,"return_array_45921"]
[null,null,null,46456,"return_array_46456"]
[null,null,null,47226,"return_array_47226"]
[null,null,null,47552,"return_array_47552"]
[null,null,null,48176,"return_array_48176"]
[null,null,null,48647,"return_array_48647"]
[null,null,null,48973,"return_array_48973"]
[null,null,null,49743,"return_array_49743"]
[null,null,null,50271,"return_array_50271"]
[null,null,null,50838,"return_array_50838"]
[null,null,null,51164,"return_array_51164"]
[null,null,null,51490,"return_array_51490"]
[null,null,null,52028,"return_array_52028"]
[null,null,null,52585,"return_array_52585"]
[null,null,null,52911,"return_array_52911"]
[null,null,null,53681,"return_array_53681"]
[null,null,null,54123,"return_array_54123"]
[null,null,null,54776,"return_array_54776"]
[null,null,null,55102,"return_array_55102"]
[null,null,null,55428,"return_array_55428"]
[null,null,null,55880,"return_array_55880"]
[null,null,null,56523,"return_array_56523"]
[null,null,null,57293,"return_array_57293"]
[null,null,null,57619,"return_array_57619"]
[null,null,null,57975,"return_array_57975"]
[null,null,null,58714,"return_array_58714"]
[null,null,null,59040,"return_array_59040"]
[null,null,null,59366,"return_array_59366"]
[null,null,null,60230,"return_array_60230"]
[null,null,null,60461,"return_array_60461"]
[null,null,null,61231,"return_array_61231"]
[null,null,null,61557,"return_array_61557"]
[null,null,null,62325,"return_array_62325"]
[null,null,null,62652,"return_array_62652"]
[null,null,null,62978,"return_array_62978"]
[null,null,null,63803,"return_array_63803"]
[null,null,null,64082,"return_array_64082"]
[null,null,null,64399,"return_array_64399"]
[null,null,null,65169,"return_array_65169"]
[null,null,null,65495,"return_array_65495"]
[null,null,null,66177,"return_array_66177"]
[null,null,null,66590,"return_array_66590"]
[null,null,null,66916,"return_array_66916"]
[null,null,null,67686,"return_array_67686"]
[null,null,null,67934,"return_array_67934"]
[null,null,null,68337,"return_array_68337"]
[null,null,null,69107,"return_array_69107"]
[null,null,null,69433,"return_array_69433"]
[null,null,null,70029,"return_array_70029"]
[null,null,null,70528,"return_array_70528"]
[null,null,null,70854,"return_array_70854"]
[null,null,null,71624,"return_array_71624"]
[null,null,null,72284,"return_array_72284"]
[null,null,null,72774,"return_array_72774"]
[null,null,null,73045,"return_array_73045"]
[null,null,null,73371,"return_array_73371"]
[null,null,null,74041,"return_array_74041"]
[null,null,null,74466,"return_array_74466"]
[null,null,null,75291,"return_array_75291"]
[null,null,null,75562,"return_array_75562"]
[null,null,null,76136,"return_array_76136"]
[null,null,null,76712,"return_array_76712"]
[null,null,null,76983,"return_array_76983"]
[null,null,null,77808,"return_array_77808"]
[null,null,null,77893,"return_array_77893"]
[null,null,null,78404,"return_array_78404"]
[null,null,null,79229,"return_array_79229"]
[null,null,null,79500,"return_array_79500"]
[null,null,null,79988,"return_array_79988"]
[null,null,null,80650,"return_array_80650"]
[null,null,null,80921,"return_array_80921"]
[null,null,null,81746,"return_array_81746"]
[null,null,null,82243,"return_array_82243"]
[null,null,null,82342,"return_array_82342"]
[null,null,null,83167,"return_array_83167"]
[null,null,null,83438,"return_array_83438"]
[null,null,null,83840,"return_array_83840"]
[null,null,null,84533,"return_array_84533"]
[null,null,null,84859,"return_array_84859"]
[null,null,null,85684,"return_array_85684"]
[null,null,null,86095,"return_array_86095"]
[null,null,null,86779,"return_array_86779"]
[null,null,null,87105,"return_array_87105"]
[null,null,null,87376,"return_array_87376"]
[null,null,null,88190,"return_array_88190"]
[null,null,null,88471,"return_array_88471"]
[null,null,null,88797,"return_array_88797"]
[null,null,null,89622,"return_array_89622"]
[null,null,null,89947,"return_array_89947"]
[null,null,null,90717,"return_array_90717"]
[null,null,null,91043,"return_array_91043"]
[null,null,null,91314,"return_array_91314"]
[null,null,null,92042,"return_array_92042"]
[null,null,null,92409,"return_array_92409"]
[null,null,null,93234,"return_array_93234"]
[null,null,null,93560,"return_array_93560"]
[null,null,null,93799,"return_array_93799"]
[null,null,null,94655,"return_array_94655"]
[null,null,null,94926,"return_array_94926"]
[null,null,null,95751,"return_array_95751"]
[null,null,null,95894,"return_array_95894"]
[null,null,null,96347,"return_array_96347"]
[null,null,null,97172,"return_array_97172"]
[null,null,null,97498,"return_array_97498"]
[null,null,null,98149,"return_array_98149"]
[null,null,null,98593,"return_array_98593"]
[null,null,null,98864,"return_array_98864"]
[null,null,null,99689,"return_array_99689"]
[null,null,null,100244,"return_array_100244"]
[null,null,null,100285,"return_array_100285"]
[null,null,null,101110,"return_array_101110"]
[null,null,null,101381,"return_array_101381"]
[null,null,null,102001,"return_array_102001"]
[null,null,null,102531,"return_array_102531"]
[null,null,null,102802,"return_array_102802"]
[null,null,null,103627,"return_array_103627"]
[null,null,null,104096,"return_array_104096"]
[null,null,null,104722,"return_array_104722"]
[null,null,null,105048,"return_array_105048"]
[null,null,null,105319,"return_array_105319"]
[null,null,null,105853,"return_array_105853"]
[null,null,null,106469,"return_array_106469"]
[null,null,null,106740,"return_array_106740"]
[null,null,null,107565,"return_array_107565"]
[null,null,null,107948,"return_array_107948"]
[null,null,null,108660,"return_array_108660"]
[null,null,null,108986,"return_array_108986"]
[null,null,null,109257,"return_array_109257"]
[null,null,null,110203,"return_array_110203"]
[null,null,null,110407,"return_array_110407"]
[null,null,null,111177,"return_array_111177"]
[null,null,null,111503,"return_array_111503"]
[null,null,null,111960,"return_array_111960"]
[null,null,null,112598,"return_array_112598"]
[null,null,null,112924,"return_array_112924"]
[null,null,null,113694,"return_array_113694"]
[null,null,null,114055,"return_array_114055"]
[null,null,null,114345,"return_array_114345"]
[null,null,null,115115,"return_array_115115"]
[null,null,null,115441,"return_array_115441"]
[null,null,null,115812,"return_array_115812"]
[null,null,null,116536,"return_array_116536"]
[null,null,null,116862,"return_array_116862"]
[null,null,null,117632,"return_array_117632"]
[null,null,null,117907,"return_array_117907"]
[null,null,null,118283,"return_array_118283"]
[null,null,null,119053,"return_array_119053"]
[null,null,null,119379,"return_array_119379"]
[null,null,null,120162,"return_array_120162"]
[null,null,null,120474,"return_array_120474"]
[null,null,null,120800,"return_array_120800"]
[null,null,null,121570,"return_array_121570"]
[null,null,null,121759,"return_array_121759"]
[null,null,null,122665,"return_array_122665"]
[null,null,null,122991,"return_array_122991"]
[null,null,null,123317,"return_array_123317"]
[null,null,null,124014,"return_array_124014"]
[null,null,null,124412,"return_array_124412"]
[null,null,null,124738,"return_array_124738"]
[null,null,null,125508,"return_array_125508"]
[null,null,null,126109,"return_array_126109"]
[null,null,null,126603,"return_array_126603"]
[null,null,null,126929,"return_array_126929"]
[null,null,null,127255,"return_array_127255"]
[null,null,null,127866,"return_array_127866"]
[null,null,null,128350,"return_array_128350"]
[null,null,null,129120,"return_array_129120"]
[null,null,null,129446,"return_array_129446"]
[null,null,null,129961,"return_array_129961"]
[null,null,null,130541,"return_array_130541"]
[null,null,null,130867,"return_array_130867"]
[null,null,null,131193,"return_array_131193"]
[null,null,null,131718,"return_array_131718"]
[null,null,null,132288,"return_array_132288"]
[null,null,null,133058,"return_array_133058"]
[null,null,null,133384,"return_array_133384"]
[null,null,null,133813,"return_array_133813"]
[null,null,null,134479,"return_array_134479"]
[null,null,null,134805,"return_array_134805"]
[null,null,null,135630,"return_array_135630"]
[null,null,null,136068,"return_array_136068"]
[null,null,null,136226,"return_array_136226"]
[null,null,null,136996,"return_array_136996"]
[null,null,null,137322,"return_array_137322"]
[null,null,null,137665,"return_array_137665"]
[null,null,null,138417,"return_array_138417"]
[null,null,null,138743,"return_array_138743"]
[null,null,null,139513,"return_array_139513"]
[null,null,null,139920,"return_array_139920"]
[null,null,null,140164,"return_array_140164"]
[null,null,null,140934,"return_array_140934"]
[null,null,null,141260,"return_array_141260"]
[null,null,null,142015,"return_array_142015"]
[null,null,null,142355,"return_array_142355"]
[null,null,null,142681,"return_array_142681"]
[null,null,null,143451,"return_array_143451"]
[null,null,null,143772,"return_array_143772"]
[null,null,null,144601,"return_array_144601"]
[null,null,null,144872,"return_array_144872"]
[null,null,null,145198,"return_array_145198"]
[null,null,null,146027,"return_array_146027"]
[null,null,null,146293,"return_array_146293"]
[null,null,null,147118,"return_array_147118"]
[null,null,null,147389,"return_array_147389"]
[null,null,null,148122,"return_array_148122"]
[null,null,null,148539,"return_array_148539"]
[null,null,null,148810,"return_array_148810"]
[null,null,null,149136,"return_array_149136"]
[null,null,null,149879,"return_array_149879"]
[null,null,null,150231,"return_array_150231"]
[null,null,null,151056,"return_array_151056"]
[null,null,null,151327,"return_array_151327"]
[null,null,null,151974,"return_array_151974"]
[null,null,null,152477,"return_array_152477"]
[null,null,null,152748,"return_array_152748"]
[null,null,null,153573,"return_array_153573"]
[null,null,null,153731,"return_array_153731"]
[null,null,null,154169,"return_array_154169"]
[null,null,null,154994,"return_array_154994"]
[null,null,null,155265,"return_array_155265"]
[null,null,null,155826,"return_array_155826"]
[null,null,null,156360,"return_array_156360"]
[null,null,null,156686,"return_array_156686"]
[null,null,null,157511,"return_array_157511"]
[null,null,null,158081,"return_array_158081"]
[null,null,null,158606,"return_array_158606"]
[null,null,null,158932,"return_array_158932"]
[null,null,null,159203,"return_array_159203"]
[null,null,null,159678,"return_array_159678"]
[null,null,null,160298,"return_array_160298"]
[null,null,null,160624,"return_array_160624"]
[null,null,null,161449,"return_array_161449"]
[null,null,null,161933,"return_array_161933"]
[null,null,null,162544,"return_array_162544"]
[null,null,null,162870,"return_array_162870"]
[null,null,null,163141,"return_array_163141"]
[null,null,null,164028,"return_array_164028"]
[null,null,null,164236,"return_array_164236"]
[null,null,null,165061,"return_array_165061"]
[null,null,null,165387,"return_array_165387"]
[null,null,null,165785,"return_array_165785"]
[null,null,null,166482,"return_array_166482"]
[null,null,null,166753,"return_array_166753"]
[null,null,null,167578,"return_array_167578"]
[null,null,null,167880,"return_array_167880"]
[null,null,null,168174,"return_array_168174"]
[null,null,null,168999,"return_array_168999"]
[null,null,null,169325,"return_array_169325"]
[null,null,null,169637,"return_array_169637"]
[null,null,null,170420,"return_array_170420"]
[null,null,null,170691,"return_array_170691"]
[null,null,null,171516,"return_array_171516"]
[null,null,null,171732,"return_array_171732"]
[null,null,null,172112,"return_array_172112"]
[null,null,null,172937,"return_array_172937"]
[null,null,null,173208,"return_array_173208"]
[null,null,null,173987,"return_array_173987"]
[null,null,null,174358,"return_array_174358"]
[null,null,null,174629,"return_array_174629"]
[null,null,null,175454,"return_array_175454"]
[null,null,null,175584,"return_array_175584"]
[null,null,null,176549,"return_array_176549"]
[null,null,null,176875,"return_array_176875"]
[null,null,null,177146,"return_array_177146"]
[null,null,null,177839,"return_array_177839"]
[null,null,null,178296,"return_array_178296"]
[null,null,null,178567,"return_array_178567"]
[null,null,null,179392,"return_array_179392"]
[null,null,null,179934,"return_array_179934"]
[null,null,null,180487,"return_array_180487"]
[null,null,null,180813,"return_array_180813"]
[null,null,null,181084,"return_array_181084"]
[null,null,null,181691,"return_array_181691"]
[null,null,null,182234,"return_array_182234"]
[null,null,null,183004,"return_array_183004"]
[null,null,null,183330,"return_array_183330"]
[null,null,null,183946,"return_array_183946"]
[null,null,null,184425,"return_array_184425"]
[null,null,null,184751,"return_array_184751"]
[null,null,null,185521,"return_array_185521"]
[null,null,null,185543,"return_array_185543"]
[null,null,null,186172,"return_array_186172"]
[null,null,null,186942,"return_array_186942"]
[null,null,null,187268,"return_array_187268"]
[null,null,null,187798,"return_array_187798"]
[null,null,null,188363,"return_array_188363"]
[null,null,null,188689,"return_array_188689"]
[null,null,null,189459,"return_array_189459"]
[null,null,null,189893,"return_array_189893"]
[null,null,null,190055,"return_array_190055"]
[null,null,null,190880,"return_array_190880"]
[null,null,null,191206,"return_array_191206"]
[null,null,null,191650,"return_array_191650"]
[null,null,null,192301,"return_array_192301"]
[null,null,null,192627,"return_array_192627"]
[null,null,null,193397,"return_array_193397"]
[null,null,null,193745,"return_array_193745"]
[null,null,null,194492,"return_array_194492"]
[null,null,null,194818,"return_array_194818"]
[null,null,null,195144,"return_array_195144"]
[null,null,null,196000,"return_array_196000"]
[null,null,null,196239,"return_array_196239"]
[null,null,null,196565,"return_array_196565"]
[null,null,null,197335,"return_array_197335"]
[null,null,null,197597,"return_array_197597"]
[null,null,null,198430,"return_array_198430"]
[null,null,null,198756,"return_array_198756"]
[null,null,null,199082,"return_array_199082"]
[null,null,null,199852,"return_array_199852"]
[null,null,null,200177,"return_array_200177"]
[null,null,null,200947,"return_array_200947"]
[null,null,null,201273,"return_array_201273"]
[null,null,null,201947,"return_array_201947"]
[null,null,null,202368,"return_array_202368"]
[null,null,null,202694,"return_array_202694"]
[null,null,null,203020,"return_array_203020"]
[null,null,null,203704,"return_array_203704"]
[null,null,null,204115,"return_array_204115"]
[null,null,null,204885,"return_array_204885"]
[null,null,null,205211,"return_array_205211"]
[null,null,null,205799,"return_array_205799"]
[null,null,null,206306,"return_array_206306"]
[null,null,null,206632,"return_array_206632"]
[null,null,null,207457,"return_array_207457"]
[null,null,null,207556,"return_array_207556"]
[null,null,null,208053,"return_array_208053"]
[null,null,null,208823,"return_array_208823"]
[null,null,null,209149,"return_array_209149"]
[null,null,null,209651,"return_array_209651"]
[null,null,null,210244,"return_array_210244"]
[null,null,null,210570,"return_array_210570"]
[null,null,null,211340,"return_array_211340"]
[null,null,null,211906,"return_array_211906"]
[null,null,null,211991,"return_array_211991"]
[null,null,null,212761,"return_array_212761"]
[null,null,null,213087,"return_array_213087"]
[null,null,null,213503,"return_array_213503"]
[null,null,null,214182,"return_array_214182"]
[null,null,null,214508,"return_array_214508"]
[null,null,null,215278,"return_array_215278"]
[null,null,null,215758,"return_array_215758"]
[null,null,null,216428,"return_array_216428"]
[null,null,null,216699,"return_array_216699"]
[null,null,null,217025,"return_array_217025"]
[null,null,null,217515,"return_array_217515"]
[null,null,null,218120,"return_array_218120"]
[null,null,null,218945,"return_array_218945"]
[null,null,null,219216,"return_array_219216"]
[null,null,null,219610,"return_array_219610"]
[null,null,null,220366,"return_array_220366"]
[null,null,null,220637,"return_array_220637"]
[null,null,null,220963,"return_array_220963"]
[null,null,null,221865,"return_array_221865"]
[null,null,null,222058,"return_array_222058"]
[null,null,null,222883,"return_array_222883"]
[null,null,null,223154,"return_array_223154"]
[null,null,null,223462,"return_array_223462"]
[null,null,null,224304,"return_array_224304"]
[null,null,null,224575,"return_array_224575"]
[null,null,null,225400,"return_array_225400"]
[null,null,null,225717,"return_array_225717"]
[null,null,null,225996,"return_array_225996"]
[null,null,null,226821,"return_array_226821"]
[null,null,null,227092,"return_array_227092"]
[null,null,null,227812,"return_array_227812"]
[null,null,null,228187,"return_array_228187"]
[null,null,null,228513,"return_array_228513"]
[null,null,null,229338,"return_array_229338"]
[null,null,null,229569,"return_array_229569"]
[null,null,null,229934,"return_array_229934"]
[null,null,null,230759,"return_array_230759"]
[null,null,null,231030,"return_array_231030"]
[null,null,null,231664,"return_array_231664"]
[null,null,null,232125,"return_array_232125"]
[null,null,null,232451,"return_array_232451"]
[null,null,null,233276,"return_array_233276"]
[null,null,null,233421,"return_array_233421"]
[null,null,null,234371,"return_array_234371"]
[null,null,null,234697,"return_array_234697"]
[null,null,null,234968,"return_array_234968"]
[null,null,null,235516,"return_array_235516"]
[null,null,null,236063,"return_array_236063"]
[null,null,null,236888,"return_array_236888"]
[null,null,null,237214,"return_array_237214"]
[null,null,null,237771,"return_array_237771"]
[null,null,null,238309,"return_array_238309"]
[null,null,null,238580,"return_array_238580"]
[null,null,null,238906,"return_array_238906"]
[null,null,null,239866,"return_array_239866"]
[null,null,null,240001,"return_array_240001"]
[null,null,null,240826,"return_array_240826"]
[null,null,null,241152,"return_array_241152"]
[null,null,null,241623,"return_array_241623"]
[null,null,null,242247,"return_array_242247"]
[null,null,null,242518,"return_array_242518"]
[null,null,null,243343,"return_array_243343"]
[null,null,null,243718,"return_array_243718"]
[null,null,null,243939,"return_array_243939"]
[null,null,null,244764,"return_array_244764"]
[null,null,null,245035,"return_array_245035"]
[null,null,null,245475,"return_array_245475"]
[null,null,null,246185,"return_array_246185"]
[null,null,null,246456,"return_array_246456"]
[null,null,null,247281,"return_array_247281"]
[null,null,null,247570,"return_array_247570"]
[null,null,null,248376,"return_array_248376"]
[null,null,null,248702,"return_array_248702"]
[null,null,null,248973,"return_array_248973"]
[null,null,null,249825,"return_array_249825"]
[null,null,null,250123,"return_array_250123"]
[null,null,null,250394,"return_array_250394"]
[null,null,null,251219,"return_array_251219"]
[null,null,null,251545,"return_array_251545"]
[null,null,null,252066,"return_array_252066"]
[null,null,null,252640,"return_array_252640"]
[null,null,null,252911,"return_array_252911"]
[null,null,null,253736,"return_array_253736"]
[null,null,null,254161,"return_array_254161"]
[null,null,null,254831,"return_array_254831"]
[null,null,null,255157,"return_array_255157"]
[null,null,null,255428,"return_array_255428"]
[null,null,null,255918,"return_array_255918"]
[null,null,null,256578,"return_array_256578"]
[null,null,null,257348,"return_array_257348"]
[null,null,null,257674,"return_array_257674"]
[null,null,null,258013,"return_array_258013"]
[null,null,null,258769,"return_array_258769"]
[null,null,null,259095,"return_array_259095"]
[null,null,null,259366,"return_array_259366"]
[null,null,null,260268,"return_array_260268"]
[null,null,null,260516,"return_array_260516"]
[null,null,null,261286,"return_array_261286"]
[null,null,null,261612,"return_array_261612"]
[null,null,null,262025,"return_array_262025"]
[null,null,null,262707,"return_array_262707"]
[null,null,null,263033,"return_array_263033"]
[null,null,null,263803,"return_array_263803"]
[null,null,null,264120,"return_array_264120"]
[null,null,null,264454,"return_array_264454"]
[null,null,null,265224,"return_array_265224"]
[null,null,null,265550,"return_array_265550"]
[null,null,null,265877,"return_array_265877"]
[null,null,null,266645,"return_array_266645"]
[null,null,null,266971,"return_array_266971"]
[null,null,null,267741,"return_array_267741"]
[null,null,null,267972,"return_array_267972"]
[null,null,null,268392,"return_array_268392"]
[null,null,null,269162,"return_array_269162"]
[null,null,null,269488,"return_array_269488"]
[null,null,null,270227,"return_array_270227"]
[null,null,null,270583,"return_array_270583"]
[null,null,null,270909,"return_array_270909"]
[null,null,null,271679,"return_array_271679"]
[null,null,null,271824,"return_array_271824"]
[null,null,null,272774,"return_array_272774"]
[null,null,null,273100,"return_array_273100"]
[null,null,null,273426,"return_array_273426"]
[null,null,null,274079,"return_array_274079"]
[null,null,null,274521,"return_array_274521"]
[null,null,null,274847,"return_array_274847"]
[null,null,null,275617,"return_array_275617"]
[null,null,null,276174,"return_array_276174"]
[null,null,null,276712,"return_array_276712"]
[null,null,null,277038,"return_array_277038"]
[null,null,null,277364,"return_array_277364"]
[null,null,null,277931,"return_array_277931"]
[null,null,null,278459,"return_array_278459"]
[null,null,null,279284,"return_array_279284"]
[null,null,null,279555,"return_array_279555"]
[null,null,null,280026,"return_array_280026"]
[null,null,null,280650,"return_array_280650"]
[null,null,null,280976,"return_array_280976"]
[null,null,null,281302,"return_array_281302"]
[null,null,null,282281,"return_array_282281"]
[null,null,null,282397,"return_array_282397"]
[null,null,null,283167,"return_array_283167"]
[null,null,null,283493,"return_array_283493"]
[null,null,null,283878,"return_array_283878"]
[null,null,null,284588,"return_array_284588"]
[null,null,null,284914,"return_array_284914"]
[null,null,null,285739,"return_array_285739"]
[null,null,null,286133,"return_array_286133"]
[null,null,null,286335,"return_array_286335"]
[null,null,null,287105,"return_array_287105"]
[null,null,null,287431,"return_array_287431"]
[null,null,null,288228,"return_array_288228"]
[null,null,null,288526,"return_array_288526"]
[null,null,null,288852,"return_array_288852"]
[null,null,null,289622,"return_array_289622"]
[null,null,null,289985,"return_array_289985"]
[null,null,null,290772,"return_array_290772"]
[null,null,null,291043,"return_array_291043"]
[null,null,null,291369,"return_array_291369"]
[null,null,null,292080,"return_array_292080"]
[null,null,null,292464,"return_array_292464"]
[null,null,null,292790,"return_array_292790"]
[null,null,null,293560,"return_array_293560"]
[null,null,null,293837,"return_array_293837"]
[null,null,null,294710,"return_array_294710"]
[null,null,null,294981,"return_array_294981"]
[null,null,null,295307,"return_array_295307"]
[null,null,null,295932,"return_array_295932"]
[null,null,null,296402,"return_array_296402"]
[null,null,null,297227,"return_array_297227"]
[null,null,null,297498,"return_array_297498"]
[null,null,null,298187,"return_array_298187"]
[null,null,null,298648,"return_array_298648"]
[null,null,null,298919,"return_array_298919"]
[null,null,null,299744,"return_array_299744"]
[null,null,null,299944,"return_array_299944"]
[null,null,null,300340,"return_array_300340"]
[null,null,null,301165,"return_array_301165"]
[null,null,null,301436,"return_array_301436"]
[null,null,null,302039,"return_array_302039"]
[null,null,null,302586,"return_array_302586"]
[null,null,null,302857,"return_array_302857"]
[null,null,null,303682,"return_array_303682"]
[null,null,null,303796,"return_array_303796"]
[null,null,null,304278,"return_array_304278"]
[null,null,null,305103,"return_array_305103"]
[null,null,null,305374,"return_array_305374"]
[null,null,null,305891,"return_array_305891"]
[null,null,null,306524,"return_array_306524"]
[null,null,null,306795,"return_array_306795"]
[null,null,null,307620,"return_array_307620"]
[null,null,null,308146,"return_array_308146"]
[null,null,null,308715,"return_array_308715"]
[null,null,null,309041,"return_array_309041"]
[null,null,null,309312,"return_array_309312"]
[null,null,null,309743,"return_array_309743"]
[null,null,null,310407,"return_array_310407"]
[null,null,null,310733,"return_array_310733"]
[null,null,null,311558,"return_array_311558"]
[null,null,null,311998,"return_array_311998"]
[null,null,null,312653,"return_array_312653"]
[null,null,null,312979,"return_array_312979"]
[null,null,null,313250,"return_array_313250"]
[null,null,null,314093,"return_array_314093"]
[null,null,null,314345,"return_array_314345"]
[null,null,null,315170,"return_array_315170"]
[null,null,null,315496,"return_array_315496"]
[null,null,null,315850,"return_array_315850"]
[null,null,null,316591,"return_array_316591"]
[null,null,null,316862,"return_array_316862"]
[null,null,null,317687,"return_array_317687"]
[null,null,null,317945,"return_array_317945"]
[null,null,null,318283,"return_array_318283"]
[null,null,null,319108,"return_array_319108"]
[null,null,null,319434,"return_array_319434"]
[null,null,null,320200,"return_array_320200"]
[null,null,null,320529,"return_array_320529"]
[null,null,null,320800,"return_array_320800"]
[null,null,null,321625,"return_array_321625"]
[null,null,null,321797,"return_array_321797"]
[null,null,null,322221,"return_array_322221"]
[null,null,null,323046,"return_array_323046"]
[null,null,null,323372,"return_array_323372"]
[null,null,null,324052,"return_array_324052"]
[null,null,null,324467,"return_array_324467"]
[null,null,null,324738,"return_array_324738"]
[null,null,null,325563,"return_array_325563"]
[null,null,null,326147,"return_array_326147"]
[null,null,null,326658,"return_array_326658"]
[null,null,null,326984,"return_array_326984"]
[null,null,null,327255,"return_array_327255"]
[null,null,null,327904,"return_array_327904"]
[null,null,null,328405,"return_array_328405"]
[null,null,null,329175,"return_array_329175"]
[null,null,null,329501,"return_array_329501"]
[null,null,null,329999,"return_array_329999"]
[null,null,null,330596,"return_array_330596"]
[null,null,null,330922,"return_array_330922"]
[null,null,null,331193,"return_array_331193"]
[null,null,null,331756,"return_array_331756"]
[null,null,null,332343,"return_array_332343"]
[null,null,null,333113,"return_array_333113"]
[null,null,null,333439,"return_array_333439"]
[null,null,null,334011,"return_array_334011"]
[null,null,null,334534,"return_array_334534"]
[null,null,null,334860,"return_array_334860"]
[null,null,null,335630,"return_array_335630"]
[null,null,null,336106,"return_array_336106"]
[null,null,null,336281,"return_array_336281"]
[null,null,null,337051,"return_array_337051"]
[null,null,null,337377,"return_array_337377"]
[null,null,null,337863,"return_array_337863"]
[null,null,null,338472,"return_array_338472"]
[null,null,null,338798,"return_array_338798"]
[null,null,null,339568,"return_array_339568"]
[null,null,null,339958,"return_array_339958"]
[null,null,null,340219,"return_array_340219"]
[null,null,null,340989,"return_array_340989"]
[null,null,null,341315,"return_array_341315"]
[null,null,null,341715,"return_array_341715"]
[null,null,null,342410,"return_array_342410"]
[null,null,null,342736,"return_array_342736"]
[null,null,null,343506,"return_array_343506"]
[null,null,null,343810,"return_array_343810"]
[null,null,null,344601,"return_array_344601"]
[null,null,null,344927,"return_array_344927"]
[null,null,null,345253,"return_array_345253"]
[null,null,null,346065,"return_array_346065"]
[null,null,null,346348,"return_array_346348"]
[null,null,null,346674,"return_array_346674"]
[null,null,null,347444,"return_array_347444"]
[null,null,null,347662,"return_array_347662"]
[null,null,null,348539,"return_array_348539"]
[null,null,null,348865,"return_array_348865"]
[null,null,null,349191,"return_array_349191"]
[null,null,null,349917,"return_array_349917"]
[null,null,null,350286,"return_array_350286"]
[null,null,null,351111,"return_array_351111"]
[null,null,null,351382,"return_array_351382"]
[null,null,null,352012,"return_array_352012"]
[null,null,null,352477,"return_array_352477"]
[null,null,null,352803,"return_array_352803"]
[null,null,null,353129,"return_array_353129"]
[null,null,null,353769,"return_array_353769"]
[null,null,null,354224,"return_array_354224"]
[null,null,null,354994,"return_array_354994"]
[null,null,null,355320,"return_array_355320"]
[null,null,null,355864,"return_array_355864"]
[null,null,null,356415,"return_array_356415"]
[null,null,null,356741,"return_array_356741"]
[null,null,null,357566,"return_array_357566"]
[null,null,null,357621,"return_array_357621"]
[null,null,null,358162,"return_array_358162"]
[null,null,null,358932,"return_array_358932"]
[null,null,null,359258,"return_array_359258"]
[null,null,null,359716,"return_array_359716"]
[null,null,null,360353,"return_array_360353"]
[null,null,null,360679,"return_array_360679"]
[null,null,null,361449,"return_array_361449"]
[null,null,null,361971,"return_array_361971"]
[null,null,null,362100,"return_array_362100"]
[null,null,null,362870,"return_array_362870"]
[null,null,null,363196,"return_array_363196"]
[null,null,null,364066,"return_array_364066"]
[null,null,null,364291,"return_array_364291"]
[null,null,null,364617,"return_array_364617"]
[null,null,null,365387,"return_array_365387"]
[null,null,null,365823,"return_array_365823"]
[null,null,null,366537,"return_array_366537"]
[null,null,null,366808,"return_array_366808"]
[null,null,null,367134,"return_array_367134"]
[null,null,null,367918,"return_array_367918"]
[null,null,null,368229,"return_array_368229"]
[null,null,null,369054,"return_array_369054"]
[null,null,null,369325,"return_array_369325"]
[null,null,null,369675,"return_array_369675"]
[null,null,null,370475,"return_array_370475"]
[null,null,null,370746,"return_array_370746"]
[null,null,null,371571,"return_array_371571"]
[null,null,null,371930,"return_array_371930"]
[null,null,null,372167,"return_array_372167"]
[null,null,null,372992,"return_array_372992"]
[null,null,null,373263,"return_array_373263"]
[null,null,null,374025,"return_array_374025"]
[null,null,null,374413,"return_array_374413"]
[null,null,null,374684,"return_array_374684"]
[null,null,null,375509,"return_array_375509"]
[null,null,null,375782,"return_array_375782"]
[null,null,null,376105,"return_array_376105"]
[null,null,null,376930,"return_array_376930"]
[null,null,null,377201,"return_array_377201"]
[null,null,null,377877,"return_array_377877"]
[null,null,null,378296,"return_array_378296"]
[null,null,null,378622,"return_array_378622"]
[null,null,null,379447,"return_array_379447"]
[null,null,null,379634,"return_array_379634"]
[null,null,null,380542,"return_array_380542"]
[null,null,null,380868,"return_array_380868"]
[null,null,null,381139,"return_array_381139"]
[null,null,null,381729,"return_array_381729"]
[null,null,null,382234,"return_array_382234"]
[null,null,null,382560,"return_array_382560"]
[null,null,null,383385,"return_array_383385"]
[null,null,null,383984,"return_array_383984"]
[null,null,null,384480,"return_array_384480"]
[null,null,null,384806,"return_array_384806"]
[null,null,null,385077,"return_array_385077"]
[null,null,null,385581,"return_array_385581"]
[null,null,null,386172,"return_array_386172"]
[null,null,null,386997,"return_array_386997"]
[null,null,null,387323,"return_array_387323"]
[null,null,null,387836,"return_array_387836"]
[null,null,null,388418,"return_array_388418"]
[null,null,null,388689,"return_array_388689"]
[null,null,null,389514,"return_array_389514"]
[null,null,null,389931,"return_array_389931"]
[null,null,null,390110,"return_array_390110"]
[null,null,null,390935,"return_array_390935"]
[null,null,null,391261,"return_array_391261"]
[null,null,null,391688,"return_array_391688"]
[null,null,null,392356,"return_array_392356"]
[null,null,null,392627,"return_array_392627"]
[null,null,null,393452,"return_array_393452"]
[null,null,null,393783,"return_array_393783"]
[null,null,null,394048,"return_array_394048"]
[null,null,null,394873,"return_array_394873"]
[null,null,null,395199,"return_array_395199"]
[null,null,null,395540,"return_array_395540"]
[null,null,null,396294,"return_array_396294"]
[null,null,null,396565,"return_array_396565"]
[null,null,null,397390,"return_array_397390"]
[null,null,null,397635,"return_array_397635"]
[null,null,null,398485,"return_array_398485"]
[null,null,null,398811,"return_array_398811"]
[null,null,null,399082,"return_array_399082"]
[null,null,null,399890,"return_array_399890"]
[null,null,null,400232,"return_array_400232"]
[null,null,null,400503,"return_array_400503"]
[null,null,null,401328,"return_array_401328"]
[null,null,null,401985,"return_array_401985"]
[null,null,null,402423,"return_array_402423"]
[null,null,null,402749,"return_array_402749"]
[null,null,null,403020,"return_array_403020"]
[null,null,null,403742,"return_array_403742"]
[null,null,null,404170,"return_array_404170"]
[null,null,null,404940,"return_array_404940"]
[null,null,null,405266,"return_array_405266"]
[null,null,null,405499,"return_array_405499"]
[null,null,null,406361,"return_array_406361"]
[null,null,null,406687,"return_array_406687"]
[null,null,null,407457,"return_array_407457"]
[null,null,null,407594,"return_array_407594"]
[null,null,null,408108,"return_array_408108"]
[null,null,null,408878,"return_array_408878"]
[null,null,null,409204,"return_array_409204"]
[null,null,null,409849,"return_array_409849"]
[null,null,null,410299,"return_array_410299"]
[null,null,null,410625,"return_array_410625"]
[null,null,null,411395,"return_array_411395"]
[null,null,null,411944,"return_array_411944"]
[null,null,null,412046,"return_array_412046"]
[null,null,null,412816,"return_array_412816"]
[null,null,null,413142,"return_array_413142"]
[null,null,null,413701,"return_array_413701"]
[null,null,null,414237,"return_array_414237"]
[null,null,null,414563,"return_array_414563"]
[null,null,null,415333,"return_array_415333"]
[null,null,null,415796,"return_array_415796"]
[null,null,null,416428,"return_array_416428"]
[null,null,null,416754,"return_array_416754"]
[null,null,null,417080,"return_array_417080"]
[null,null,null,417553,"return_array_417553"]
[null,null,null,418175,"return_array_418175"]
[null,null,null,418501,"return_array_418501"]
[null,null,null,419271,"return_array_419271"]
[null,null,null,419648,"return_array_419648"]
[null,null,null,420366,"return_array_420366"]
[null,null,null,420692,"return_array_420692"]
[null,null,null,421018,"return_array_421018"]
[null,null,null,421903,"return_array_421903"]
[null,null,null,422113,"return_array_422113"]
[null,null,null,422938,"return_array_422938"]
[null,null,null,423209,"return_array_423209"]
[null,null,null,423500,"return_array_423500"]
[null,null,null,424304,"return_array_424304"]
[null,null,null,424630,"return_array_424630"]
[null,null,null,424956,"return_array_424956"]
[null,null,null,425755,"return_array_425755"]
[null,null,null,426051,"return_array_426051"]
[null,null,null,426821,"return_array_426821"]
[null,null,null,427147,"return_array_427147"]
[null,null,null,427850,"return_array_427850"]
[null,null,null,428242,"return_array_428242"]
[null,null,null,428568,"return_array_428568"]
[null,null,null,429393,"return_array_429393"]
[null,null,null,429607,"return_array_429607"]
[null,null,null,429989,"return_array_429989"]
[null,null,null,430759,"return_array_430759"]
[null,null,null,431085,"return_array_431085"]
[null,null,null,431702,"return_array_431702"]
[null,null,null,432180,"return_array_432180"]
[null,null,null,432506,"return_array_432506"]
[null,null,null,433276,"return_array_433276"]
[null,null,null,433459,"return_array_433459"]
[null,null,null,433927,"return_array_433927"]
[null,null,null,434697,"return_array_434697"]
[null,null,null,435023,"return_array_435023"]
[null,null,null,435554,"return_array_435554"]
[null,null,null,436118,"return_array_436118"]
[null,null,null,436444,"return_array_436444"]
[null,null,null,437214,"return_array_437214"]
[null,null,null,437809,"return_array_437809"]
[null,null,null,438364,"return_array_438364"]
[null,null,null,438635,"return_array_438635"]
[null,null,null,438961,"return_array_438961"]
[null,null,null,439406,"return_array_439406"]
[null,null,null,440056,"return_array_440056"]
[null,null,null,440881,"return_array_440881"]
[null,null,null,441152,"return_array_441152"]
[null,null,null,441661,"return_array_441661"]
[null,null,null,442302,"return_array_442302"]
[null,null,null,442573,"return_array_442573"]
[null,null,null,442899,"return_array_442899"]
[null,null,null,443418,"return_array_443418"]
[null,null,null,443994,"return_array_443994"]
[null,null,null,444819,"return_array_444819"]
[null,null,null,445090,"return_array_445090"]
[null,null,null,445513,"return_array_445513"]
[null,null,null,446240,"return_array_446240"]
[null,null,null,446511,"return_array_446511"]
[null,null,null,447336,"return_array_447336"]
[null,null,null,447768,"return_array_447768"]
[null,null,null,447932,"return_array_447932"]
[null,null,null,448757,"return_array_448757"]
[null,null,null,449028,"return_array_449028"]
[null,null,null,449863,"return_array_449863"]
[null,null,null,450123,"return_array_450123"]
[null,null,null,450449,"return_array_450449"]
[null,null,null,451274,"return_array_451274"]
[null,null,null,451620,"return_array_451620"]
[null,null,null,452369,"return_array_452369"]
[null,null,null,452695,"return_array_452695"]
[null,null,null,452966,"return_array_452966"]
[null,null,null,453715,"return_array_453715"]
[null,null,null,454061,"return_array_454061"]
[null,null,null,454387,"return_array_454387"]
[null,null,null,455212,"return_array_455212"]
[null,null,null,455472,"return_array_455472"]
[null,null,null,456307,"return_array_456307"]
[null,null,null,456633,"return_array_456633"]
[null,null,null,456904,"return_array_456904"]
[null,null,null,457567,"return_array_457567"]
[null,null,null,457999,"return_array_457999"]
[null,null,null,458824,"return_array_458824"]
[null,null,null,459150,"return_array_459150"]
[null,null,null,459822,"return_array_459822"]
[null,null,null,460245,"return_array_460245"]
[null,null,null,460516,"return_array_460516"]
[null,null,null,461341,"return_array_461341"]
[null,null,null,461419,"return_array_461419"]
[null,null,null,461937,"return_array_461937"]
[null,null,null,462762,"return_array_462762"]
[null,null,null,463088,"return_array_463088"]
[null,null,null,463674,"return_array_463674"]
[null,null,null,464183,"return_array_464183"]
[null,null,null,464454,"return_array_464454"]
[null,null,null,465279,"return_array_465279"]
[null,null,null,465769,"return_array_465769"]
[null,null,null,465875,"return_array_465875"]
[null,null,null,466700,"return_array_466700"]
[null,null,null,467026,"return_array_467026"]
[null,null,null,467526,"return_array_467526"]
[null,null,null,468121,"return_array_468121"]
[null,null,null,468392,"return_array_468392"]
[null,null,null,469217,"return_array_469217"]
[null,null,null,469621,"return_array_469621"]
[null,null,null,470312,"return_array_470312"]
[null,null,null,470638,"return_array_470638"]
[null,null,null,470909,"return_array_470909"]
[null,null,null,471378,"return_array_471378"]
[null,null,null,472059,"return_array_472059"]
[null,null,null,472330,"return_array_472330"]
[null,null,null,473155,"return_array_473155"]
[null,null,null,473473,"return_array_473473"]
[null,null,null,474250,"return_array_474250"]
[null,null,null,474576,"return_array_474576"]
[null,null,null,474847,"return_array_474847"]
[null,null,null,475728,"return_array_475728"]
[null,null,null,475997,"return_array_475997"]
[null,null,null,476767,"return_array_476767"]
[null,null,null,477093,"return_array_477093"]
[null,null,null,477485,"return_array_477485"]
[null,null,null,478188,"return_array_478188"]
[null,null,null,478514,"return_array_478514"]
[null,null,null,479284,"return_array_479284"]
[null,null,null,479580,"return_array_479580"]
[null,null,null,479935,"return_array_479935"]
[null,null,null,480705,"return_array_480705"]
[null,null,null,481031,"return_array_481031"]
[null,null,null,481337,"return_array_481337"]
[null,null,null,482126,"return_array_482126"]
[null,null,null,482452,"return_array_482452"]
[null,null,null,483222,"return_array_483222"]
[null,null,null,483432,"return_array_483432"]
[null,null,null,483873,"return_array_483873"]
[null,null,null,484643,"return_array_484643"]
[null,null,null,484969,"return_array_484969"]
[null,null,null,485687,"return_array_485687"]
[null,null,null,486064,"return_array_486064"]
[null,null,null,486390,"return_array_486390"]
[null,null,null,487160,"return_array_487160"]
[null,null,null,487284,"return_array_487284"]
[null,null,null,488255,"return_array_488255"]
[null,null,null,488581,"return_array_488581"]
[null,null,null,488907,"return_array_488907"]
[null,null,null,489539,"return_array_489539"]
[null,null,null,490002,"return_array_490002"]
[null,null,null,490328,"return_array_490328"]
[null,null,null,491098,"return_array_491098"]
[null,null,null,491634,"return_array_491634"]
[null,null,null,492193,"return_array_492193"]
[null,null,null,492519,"return_array_492519"]
[null,null,null,492845,"return_array_492845"]
[null,null,null,493391,"return_array_493391"]
[null,null,null,493940,"return_array_493940"]
[null,null,null,494710,"return_array_494710"]
[null,null,null,495036,"return_array_495036"]
[null,null,null,495486,"return_array_495486"]
[null,null,null,496131,"return_array_496131"]
[null,null,null,496457,"return_array_496457"]
[null,null,null,496783,"return_array_496783"]
[null,null,null,497741,"return_array_497741"]
[null,null,null,497878,"return_array_497878"]
[null,null,null,498648,"return_array_498648"]
[null,null,null,498974,"return_array_498974"]
[null,null,null,499338,"return_array_499338"]
[null,null,null,500069,"return_array_500069"]
[null,null,null,500395,"return_array_500395"]
[null,null,null,501220,"return_array_501220"]
[null,null,null,501491,"return_array_501491"]
[null,null,null,502077,"return_array_502077"]
[null,null,null,502586,"return_array_502586"]
[null,null,null,502912,"return_array_502912"]
[null,null,null,503737,"return_array_503737"]
[null,null,null,503834,"return_array_503834"]
[null,null,null,504333,"return_array_504333"]
[null,null,null,505103,"return_array_505103"]
[null,null,null,505429,"return_array_505429"]
[null,null,null,505929,"return_array_505929"]
[null,null,null,506524,"return_array_506524"]
[null,null,null,506850,"return_array_506850"]
[null,null,null,507675,"return_array_507675"]
[null,null,null,508184,"return_array_508184"]
[null,null,null,508271,"return_array_508271"]
[null,null,null,509041,"return_array_509041"]
[null,null,null,509367,"return_array_509367"]
[null,null,null,509781,"return_array_509781"]
[null,null,null,510462,"return_array_510462"]
[null,null,null,510788,"return_array_510788"]
[null,null,null,511613,"return_array_511613"]
[null,null,null,512036,"return_array_512036"]
[null,null,null,512708,"return_array_512708"]
[null,null,null,512979,"return_array_512979"]
[null,null,null,513305,"return_array_513305"]
[null,null,null,514131,"return_array_514131"]
[null,null,null,514400,"return_array_514400"]
[null,null,null,514726,"return_array_514726"]
[null,null,null,515496,"return_array_515496"]
[null,null,null,515888,"return_array_515888"]
[null,null,null,516646,"return_array_516646"]
[null,null,null,516917,"return_array_516917"]
[null,null,null,517243,"return_array_517243"]
[null,null,null,517983,"return_array_517983"]
[null,null,null,518338,"return_array_518338"]
[null,null,null,519163,"return_array_519163"]
[null,null,null,519434,"return_array_519434"]
[null,null,null,519740,"return_array_519740"]
[null,null,null,520584,"return_array_520584"]
[null,null,null,520855,"return_array_520855"]
[null,null,null,521680,"return_array_521680"]
[null,null,null,521995,"return_array_521995"]
[null,null,null,522276,"return_array_522276"]
[null,null,null,523101,"return_array_523101"]
[null,null,null,523372,"return_array_523372"]
[null,null,null,524090,"return_array_524090"]
[null,null,null,524522,"return_array_524522"]
[null,null,null,524793,"return_array_524793"]
[null,null,null,525618,"return_array_525618"]
[null,null,null,525847,"return_array_525847"]
[null,null,null,526214,"return_array_526214"]
[null,null,null,527039,"return_array_527039"]
[null,null,null,527310,"return_array_527310"]
[null,null,null,527942,"return_array_527942"]
[null,null,null,528460,"return_array_528460"]
[null,null,null,528731,"return_array_528731"]
[null,null,null,529556,"return_array_529556"]
[null,null,null,529699,"return_array_529699"]
[null,null,null,530651,"return_array_530651"]
[null,null,null,530977,"return_array_530977"]
[null,null,null,531248,"return_array_531248"]
[null,null,null,531794,"return_array_531794"]
[null,null,null,532343,"return_array_532343"]
[null,null,null,533168,"return_array_533168"]
[null,null,null,533494,"return_array_533494"]
[null,null,null,534049,"return_array_534049"]
[null,null,null,534589,"return_array_534589"]
[null,null,null,534915,"return_array_534915"]
[null,null,null,535186,"return_array_535186"]
[null,null,null,536144,"return_array_536144"]
[null,null,null,536281,"return_array_536281"]
[null,null,null,537106,"return_array_537106"]
[null,null,null,537432,"return_array_537432"]
[null,null,null,537901,"return_array_537901"]
[null,null,null,538527,"return_array_538527"]
[null,null,null,538853,"return_array_538853"]
[null,null,null,539623,"return_array_539623"]
[null,null,null,539996,"return_array_539996"]
[null,null,null,540219,"return_array_540219"]
[null,null,null,541044,"return_array_541044"]
[null,null,null,541370,"return_array_541370"]
[null,null,null,541753,"return_array_541753"]
[null,null,null,542465,"return_array_542465"]
[null,null,null,542736,"return_array_542736"]
[null,null,null,543561,"return_array_543561"]
[null,null,null,543848,"return_array_543848"]
[null,null,null,544157,"return_array_544157"]
[null,null,null,544982,"return_array_544982"]
[null,null,null,545308,"return_array_545308"]
[null,null,null,546103,"return_array_546103"]
[null,null,null,546403,"return_array_546403"]
[null,null,null,546674,"return_array_546674"]
[null,null,null,547499,"return_array_547499"]
[null,null,null,547700,"return_array_547700"]
[null,null,null,548594,"return_array_548594"]
[null,null,null,548920,"return_array_548920"]
[null,null,null,549191,"return_array_549191"]
[null,null,null,549955,"return_array_549955"]
[null,null,null,550341,"return_array_550341"]
[null,null,null,551111,"return_array_551111"]
[null,null,null,551437,"return_array_551437"]
[null,null,null,552050,"return_array_552050"]
[null,null,null,552532,"return_array_552532"]
[null,null,null,552858,"return_array_552858"]
[null,null,null,553129,"return_array_553129"]
[null,null,null,553807,"return_array_553807"]
[null,null,null,554279,"return_array_554279"]
[null,null,null,555049,"return_array_555049"]
[null,null,null,555375,"return_array_555375"]
[null,null,null,555902,"return_array_555902"]
[null,null,null,556470,"return_array_556470"]
[null,null,null,556796,"return_array_556796"]
[null,null,null,557566,"return_array_557566"]
[null,null,null,557659,"return_array_557659"]
[null,null,null,558217,"return_array_558217"]
[null,null,null,558987,"return_array_558987"]
[null,null,null,559313,"return_array_559313"]
[null,null,null,559914,"return_array_559914"]
[null,null,null,560408,"return_array_560408"]
[null,null,null,560734,"return_array_560734"]
[null,null,null,561504,"return_array_561504"]
[null,null,null,562009,"return_array_562009"]
[null,null,null,562155,"return_array_562155"]
[null,null,null,562925,"return_array_562925"]
[null,null,null,563251,"return_array_563251"]
[null,null,null,563766,"return_array_563766"]
[null,null,null,564346,"return_array_564346"]
[null,null,null,564672,"return_array_564672"]
[null,null,null,565442,"return_array_565442"]
[null,null,null,565861,"return_array_565861"]
[null,null,null,566537,"return_array_566537"]
[null,null,null,566863,"return_array_566863"]
[null,null,null,567189,"return_array_567189"]
[null,null,null,567618,"return_array_567618"]
[null,null,null,568284,"return_array_568284"]
[null,null,null,568610,"return_array_568610"]
[null,null,null,569380,"return_array_569380"]
[null,null,null,569713,"return_array_569713"]
[null,null,null,570475,"return_array_570475"]
[null,null,null,570801,"return_array_570801"]
[null,null,null,571127,"return_array_571127"]
[null,null,null,571968,"return_array_571968"]
[null,null,null,572222,"return_array_572222"]
[null,null,null,573047,"return_array_573047"]
[null,null,null,573318,"return_array_573318"]
[null,null,null,574063,"return_array_574063"]
[null,null,null,574413,"return_array_574413"]
[null,null,null,574739,"return_array_574739"]
[null,null,null,575065,"return_array_575065"]
[null,null,null,575820,"return_array_575820"]
[null,null,null,576160,"return_array_576160"]
[null,null,null,576930,"return_array_576930"]
[null,null,null,577256,"return_array_577256"]
[null,null,null,577915,"return_array_577915"]
[null,null,null,578351,"return_array_578351"]
[null,null,null,578677,"return_array_578677"]
[null,null,null,579502,"return_array_579502"]
[null,null,null,579672,"return_array_579672"]
[null,null,null,580098,"return_array_580098"]
[null,null,null,580868,"return_array_580868"]
[null,null,null,581194,"return_array_581194"]
[null,null,null,581767,"return_array_581767"]
[null,null,null,582289,"return_array_582289"]
[null,null,null,582615,"return_array_582615"]
[null,null,null,583440,"return_array_583440"]
[null,null,null,584022,"return_array_584022"]
[null,null,null,584535,"return_array_584535"]
[null,null,null,584806,"return_array_584806"]
[null,null,null,585132,"return_array_585132"]
[null,null,null,585619,"return_array_585619"]
[null,null,null,586227,"return_array_586227"]
[null,null,null,586553,"return_array_586553"]
[null,null,null,587323,"return_array_587323"]
[null,null,null,587874,"return_array_587874"]
[null,null,null,588473,"return_array_588473"]
[null,null,null,588744,"return_array_588744"]
[null,null,null,589070,"return_array_589070"]
[null,null,null,589969,"return_array_589969"]
[null,null,null,590165,"return_array_590165"]
[null,null,null,590990,"return_array_590990"]
[null,null,null,591261,"return_array_591261"]
[null,null,null,591726,"return_array_591726"]
[null,null,null,592411,"return_array_592411"]
[null,null,null,592682,"return_array_592682"]
[null,null,null,593507,"return_array_593507"]
[null,null,null,593981,"return_array_593981"]
[null,null,null,594103,"return_array_594103"]
[null,null,null,594928,"return_array_594928"]
[null,null,null,595199,"return_array_595199"]
[null,null,null,595578,"return_array_595578"]
[null,null,null,596349,"return_array_596349"]
[null,null,null,596620,"return_array_596620"]
[null,null,null,597445,"return_array_597445"]
[null,null,null,597833,"return_array_597833"]
[null,null,null,598041,"return_array_598041"]
[null,null,null,598866,"return_array_598866"]
[null,null,null,599137,"return_array_599137"]
[null,null,null,599928,"return_array_599928"]
[null,null,null,600287,"return_array_600287"]
[null,null,null,600558,"return_array_600558"]
[null,null,null,601383,"return_array_601383"]
[null,null,null,601685,"return_array_601685"]
[null,null,null,602478,"return_array_602478"]
[null,null,null,602804,"return_array_602804"]
[null,null,null,603075,"return_array_603075"]
[null,null,null,603780,"return_array_603780"]
[null,null,null,604170,"return_array_604170"]
[null,null,null,604496,"return_array_604496"]
[null,null,null,605321,"return_array_605321"]
[null,null,null,605537,"return_array_605537"]
[null,null,null,606416,"return_array_606416"]
[null,null,null,606742,"return_array_606742"]
[null,null,null,607013,"return_array_607013"]
[null,null,null,607632,"return_array_607632"]
[null,null,null,608108,"return_array_608108"]
[null,null,null,608933,"return_array_608933"]
[null,null,null,609259,"return_array_609259"]
[null,null,null,609887,"return_array_609887"]
[null,null,null,610354,"return_array_610354"]
[null,null,null,610680,"return_array_610680"]
[null,null,null,611450,"return_array_611450"]
[null,null,null,611484,"return_array_611484"]
[null,null,null,612046,"return_array_612046"]
[null,null,null,612871,"return_array_612871"]
[null,null,null,613197,"return_array_613197"]
[null,null,null,613739,"return_array_613739"]
[null,null,null,614292,"return_array_614292"]
[null,null,null,614563,"return_array_614563"]
[null,null,null,615388,"return_array_615388"]
[null,null,null,615834,"return_array_615834"]
[null,null,null,615984,"return_array_615984"]
[null,null,null,616809,"return_array_616809"]
[null,null,null,617135,"return_array_617135"]
[null,null,null,617591,"return_array_617591"]
[null,null,null,618230,"return_array_618230"]
[null,null,null,618501,"return_array_618501"]
[null,null,null,619326,"return_array_619326"]
[null,null,null,619686,"return_array_619686"]
[null,null,null,620421,"return_array_620421"]
[null,null,null,620747,"return_array_620747"]
[null,null,null,621018,"return_array_621018"]
[null,null,null,621941,"return_array_621941"]
[null,null,null,622168,"return_array_622168"]
[null,null,null,622938,"return_array_622938"]
[null,null,null,623264,"return_array_623264"]
[null,null,null,623538,"return_array_623538"]
[null,null,null,624359,"return_array_624359"]
[null,null,null,624685,"return_array_624685"]
[null,null,null,624956,"return_array_624956"]
[null,null,null,625793,"return_array_625793"]
[null,null,null,626106,"return_array_626106"]
[null,null,null,626876,"return_array_626876"]
[null,null,null,627202,"return_array_627202"]
[null,null,null,627888,"return_array_627888"]
[null,null,null,628297,"return_array_628297"]
[null,null,null,628623,"return_array_628623"]
[null,null,null,629393,"return_array_629393"]
[null,null,null,629645,"return_array_629645"]
[null,null,null,630044,"return_array_630044"]
[null,null,null,630814,"return_array_630814"]
[null,null,null,631140,"return_array_631140"]
[null,null,null,631900,"return_array_631900"]
[null,null,null,632235,"return_array_632235"]
[null,null,null,632561,"return_array_632561"]
[null,null,null,633331,"return_array_633331"]
[null,null,null,633497,"return_array_633497"]
[null,null,null,633982,"return_array_633982"]
[null,null,null,634752,"return_array_634752"]
[null,null,null,635078,"return_array_635078"]
[null,null,null,635752,"return_array_635752"]
[null,null,null,636173,"return_array_636173"]
[null,null,null,636499,"return_array_636499"]
[null,null,null,637269,"return_array_637269"]
[null,null,null,637847,"return_array_637847"]
[null,null,null,638364,"return_array_638364"]
[null,null,null,638690,"return_array_638690"]
[null,null,null,639016,"return_array_639016"]
[null,null,null,639604,"return_array_639604"]
[null,null,null,640111,"return_array_640111"]
[null,null,null,640437,"return_array_640437"]
[null,null,null,641207,"return_array_641207"]
[null,null,null,641699,"return_array_641699"]
[null,null,null,642302,"return_array_642302"]
[null,null,null,642628,"return_array_642628"]
[null,null,null,642954,"return_array_642954"]
[null,null,null,643456,"return_array_643456"]
[null,null,null,644049,"return_array_644049"]
[null,null,null,644874,"return_array_644874"]
[null,null,null,645145,"return_array_645145"]
[null,null,null,645551,"return_array_645551"]
[null,null,null,646240,"return_array_646240"]
[null,null,null,646566,"return_array_646566"]
[null,null,null,646892,"return_array_646892"]
[null,null,null,647806,"return_array_647806"]
[null,null,null,647987,"return_array_647987"]
[null,null,null,648757,"return_array_648757"]
[null,null,null,649083,"return_array_649083"]
[null,null,null,649403,"return_array_649403"]
[null,null,null,650178,"return_array_650178"]
[null,null,null,650504,"return_array_650504"]
[null,null,null,651329,"return_array_651329"]
[null,null,null,651658,"return_array_651658"]
[null,null,null,651925,"return_array_651925"]
[null,null,null,652695,"return_array_652695"]
[null,null,null,653021,"return_array_653021"]
[null,null,null,653753,"return_array_653753"]
[null,null,null,654116,"return_array_654116"]
[null,null,null,654442,"return_array_654442"]
[null,null,null,655267,"return_array_655267"]
[null,null,null,655510,"return_array_655510"]
[null,null,null,655863,"return_array_655863"]
[null,null,null,656633,"return_array_656633"]
[null,null,null,656959,"return_array_656959"]
[null,null,null,657605,"return_array_657605"]
[null,null,null,658054,"return_array_658054"]
[null,null,null,658380,"return_array_658380"]
[null,null,null,659150,"return_array_659150"]
[null,null,null,659362,"return_array_659362"]
[null,null,null,660300,"return_array_660300"]
[null,null,null,660571,"return_array_660571"]
[null,null,null,660897,"return_array_660897"]
[null,null,null,661457,"return_array_661457"]
[null,null,null,661992,"return_array_661992"]
[null,null,null,662817,"return_array_662817"]
[null,null,null,663088,"return_array_663088"]
[null,null,null,663712,"return_array_663712"]
[null,null,null,664238,"return_array_664238"]
[null,null,null,664509,"return_array_664509"]
[null,null,null,665334,"return_array_665334"]
[null,null,null,665469,"return_array_665469"]
[null,null,null,665930,"return_array_665930"]
[null,null,null,666755,"return_array_666755"]
[null,null,null,667026,"return_array_667026"]
[null,null,null,667564,"return_array_667564"]
[null,null,null,668176,"return_array_668176"]
[null,null,null,668447,"return_array_668447"]
[null,null,null,669272,"return_array_669272"]
[null,null,null,669819,"return_array_669819"]
[null,null,null,669868,"return_array_669868"]
[null,null,null,670693,"return_array_670693"]
[null,null,null,670964,"return_array_670964"]
[null,null,null,671416,"return_array_671416"]
[null,null,null,672114,"return_array_672114"]
[null,null,null,672385,"return_array_672385"]
[null,null,null,673210,"return_array_673210"]
[null,null,null,673671,"return_array_673671"]
[null,null,null,674305,"return_array_674305"]
[null,null,null,674631,"return_array_674631"]
[null,null,null,674902,"return_array_674902"]
[null,null,null,675766,"return_array_675766"]
[null,null,null,675997,"return_array_675997"]
[null,null,null,676323,"return_array_676323"]
[null,null,null,677148,"return_array_677148"]
[null,null,null,677523,"return_array_677523"]
[null,null,null,678243,"return_array_678243"]
[null,null,null,678569,"return_array_678569"]
[null,null,null,678840,"return_array_678840"]
[null,null,null,679618,"return_array_679618"]
[null,null,null,679935,"return_array_679935"]
[null,null,null,680760,"return_array_680760"]
[null,null,null,681086,"return_array_681086"]
[null,null,null,681375,"return_array_681375"]
[null,null,null,682181,"return_array_682181"]
[null,null,null,682452,"return_array_682452"]
[null,null,null,683277,"return_array_683277"]
[null,null,null,683470,"return_array_683470"]
[null,null,null,683873,"return_array_683873"]
[null,null,null,684698,"return_array_684698"]
[null,null,null,685024,"return_array_685024"]
[null,null,null,685725,"return_array_685725"]
[null,null,null,686119,"return_array_686119"]
[null,null,null,686390,"return_array_686390"]
[null,null,null,687215,"return_array_687215"]
[null,null,null,687322,"return_array_687322"]
[null,null,null,687811,"return_array_687811"]
[null,null,null,688636,"return_array_688636"]
[null,null,null,688962,"return_array_688962"]
[null,null,null,689577,"return_array_689577"]
[null,null,null,690057,"return_array_690057"]
[null,null,null,690328,"return_array_690328"]
[null,null,null,691153,"return_array_691153"]
[null,null,null,691672,"return_array_691672"]
[null,null,null,692248,"return_array_692248"]
[null,null,null,692574,"return_array_692574"]
[null,null,null,692845,"return_array_692845"]
[null,null,null,693429,"return_array_693429"]
[null,null,null,693995,"return_array_693995"]
[null,null,null,694266,"return_array_694266"]
[null,null,null,695091,"return_array_695091"]
[null,null,null,695524,"return_array_695524"]
[null,null,null,696186,"return_array_696186"]
[null,null,null,696512,"return_array_696512"]
[null,null,null,696783,"return_array_696783"]
[null,null,null,697281,"return_array_697281"]
[null,null,null,697933,"return_array_697933"]
[null,null,null,698703,"return_array_698703"]
[null,null,null,699029,"return_array_699029"]
[null,null,null,699376,"return_array_699376"]
[null,null,null,700124,"return_array_700124"]
[null,null,null,700450,"return_array_700450"]
[null,null,null,701220,"return_array_701220"]
[null,null,null,701631,"return_array_701631"]
[null,null,null,701871,"return_array_701871"]
[null,null,null,702641,"return_array_702641"]
[null,null,null,702967,"return_array_702967"]
[null,null,null,703388,"return_array_703388"]
[null,null,null,704062,"return_array_704062"]
[null,null,null,704388,"return_array_704388"]
[null,null,null,705158,"return_array_705158"]
[null,null,null,705483,"return_array_705483"]
[null,null,null,705809,"return_array_705809"]
[null,null,null,706579,"return_array_706579"]
[null,null,null,706905,"return_array_706905"]
[null,null,null,707240,"return_array_707240"]
[null,null,null,708000,"return_array_708000"]
[null,null,null,708326,"return_array_708326"]
[null,null,null,709096,"return_array_709096"]
[null,null,null,709335,"return_array_709335"]
[null,null,null,710191,"return_array_710191"]
[null,null,null,710517,"return_array_710517"]
[null,null,null,710843,"return_array_710843"]
[null,null,null,711590,"return_array_711590"]
[null,null,null,711938,"return_array_711938"]
[null,null,null,712264,"return_array_712264"]
[null,null,null,713034,"return_array_713034"]
[null,null,null,713685,"return_array_713685"]
[null,null,null,714129,"return_array_714129"]
[null,null,null,714455,"return_array_714455"]
[null,null,null,714781,"return_array_714781"]
[null,null,null,715442,"return_array_715442"]
[null,null,null,715876,"return_array_715876"]
[null,null,null,716701,"return_array_716701"]
[null,null,null,716972,"return_array_716972"]
[null,null,null,717537,"return_array_717537"]
[null,null,null,718067,"return_array_718067"]
[null,null,null,718393,"return_array_718393"]
[null,null,null,718719,"return_array_718719"]
[null,null,null,719294,"return_array_719294"]
[null,null,null,719814,"return_array_719814"]
[null,null,null,720584,"return_array_720584"]
[null,null,null,720910,"return_array_720910"]
[null,null,null,721389,"return_array_721389"]
[null,null,null,722005,"return_array_722005"]
[null,null,null,722331,"return_array_722331"]
[null,null,null,723156,"return_array_723156"]
[null,null,null,723644,"return_array_723644"]
[null,null,null,723752,"return_array_723752"]
[null,null,null,724522,"return_array_724522"]
[null,null,null,724848,"return_array_724848"]
[null,null,null,725241,"return_array_725241"]
[null,null,null,725943,"return_array_725943"]
[null,null,null,726269,"return_array_726269"]
[null,null,null,727094,"return_array_727094"]
[null,null,null,727496,"return_array_727496"]
[null,null,null,727690,"return_array_727690"]
[null,null,null,728460,"return_array_728460"]
[null,null,null,728786,"return_array_728786"]
[null,null,null,729591,"return_array_729591"]
[null,null,null,729881,"return_array_729881"]
[null,null,null,730207,"return_array_730207"]
[null,null,null,730977,"return_array_730977"]
[null,null,null,731348,"return_array_731348"]
[null,null,null,732127,"return_array_732127"]
[null,null,null,732398,"return_array_732398"]
[null,null,null,732724,"return_array_732724"]
[null,null,null,733443,"return_array_733443"]
[null,null,null,733819,"return_array_733819"]
[null,null,null,734644,"return_array_734644"]
[null,null,null,734915,"return_array_734915"]
[null,null,null,735200,"return_array_735200"]
[null,null,null,736065,"return_array_736065"]
[null,null,null,736336,"return_array_736336"]
[null,null,null,736662,"return_array_736662"]
[null,null,null,737455,"return_array_737455"]
[null,null,null,737757,"return_array_737757"]
[null,null,null,738582,"return_array_738582"]
[null,null,null,738853,"return_array_738853"]
[null,null,null,739550,"return_array_739550"]
[null,null,null,740003,"return_array_740003"]
[null,null,null,740274,"return_array_740274"]
[null,null,null,741099,"return_array_741099"]
[null,null,null,741307,"return_array_741307"]
[null,null,null,741695,"return_array_741695"]
[null,null,null,742520,"return_array_742520"]
[null,null,null,742791,"return_array_742791"]
[null,null,null,743402,"return_array_743402"]
[null,null,null,743941,"return_array_743941"]
[null,null,null,744212,"return_array_744212"]
[null,null,null,745037,"return_array_745037"]
[null,null,null,745159,"return_array_745159"]
[null,null,null,746132,"return_array_746132"]
[null,null,null,746458,"return_array_746458"]
[null,null,null,746729,"return_array_746729"]
[null,null,null,747254,"return_array_747254"]
[null,null,null,747824,"return_array_747824"]
[null,null,null,748150,"return_array_748150"]
[null,null,null,748975,"return_array_748975"]
[null,null,null,749509,"return_array_749509"]
[null,null,null,750070,"return_array_750070"]
[null,null,null,750396,"return_array_750396"]
[null,null,null,750667,"return_array_750667"]
[null,null,null,751492,"return_array_751492"]
[null,null,null,751750,"return_array_751750"]
[null,null,null,752587,"return_array_752587"]
[null,null,null,752913,"return_array_752913"]
[null,null,null,753184,"return_array_753184"]
[null,null,null,753845,"return_array_753845"]
[null,null,null,754279,"return_array_754279"]
[null,null,null,755104,"return_array_755104"]
[null,null,null,755430,"return_array_755430"]
[null,null,null,756100,"return_array_756100"]
[null,null,null,756525,"return_array_756525"]
[null,null,null,756851,"return_array_756851"]
[null,null,null,757122,"return_array_757122"]
[null,null,null,757697,"return_array_757697"]
[null,null,null,758217,"return_array_758217"]
[null,null,null,759042,"return_array_759042"]
[null,null,null,759368,"return_array_759368"]
[null,null,null,759952,"return_array_759952"]
[null,null,null,760463,"return_array_760463"]
[null,null,null,760789,"return_array_760789"]
[null,null,null,761559,"return_array_761559"]
[null,null,null,762047,"return_array_762047"]
[null,null,null,762155,"return_array_762155"]
[null,null,null,762980,"return_array_762980"]
[null,null,null,763306,"return_array_763306"]
[null,null,null,763804,"return_array_763804"]
[null,null,null,764401,"return_array_764401"]
[null,null,null,764672,"return_array_764672"]
[null,null,null,765497,"return_array_765497"]
[null,null,null,765899,"return_array_765899"]
[null,null,null,766093,"return_array_766093"]
[null,null,null,766918,"return_array_766918"]
[null,null,null,767244,"return_array_767244"]
[null,null,null,767656,"return_array_767656"]
[null,null,null,768339,"return_array_768339"]
[null,null,null,768610,"return_array_768610"]
[null,null,null,769435,"return_array_769435"]
[null,null,null,769751,"return_array_769751"]
[null,null,null,770530,"return_array_770530"]
[null,null,null,770856,"return_array_770856"]
[null,null,null,771182,"return_array_771182"]
[null,null,null,772006,"return_array_772006"]
[null,null,null,772277,"return_array_772277"]
[null,null,null,773047,"return_array_773047"]
[null,null,null,773373,"return_array_773373"]
[null,null,null,773603,"return_array_773603"]
[null,null,null,774468,"return_array_774468"]
[null,null,null,774794,"return_array_774794"]
[null,null,null,775065,"return_array_775065"]
[null,null,null,775858,"return_array_775858"]
[null,null,null,776215,"return_array_776215"]
[null,null,null,776985,"return_array_776985"]
[null,null,null,777311,"return_array_777311"]
[null,null,null,777953,"return_array_777953"]
[null,null,null,778406,"return_array_778406"]
[null,null,null,778732,"return_array_778732"]
[null,null,null,779502,"return_array_779502"]
[null,null,null,779710,"return_array_779710"]
[null,null,null,780153,"return_array_780153"]
[null,null,null,780923,"return_array_780923"]
[null,null,null,781249,"return_array_781249"]
[null,null,null,781965,"return_array_781965"]
[null,null,null,782344,"return_array_782344"]
[null,null,null,782670,"return_array_782670"]
[null,null,null,783440,"return_array_783440"]
[null,null,null,783562,"return_array_783562"]
[null,null,null,784091,"return_array_784091"]
[null,null,null,784861,"return_array_784861"]
[null,null,null,785187,"return_array_785187"]
[null,null,null,785817,"return_array_785817"]
[null,null,null,786282,"return_array_786282"]
[null,null,null,786608,"return_array_786608"]
[null,null,null,787378,"return_array_787378"]
[null,null,null,787912,"return_array_787912"]
[null,null,null,788528,"return_array_788528"]
[null,null,null,788799,"return_array_788799"]
[null,null,null,789125,"return_array_789125"]
[null,null,null,789669,"return_array_789669"]
[null,null,null,790220,"return_array_790220"]
[null,null,null,790546,"return_array_790546"]
[null,null,null,791316,"return_array_791316"]
[null,null,null,791764,"return_array_791764"]
[null,null,null,792411,"return_array_792411"]
[null,null,null,792737,"return_array_792737"]
[null,null,null,793063,"return_array_793063"]
[null,null,null,793521,"return_array_793521"]
[null,null,null,794158,"return_array_794158"]
[null,null,null,794983,"return_array_794983"]
[null,null,null,795254,"return_array_795254"]
[null,null,null,795616,"return_array_795616"]
[null,null,null,796349,"return_array_796349"]
[null,null,null,796675,"return_array_796675"]
[null,null,null,797500,"return_array_797500"]
[null,null,null,797871,"return_array_797871"]
[null,null,null,798096,"return_array_798096"]
[null,null,null,798921,"return_array_798921"]
[null,null,null,799192,"return_array_799192"]
[null,null,null,799966,"return_array_799966"]
[null,null,null,800287,"return_array_800287"]
[null,null,null,800613,"return_array_800613"]
[null,null,null,801438,"return_array_801438"]
[null,null,null,801723,"return_array_801723"]
[null,null,null,802034,"return_array_802034"]
[null,null,null,802804,"return_array_802804"]
[null,null,null,803130,"return_array_803130"]
[null,null,null,803818,"return_array_803818"]
[null,null,null,804225,"return_array_804225"]
[null,null,null,804551,"return_array_804551"]
[null,null,null,805376,"return_array_805376"]
[null,null,null,805575,"return_array_805575"]
[null,null,null,806471,"return_array_806471"]
[null,null,null,806742,"return_array_806742"]
[null,null,null,807068,"return_array_807068"]
[null,null,null,807670,"return_array_807670"]
[null,null,null,808163,"return_array_808163"]
[null,null,null,808489,"return_array_808489"]
[null,null,null,809259,"return_array_809259"]
[null,null,null,809925,"return_array_809925"]
[null,null,null,810409,"return_array_810409"]
[null,null,null,810680,"return_array_810680"]
[null,null,null,811006,"return_array_811006"]
[null,null,null,811522,"return_array_811522"]
[null,null,null,812101,"return_array_812101"]
[null,null,null,812926,"return_array_812926"]
[null,null,null,813197,"return_array_813197"]
[null,null,null,813777,"return_array_813777"]
[null,null,null,814347,"return_array_814347"]
[null,null,null,814618,"return_array_814618"]
[null,null,null,815443,"return_array_815443"]
[null,null,null,815872,"return_array_815872"]
[null,null,null,816039,"return_array_816039"]
[null,null,null,816864,"return_array_816864"]
[null,null,null,817135,"return_array_817135"]
[null,null,null,817629,"return_array_817629"]
[null,null,null,818285,"return_array_818285"]
[null,null,null,818556,"return_array_818556"]
[null,null,null,819381,"return_array_819381"]
[null,null,null,819884,"return_array_819884"]
[null,null,null,819977,"return_array_819977"]
[null,null,null,820802,"return_array_820802"]
[null,null,null,821073,"return_array_821073"]
[null,null,null,821481,"return_array_821481"]
[null,null,null,822223,"return_array_822223"]
[null,null,null,822494,"return_array_822494"]
[null,null,null,823319,"return_array_823319"]
[null,null,null,823736,"return_array_823736"]
[null,null,null,824414,"return_array_824414"]
[null,null,null,824740,"return_array_824740"]
[null,null,null,825011,"return_array_825011"]
[null,null,null,825831,"return_array_825831"]
[null,null,null,826106,"return_array_826106"]
[null,null,null,826931,"return_array_826931"]
[null,null,null,827257,"return_array_827257"]
[null,null,null,827588,"return_array_827588"]
[null,null,null,828352,"return_array_828352"]
[null,null,null,828678,"return_array_828678"]
[null,null,null,828949,"return_array_828949"]
[null,null,null,829683,"return_array_829683"]
[null,null,null,830044,"return_array_830044"]
[null,null,null,830869,"return_array_830869"]
[null,null,null,831195,"return_array_831195"]
[null,null,null,831440,"return_array_831440"]
[null,null,null,832290,"return_array_832290"]
[null,null,null,832616,"return_array_832616"]
[null,null,null,833386,"return_array_833386"]
[null,null,null,833535,"return_array_833535"]
[null,null,null,833982,"return_array_833982"]
[null,null,null,834807,"return_array_834807"]
[null,null,null,835133,"return_array_835133"]
[null,null,null,835790,"return_array_835790"]
[null,null,null,836228,"return_array_836228"]
[null,null,null,836499,"return_array_836499"]
[null,null,null,837324,"return_array_837324"]
[null,null,null,837885,"return_array_837885"]
[null,null,null,837920,"return_array_837920"]
[null,null,null,838745,"return_array_838745"]
[null,null,null,839071,"return_array_839071"]
[null,null,null,839642,"return_array_839642"]
[null,null,null,840166,"return_array_840166"]
[null,null,null,840437,"return_array_840437"]
[null,null,null,841262,"return_array_841262"]
[null,null,null,841737,"return_array_841737"]
[null,null,null,842357,"return_array_842357"]
[null,null,null,842683,"return_array_842683"]
[null,null,null,843009,"return_array_843009"]
[null,null,null,843494,"return_array_843494"]
[null,null,null,844104,"return_array_844104"]
[null,null,null,844874,"return_array_844874"]
[null,null,null,845200,"return_array_845200"]
[null,null,null,845589,"return_array_845589"]
[null,null,null,846295,"return_array_846295"]
[null,null,null,846621,"return_array_846621"]
[null,null,null,846892,"return_array_846892"]
[null,null,null,847844,"return_array_847844"]
[null,null,null,848042,"return_array_848042"]
[null,null,null,848812,"return_array_848812"]
[null,null,null,849138,"return_array_849138"]
[null,null,null,849441,"return_array_849441"]
[null,null,null,850233,"return_array_850233"]
[null,null,null,850559,"return_array_850559"]
[null,null,null,851329,"return_array_851329"]
[null,null,null,851696,"return_array_851696"]
[null,null,null,851980,"return_array_851980"]
[null,null,null,852750,"return_array_852750"]
[null,null,null,853076,"return_array_853076"]
[null,null,null,853453,"return_array_853453"]
[null,null,null,854171,"return_array_854171"]
[null,null,null,854497,"return_array_854497"]
[null,null,null,855267,"return_array_855267"]
[null,null,null,855548,"return_array_855548"]
[null,null,null,855918,"return_array_855918"]
[null,null,null,856688,"return_array_856688"]
[null,null,null,857014,"return_array_857014"]
[null,null,null,857803,"return_array_857803"]
[null,null,null,858109,"return_array_858109"]
[null,null,null,858435,"return_array_858435"]
[null,null,null,859205,"return_array_859205"]
[null,null,null,859400,"return_array_859400"]
[null,null,null,859856,"return_array_859856"]
[null,null,null,860626,"return_array_860626"]
[null,null,null,860952,"return_array_860952"]
[null,null,null,861655,"return_array_861655"]
[null,null,null,862047,"return_array_862047"]
[null,null,null,862373,"return_array_862373"]
[null,null,null,863143,"return_array_863143"]
[null,null,null,863750,"return_array_863750"]
[null,null,null,864238,"return_array_864238"]
[null,null,null,864564,"return_array_864564"]
[null,null,null,864890,"return_array_864890"]
[null,null,null,865507,"return_array_865507"]
[null,null,null,865985,"return_array_865985"]
[null,null,null,866810,"return_array_866810"]
[null,null,null,867081,"return_array_867081"]
[null,null,null,867602,"return_array_867602"]
[null,null,null,868176,"return_array_868176"]
[null,null,null,868502,"return_array_868502"]
[null,null,null,868828,"return_array_868828"]
[null,null,null,869359,"return_array_869359"]
[null,null,null,869923,"return_array_869923"]
[null,null,null,870693,"return_array_870693"]
[null,null,null,871019,"return_array_871019"]
[null,null,null,871454,"return_array_871454"]
[null,null,null,872114,"return_array_872114"]
[null,null,null,872440,"return_array_872440"]
[null,null,null,873265,"return_array_873265"]
[null,null,null,873709,"return_array_873709"]
[null,null,null,873861,"return_array_873861"]
[null,null,null,874631,"return_array_874631"]
[null,null,null,874957,"return_array_874957"]
[null,null,null,875804,"return_array_875804"]
[null,null,null,876052,"return_array_876052"]
[null,null,null,876378,"return_array_876378"]
[null,null,null,877203,"return_array_877203"]
[null,null,null,877561,"return_array_877561"]
[null,null,null,878298,"return_array_878298"]
[null,null,null,878569,"return_array_878569"]
[null,null,null,878895,"return_array_878895"]
[null,null,null,879656,"return_array_879656"]
[null,null,null,879990,"return_array_879990"]
[null,null,null,880316,"return_array_880316"]
[null,null,null,881086,"return_array_881086"]
[null,null,null,881413,"return_array_881413"]
[null,null,null,882236,"return_array_882236"]
[null,null,null,882507,"return_array_882507"]
[null,null,null,882833,"return_array_882833"]
[null,null,null,883508,"return_array_883508"]
[null,null,null,883928,"return_array_883928"]
[null,null,null,884753,"return_array_884753"]
[null,null,null,885024,"return_array_885024"]
[null,null,null,885763,"return_array_885763"]
[null,null,null,886174,"return_array_886174"]
[null,null,null,886445,"return_array_886445"]
[null,null,null,887270,"return_array_887270"]
[null,null,null,887360,"return_array_887360"]
[null,null,null,887866,"return_array_887866"]
[null,null,null,888691,"return_array_888691"]
[null,null,null,888962,"return_array_888962"]
[null,null,null,889615,"return_array_889615"]
[null,null,null,890112,"return_array_890112"]
[null,null,null,890383,"return_array_890383"]
[null,null,null,891208,"return_array_891208"]
[null,null,null,891372,"return_array_891372"]
[null,null,null,891804,"return_array_891804"]
[null,null,null,892629,"return_array_892629"]
[null,null,null,892900,"return_array_892900"]
[null,null,null,893467,"return_array_893467"]
[null,null,null,894050,"return_array_894050"]
[null,null,null,894321,"return_array_894321"]
[null,null,null,895146,"return_array_895146"]
[null,null,null,895722,"return_array_895722"]
[null,null,null,896241,"return_array_896241"]
[null,null,null,896567,"return_array_896567"]
[null,null,null,896838,"return_array_896838"]
[null,null,null,897319,"return_array_897319"]
[null,null,null,897933,"return_array_897933"]
[null,null,null,898259,"return_array_898259"]
[null,null,null,899084,"return_array_899084"]
[null,null,null,899574,"return_array_899574"]
[null,null,null,900179,"return_array_900179"]
[null,null,null,900505,"return_array_900505"]
[null,null,null,900776,"return_array_900776"]
[null,null,null,901669,"return_array_901669"]
[null,null,null,901871,"return_array_901871"]
[null,null,null,902696,"return_array_902696"]
[null,null,null,903022,"return_array_903022"]
[null,null,null,903426,"return_array_903426"]
[null,null,null,904117,"return_array_904117"]
[null,null,null,904443,"return_array_904443"]
[null,null,null,905213,"return_array_905213"]
[null,null,null,905521,"return_array_905521"]
[null,null,null,905809,"return_array_905809"]
[null,null,null,906634,"return_array_906634"]
[null,null,null,906960,"return_array_906960"]
[null,null,null,907278,"return_array_907278"]
[null,null,null,908055,"return_array_908055"]
[null,null,null,908326,"return_array_908326"]
[null,null,null,909151,"return_array_909151"]
[null,null,null,909373,"return_array_909373"]
[null,null,null,909747,"return_array_909747"]
[null,null,null,910572,"return_array_910572"]
[null,null,null,910898,"return_array_910898"]
[null,null,null,911628,"return_array_911628"]
[null,null,null,911993,"return_array_911993"]
[null,null,null,912264,"return_array_912264"]
[null,null,null,913089,"return_array_913089"]
[null,null,null,913225,"return_array_913225"]
[null,null,null,914184,"return_array_914184"]
[null,null,null,914510,"return_array_914510"]
[null,null,null,914836,"return_array_914836"]
[null,null,null,915480,"return_array_915480"]
[null,null,null,915931,"return_array_915931"]
[null,null,null,916701,"return_array_916701"]
[null,null,null,917027,"return_array_917027"]
[null,null,null,917575,"return_array_917575"]
[null,null,null,918122,"return_array_918122"]
[null,null,null,918448,"return_array_918448"]
[null,null,null,918719,"return_array_918719"]
[null,null,null,919332,"return_array_919332"]
[null,null,null,919869,"return_array_919869"]
[null,null,null,920639,"return_array_920639"]
[null,null,null,920965,"return_array_920965"]
[null,null,null,921427,"return_array_921427"]
[null,null,null,922060,"return_array_922060"]
[null,null,null,922386,"return_array_922386"]
[null,null,null,923156,"return_array_923156"]
[null,null,null,923682,"return_array_923682"]
[null,null,null,923807,"return_array_923807"]
[null,null,null,924577,"return_array_924577"]
[null,null,null,924903,"return_array_924903"]
[null,null,null,925439,"return_array_925439"]
[null,null,null,925998,"return_array_925998"]
[null,null,null,926324,"return_array_926324"]
[null,null,null,927094,"return_array_927094"]
[null,null,null,927534,"return_array_927534"]
[null,null,null,927745,"return_array_927745"]
[null,null,null,928515,"return_array_928515"]
[null,null,null,928841,"return_array_928841"]
[null,null,null,929291,"return_array_929291"]
[null,null,null,929936,"return_array_929936"]
[null,null,null,930262,"return_array_930262"]
[null,null,null,931032,"return_array_931032"]
[null,null,null,931386,"return_array_931386"]
[null,null,null,931683,"return_array_931683"]
[null,null,null,932453,"return_array_932453"]
[null,null,null,932779,"return_array_932779"]
[null,null,null,933641,"return_array_933641"]
[null,null,null,933874,"return_array_933874"]
[null,null,null,934200,"return_array_934200"]
[null,null,null,934970,"return_array_934970"]
[null,null,null,935238,"return_array_935238"]
[null,null,null,936065,"return_array_936065"]
[null,null,null,936391,"return_array_936391"]
[null,null,null,936717,"return_array_936717"]
[null,null,null,937493,"return_array_937493"]
[null,null,null,937812,"return_array_937812"]
[null,null,null,938637,"return_array_938637"]
[null,null,null,938908,"return_array_938908"]
[null,null,null,939588,"return_array_939588"]
[null,null,null,940003,"return_array_940003"]
[null,null,null,940329,"return_array_940329"]
[null,null,null,940655,"return_array_940655"]
[null,null,null,941345,"return_array_941345"]
[null,null,null,941750,"return_array_941750"]
[null,null,null,942520,"return_array_942520"]
[null,null,null,942846,"return_array_942846"]
[null,null,null,943440,"return_array_943440"]
[null,null,null,943941,"return_array_943941"]
[null,null,null,944267,"return_array_944267"]
[null,null,null,945092,"return_array_945092"]
[null,null,null,945197,"return_array_945197"]
[null,null,null,945688,"return_array_945688"]
[null,null,null,946458,"return_array_946458"]
[null,null,null,946784,"return_array_946784"]
[null,null,null,947292,"return_array_947292"]
[null,null,null,947879,"return_array_947879"]
[null,null,null,948205,"return_array_948205"]
[null,null,null,949030,"return_array_949030"]
[null,null,null,949547,"return_array_949547"]
[null,null,null,949626,"return_array_949626"]
[null,null,null,950396,"return_array_950396"]
[null,null,null,950722,"return_array_950722"]
[null,null,null,951144,"return_array_951144"]
[null,null,null,951817,"return_array_951817"]
[null,null,null,952143,"return_array_952143"]
[null,null,null,952913,"return_array_952913"]
[null,null,null,953399,"return_array_953399"]
[null,null,null,954063,"return_array_954063"]
[null,null,null,954334,"return_array_954334"]
[null,null,null,954660,"return_array_954660"]
[null,null,null,955494,"return_array_955494"]
[null,null,null,955755,"return_array_955755"]
[null,null,null,956580,"return_array_956580"]
[null,null,null,956851,"return_array_956851"]
[null,null,null,957251,"return_array_957251"]
[null,null,null,958001,"return_array_958001"]
[null,null,null,958272,"return_array_958272"]
[null,null,null,959097,"return_array_959097"]
[null,null,null,959346,"return_array_959346"]
[null,null,null,959693,"return_array_959693"]
[null,null,null,960518,"return_array_960518"]
[null,null,null,960789,"return_array_960789"]
[null,null,null,961103,"return_array_961103"]
[null,null,null,961939,"return_array_961939"]
[null,null,null,962210,"return_array_962210"]
[null,null,null,963035,"return_array_963035"]
[null,null,null,963358,"return_array_963358"]
[null,null,null,963631,"return_array_963631"]
[null,null,null,964456,"return_array_964456"]
[null,null,null,964727,"return_array_964727"]
[null,null,null,965453,"return_array_965453"]
[null,null,null,965877,"return_array_965877"]
[null,null,null,966148,"return_array_966148"]
[null,null,null,966973,"return_array_966973"]
[null,null,null,967210,"return_array_967210"]
[null,null,null,968068,"return_array_968068"]
[null,null,null,968394,"return_array_968394"]
[null,null,null,968665,"return_array_968665"]
[null,null,null,969305,"return_array_969305"]
[null,null,null,969760,"return_array_969760"]
[null,null,null,970086,"return_array_970086"]
[null,null,null,970911,"return_array_970911"]
[null,null,null,971560,"return_array_971560"]
[null,null,null,972006,"return_array_972006"]
[null,null,null,972332,"return_array_972332"]
[null,null,null,972603,"return_array_972603"]
[null,null,null,973157,"return_array_973157"]
[null,null,null,973698,"return_array_973698"]
[null,null,null,974523,"return_array_974523"]
[null,null,null,974849,"return_array_974849"]
[null,null,null,975412,"return_array_975412"]
[null,null,null,975944,"return_array_975944"]
[null,null,null,976270,"return_array_976270"]
[null,null,null,977040,"return_array_977040"]
[null,null,null,977507,"return_array_977507"]
[null,null,null,977636,"return_array_977636"]
[null,null,null,978461,"return_array_978461"]
[null,null,null,978787,"return_array_978787"]
[null,null,null,979264,"return_array_979264"]
[null,null,null,979882,"return_array_979882"]
[null,null,null,980153,"return_array_980153"]
[null,null,null,980978,"return_array_980978"]
[null,null,null,981359,"return_array_981359"]
[null,null,null,981574,"return_array_981574"]
[null,null,null,982399,"return_array_982399"]
[null,null,null,982725,"return_array_982725"]
[null,null,null,983116,"return_array_983116"]
[null,null,null,983820,"return_array_983820"]
[null,null,null,984091,"return_array_984091"]
[null,null,null,984916,"return_array_984916"]
[null,null,null,985211,"return_array_985211"]
[null,null,null,986011,"return_array_986011"]
[null,null,null,986337,"return_array_986337"]
[null,null,null,986608,"return_array_986608"]
[null,null,null,987466,"return_array_987466"]
[null,null,null,987758,"return_array_987758"]
[null,null,null,988029,"return_array_988029"]
[null,null,null,988854,"return_array_988854"]
[null,null,null,989063,"return_array_989063"]
[null,null,null,989949,"return_array_989949"]
[null,null,null,990275,"return_array_990275"]
[null,null,null,990546,"return_array_990546"]
[null,null,null,991318,"return_array_991318"]
[null,null,null,991696,"return_array_991696"]
[null,null,null,992466,"return_array_992466"]
[null,null,null,992792,"return_array_992792"]
[null,null,null,993413,"return_array_993413"]
[null,null,null,993887,"return_array_993887"]
[null,null,null,994213,"return_array_994213"]
[null,null,null,994983,"return_array_994983"]
[null,null,null,995170,"return_array_995170"]
[null,null,null,995634,"return_array_995634"]
[null,null,null,996404,"return_array_996404"]
[null,null,null,996730,"return_array_996730"]
[null,null,null,997425,"return_array_997425"]
[null,null,null,997825,"return_array_997825"]
[null,null,null,998151,"return_array_998151"]
[null,null,null,998921,"return_array_998921"]
[null,null,null,999247,"return_array_999247"]
[null,null,null,999501,"return_array_999501"]
[null,null,null,999502,"return_array_999502"]
[null,null,null,999503,"return_array_999503"]
[null,null,null,999504,"return_array_999504"]
[null,null,null,999505,"return_array_999505"]
[null,null,null,999506,"return_array_999506"]
[null,null,null,999507,"return_array_999507"]
[null,null,null,999508,"return_array_999508"]
[null,null,null,999509,"return_array_999509"]
[null,null,null,999510,"return_array_999510"]
[null,null,null,999511,"return_array_999511"]
[null,null,null,999512,"return_array_999512"]
[null,null,null,999513,"return_array_999513"]
[null,null,null,999514,"return_array_999514"]
[null,null,null,999515,"return_array_999515"]
[null,null,null,999516,"return_array_999516"]
[null,null,null,999517,"return_array_999517"]
[null,null,null,999518,"return_array_999518"]
[null,null,null,999519,"return_array_999519"]
[null,null,null,999520,"return_array_999520"]
[null,null,null,999521,"return_array_999521"]
[null,null,null,999522,"return_array_999522"]
[null,null,null,999523,"return_array_999523"]
[null,null,null,999524,"return_array_999524"]
[null,null,null,999525,"return_array_999525"]
[null,null,null,999526,"return_array_999526"]
[null,null,null,999527,"return_array_999527"]
[null,null,null,999528,"return_array_999528"]
[null,null,null,999529,"return_array_999529"]
[null,null,null,999530,"return_array_999530"]
[null,null,null,999531,"return_array_999531"]
[null,null,null,999532,"return_array_999532"]
[null,null,null,999533,"return_array_999533"]
[null,null,null,999534,"return_array_999534"]
[null,null,null,999535,"return_array_999535"]
[null,null,null,999536,"return_array_999536"]
[null,null,null,999537,"return_array_999537"]
[null,null,null,999538,"return_array_999538"]
[null,null,null,999539,"return_array_999539"]
[null,null,null,999540,"return_array_999540"]
[null,null,null,999541,"return_array_999541"]
[null,null,null,999542,"return_array_999542"]
[null,null,null,999543,"return_array_999543"]
[null,null,null,999544,"return_array_999544"]
[null,null,null,999545,"return_array_999545"]
[null,null,null,999546,"return_array_999546"]
[null,null,null,999547,"return_array_999547"]
[null,null,null,999548,"return_array_999548"]
[null,null,null,999549,"return_array_999549"]
[null,null,null,999550,"return_array_999550"]
[null,null,null,999551,"return_array_999551"]
[null,null,null,999552,"return_array_999552"]
[null,null,null,999553,"return_array_999553"]
[null,null,null,999554,"return_array_999554"]
[null,null,null,999555,"return_array_999555"]
[null,null,null,999556,"return_array_999556"]
[null,null,null,999557,"return_array_999557"]
[null,null,null,999558,"return_array_999558"]
[null,null,null,999559,"return_array_999559"]
[null,null,null,999560,"return_array_999560"]
[null,null,null,999561,"return_array_999561"]
[null,null,null,999562,"return_array_999562"]
[null,null,null,999563,"return_array_999563"]
[null,null,null,999564,"return_array_999564"]
[null,null,null,999565,"return_array_999565"]
[null,null,null,999566,"return_array_999566"]
[null,null,null,999567,"return_array_999567"]
[null,null,null,999568,"return_array_999568"]
[null,null,null,999569,"return_array_999569"]
[null,null,null,999570,"return_array_999570"]
[null,null,null,999571,"return_array_999571"]
[null,null,null,999572,"return_array_999572"]
[null,null,null,999573,"return_array_999573"]
[null,null,null,999574,"return_array_999574"]
[null,null,null,999575,"return_array_999575"]
[null,null,null,999576,"return_array_999576"]
[null,null,null,999577,"return_array_999577"]
[null,null,null,999578,"return_array_999578"]
[null,null,null,999579,"return_array_999579"]
[null,null,null,999580,"return_array_999580"]
[null,null,null,999581,"return_array_999581"]
[null,null,null,999582,"return_array_999582"]
[null,null,null,999583,"return_array_999583"]
[null,null,null,999584,"return_array_999584"]
[null,null,null,999585,"return_array_999585"]
[null,null,null,999586,"return_array_999586"]
[null,null,null,999587,"return_array_999587"]
[null,null,null,999588,"return_array_999588"]
[null,null,null,999589,"return_array_999589"]
[null,null,null,999590,"return_array_999590"]
[null,null,null,999591,"return_array_999591"]
[null,null,null,999592,"return_array_999592"]
[null,null,null,999593,"return_array_999593"]
[null,null,null,999594,"return_array_999594"]
[null,null,null,999595,"return_array_999595"]
[null,null,null,999596,"return_array_999596"]
[null,null,null,999597,"return_array_999597"]
[null,null,null,999598,"return_array_999598"]
[null,null,null,999599,"return_array_999599"]
[null,null,null,999600,"return_array_999600"]
[null,null,null,999601,"return_array_999601"]
[null,null,null,999602,"return_array_999602"]
[null,null,null,999603,"return_array_999603"]
[null,null,null,999604,"return_array_999604"]
[null,null,null,999605,"return_array_999605"]
[null,null,null,999606,"return_array_999606"]
[null,null,null,999607,"return_array_999607"]
[null,null,null,999608,"return_array_999608"]
[null,null,null,999609,"return_array_999609"]
[null,null,null,999610,"return_array_999610"]
[null,null,null,999611,"return_array_999611"]
[null,null,null,999612,"return_array_999612"]
[null,null,null,999613,"return_array_999613"]
[null,null,null,999614,"return_array_999614"]
[null,null,null,999615,"return_array_999615"]
[null,null,null,999616,"return_array_999616"]
[null,null,null,999617,"return_array_999617"]
[null,null,null,999618,"return_array_999618"]
[null,null,null,999619,"return_array_999619"]
[null,null,null,999620,"return_array_999620"]
[null,null,null,999621,"return_array_999621"]
[null,null,null,999622,"return_array_999622"]
[null,null,null,999623,"return_array_999623"]
[null,null,null,999624,"return_array_999624"]
[null,null,null,999625,"return_array_999625"]
[null,null,null,999626,"return_array_999626"]
[null,null,null,999627,"return_array_999627"]
[null,null,null,999628,"return_array_999628"]
[null,null,null,999629,"return_array_999629"]
[null,null,null,999630,"return_array_999630"]
[null,null,null,999631,"return_array_999631"]
[null,null,null,999632,"return_array_999632"]
[null,null,null,999633,"return_array_999633"]
[null,null,null,999634,"return_array_999634"]
[null,null,null,999635,"return_array_999635"]
[null,null,null,999636,"return_array_999636"]
[null,null,null,999637,"return_array_999637"]
[null,null,null,999638,"return_array_999638"]
[null,null,null,999639,"return_array_999639"]
[null,null,null,999640,"return_array_999640"]
[null,null,null,999641,"return_array_999641"]
[null,null,null,999642,"return_array_999642"]
[null,null,null,999643,"return_array_999643"]
[null,null,null,999644,"return_array_999644"]
[null,null,null,999645,"return_array_999645"]
[null,null,null,999646,"return_array_999646"]
[null,null,null,999647,"return_array_999647"]
[null,null,null,999648,"return_array_999648"]
[null,null,null,999649,"return_array_999649"]
[null,null,null,999650,"return_array_999650"]
[null,null,null,999651,"return_array_999651"]
[null,null,null,999652,"return_array_999652"]
[null,null,null,999653,"return_array_999653"]
[null,null,null,999654,"return_array_999654"]
[null,null,null,999655,"return_array_999655"]
[null,null,null,999656,"return_array_999656"]
[null,null,null,999657,"return_array_999657"]
[null,null,null,999658,"return_array_999658"]
[null,null,null,999659,"return_array_999659"]
[null,null,null,999660,"return_array_999660"]
[null,null,null,999661,"return_array_999661"]
[null,null,null,999662,"return_array_999662"]
[null,null,null,999663,"return_array_999663"]
[null,null,null,999664,"return_array_999664"]
[null,null,null,999665,"return_array_999665"]
[null,null,null,999666,"return_array_999666"]
[null,null,null,999667,"return_array_999667"]
[null,null,null,999668,"return_array_999668"]
[null,null,null,999669,"return_array_999669"]
[null,null,null,999670,"return_array_999670"]
[null,null,null,999671,"return_array_999671"]
[null,null,null,999672,"return_array_999672"]
[null,null,null,999673,"return_array_999673"]
[null,null,null,999674,"return_array_999674"]
[null,null,null,999675,"return_array_999675"]
[null,null,null,999676,"return_array_999676"]
[null,null,null,999677,"return_array_999677"]
[null,null,null,999678,"return_array_999678"]
[null,null,null,999679,"return_array_999679"]
[null,null,null,999680,"return_array_999680"]
[null,null,null,999681,"return_array_999681"]
[null,null,null,999682,"return_array_999682"]
[null,null,null,999683,"return_array_999683"]
[null,null,null,999684,"return_array_999684"]
[null,null,null,999685,"return_array_999685"]
[null,null,null,999686,"return_array_999686"]
[null,null,null,999687,"return_array_999687"]
[null,null,null,999688,"return_array_999688"]
[null,null,null,999689,"return_array_999689"]
[null,null,null,999690,"return_array_999690"]
[null,null,null,999691,"return_array_999691"]
[null,null,null,999692,"return_array_999692"]
[null,null,null,999693,"return_array_999693"]
[null,null,null,999694,"return_array_999694"]
[null,null,null,999695,"return_array_999695"]
[null,null,null,999696,"return_array_999696"]
[null,null,null,999697,"return_array_999697"]
[null,null,null,999698,"return_array_999698"]
[null,null,null,999699,"return_array_999699"]
[null,null,null,999700,"return_array_999700"]
[null,null,null,999701,"return_array_999701"]
[null,null,null,999702,"return_array_999702"]
[null,null,null,999703,"return_array_999703"]
[null,null,null,999704,"return_array_999704"]
[null,null,null,999705,"return_array_999705"]
[null,null,null,999706,"return_array_999706"]
[null,null,null,999707,"return_array_999707"]
[null,null,null,999708,"return_array_999708"]
[null,null,null,999709,"return_array_999709"]
[null,null,null,999710,"return_array_999710"]
[null,null,null,999711,"return_array_999711"]
[null,null,null,999712,"return_array_999712"]
[null,null,null,999713,"return_array_999713"]
[null,null,null,999714,"return_array_999714"]
[null,null,null,999715,"return_array_999715"]
[null,null,null,999716,"return_array_999716"]
[null,null,null,999717,"return_array_999717"]
[null,null,null,999718,"return_array_999718"]
[null,null,null,999719,"return_array_999719"]
[null,null,null,999720,"return_array_999720"]
[null,null,null,999721,"return_array_999721"]
[null,null,null,999722,"return_array_999722"]
[null,null,null,999723,"return_array_999723"]
[null,null,null,999724,"return_array_999724"]
[null,null,null,999725,"return_array_999725"]
[null,null,null,999726,"return_array_999726"]
[null,null,null,999727,"return_array_999727"]
[null,null,null,999728,"return_array_999728"]
[null,null,null,999729,"return_array_999729"]
[null,null,null,999730,"return_array_999730"]
[null,null,null,999731,"return_array_999731"]
[null,null,null,999732,"return_array_999732"]
[null,null,null,999733,"return_array_999733"]
[null,null,null,999734,"return_array_999734"]
[null,null,null,999735,"return_array_999735"]
[null,null,null,999736,"return_array_999736"]
[null,null,null,999737,"return_array_999737"]
[null,null,null,999738,"return_array_999738"]
[null,null,null,999739,"return_array_999739"]
[null,null,null,999740,"return_array_999740"]
[null,null,null,999741,"return_array_999741"]
[null,null,null,999742,"return_array_999742"]
[null,null,null,999743,"return_array_999743"]
[null,null,null,999744,"return_array_999744"]
[null,null,null,999745,"return_array_999745"]
[null,null,null,999746,"return_array_999746"]
[null,null,null,999747,"return_array_999747"]
[null,null,null,999748,"return_array_999748"]
[null,null,null,999749,"return_array_999749"]
[null,null,null,999750,"return_array_999750"]
[null,null,null,999751,"return_array_999751"]
[null,null,null,999752,"return_array_999752"]
[null,null,null,999753,"return_array_999753"]
[null,null,null,999754,"return_array_999754"]
[null,null,null,999755,"return_array_999755"]
[null,null,null,999756,"return_array_999756"]
[null,null,null,999757,"return_array_999757"]
[null,null,null,999758,"return_array_999758"]
[null,null,null,999759,"return_array_999759"]
[null,null,null,999760,"return_array_999760"]
[null,null,null,999761,"return_array_999761"]
[null,null,null,999762,"return_array_999762"]
[null,null,null,999763,"return_array_999763"]
[null,null,null,999764,"return_array_999764"]
[null,null,null,999765,"return_array_999765"]
[null,null,null,999766,"return_array_999766"]
[null,null,null,999767,"return_array_999767"]
[null,null,null,999768,"return_array_999768"]
[null,null,null,999769,"return_array_999769"]
[null,null,null,999770,"return_array_999770"]
[null,null,null,999771,"return_array_999771"]
[null,null,null,999772,"return_array_999772"]
[null,null,null,999773,"return_array_999773"]
[null,null,null,999774,"return_array_999774"]
[null,null,null,999775,"return_array_999775"]
[null,null,null,999776,"return_array_999776"]
[null,null,null,999777,"return_array_999777"]
[null,null,null,999778,"return_array_999778"]
[null,null,null,999779,"return_array_999779"]
[null,null,null,999780,"return_array_999780"]
[null,null,null,999781,"return_array_999781"]
[null,null,null,999782,"return_array_999782"]
[null,null,null,999783,"return_array_999783"]
[null,null,null,999784,"return_array_999784"]
[null,null,null,999785,"return_array_999785"]
[null,null,null,999786,"return_array_999786"]
[null,null,null,999787,"return_array_999787"]
[null,null,null,999788,"return_array_999788"]
[null,null,null,999789,"return_array_999789"]
[null,null,null,999790,"return_array_999790"]
[null,null,null,999791,"return_array_999791"]
[null,null,null,999792,"return_array_999792"]
[null,null,null,999793,"return_array_999793"]
[null,null,null,999794,"return_array_999794"]
[null,null,null,999795,"return_array_999795"]
[null,null,null,999796,"return_array_999796"]
[null,null,null,999797,"return_array_999797"]
[null,null,null,999798,"return_array_999798"]
[null,null,null,999799,"return_array_999799"]
[null,null,null,999800,"return_array_999800"]
[null,null,null,999801,"return_array_999801"]
[null,null,null,999802,"return_array_999802"]
[null,null,null,999803,"return_array_999803"]
[null,null,null,999804,"return_array_999804"]
[null,null,null,999805,"return_array_999805"]
[null,null,null,999806,"return_array_999806"]
[null,null,null,999807,"return_array_999807"]
[null,null,null,999808,"return_array_999808"]
[null,null,null,999809,"return_array_999809"]
[null,null,null,999810,"return_array_999810"]
[null,null,null,999811,"return_array_999811"]
[null,null,null,999812,"return_array_999812"]
[null,null,null,999813,"return_array_999813"]
[null,null,null,999814,"return_array_999814"]
[null,null,null,999815,"return_array_999815"]
[null,null,null,999816,"return_array_999816"]
[null,null,null,999817,"return_array_999817"]
[null,null,null,999818,"return_array_999818"]
[null,null,null,999819,"return_array_999819"]
[null,null,null,999820,"return_array_999820"]
[null,null,null,999821,"return_array_999821"]
[null,null,null,999822,"return_array_999822"]
[null,null,null,999823,"return_array_999823"]
[null,null,null,999824,"return_array_999824"]
[null,null,null,999825,"return_array_999825"]
[null,null,null,999826,"return_array_999826"]
[null,null,null,999827,"return_array_999827"]
[null,null,null,999828,"return_array_999828"]
[null,null,null,999829,"return_array_999829"]
[null,null,null,999830,"return_array_999830"]
[null,null,null,999831,"return_array_999831"]
[null,null,null,999832,"return_array_999832"]
[null,null,null,999833,"return_array_999833"]
[null,null,null,999834,"return_array_999834"]
[null,null,null,999835,"return_array_999835"]
[null,null,null,999836,"return_array_999836"]
[null,null,null,999837,"return_array_999837"]
[null,null,null,999838,"return_array_999838"]
[null,null,null,999839,"return_array_999839"]
[null,null,null,999840,"return_array_999840"]
[null,null,null,999841,"return_array_999841"]
[null,null,null,999842,"return_array_999842"]
[null,null,null,999843,"return_array_999843"]
[null,null,null,999844,"return_array_999844"]
[null,null,null,999845,"return_array_999845"]
[null,null,null,999846,"return_array_999846"]
[null,null,null,999847,"return_array_999847"]
[null,null,null,999848,"return_array_999848"]
[null,null,null,999849,"return_array_999849"]
[null,null,null,999850,"return_array_999850"]
[null,null,null,999851,"return_array_999851"]
[null,null,null,999852,"return_array_999852"]
[null,null,null,999853,"return_array_999853"]
[null,null,null,999854,"return_array_999854"]
[null,null,null,999855,"return_array_999855"]
[null,null,null,999856,"return_array_999856"]
[null,null,null,999857,"return_array_999857"]
[null,null,null,999858,"return_array_999858"]
[null,null,null,999859,"return_array_999859"]
[null,null,null,999860,"return_array_999860"]
[null,null,null,999861,"return_array_999861"]
[null,null,null,999862,"return_array_999862"]
[null,null,null,999863,"return_array_999863"]
[null,null,null,999864,"return_array_999864"]
[null,null,null,999865,"return_array_999865"]
[null,null,null,999866,"return_array_999866"]
[null,null,null,999867,"return_array_999867"]
[null,null,null,999868,"return_array_999868"]
[null,null,null,999869,"return_array_999869"]
[null,null,null,999870,"return_array_999870"]
[null,null,null,999871,"return_array_999871"]
[null,null,null,999872,"return_array_999872"]
[null,null,null,999873,"return_array_999873"]
[null,null,null,999874,"return_array_999874"]
[null,null,null,999875,"return_array_999875"]
[null,null,null,999876,"return_array_999876"]
[null,null,null,999877,"return_array_999877"]
[null,null,null,999878,"return_array_999878"]
[null,null,null,999879,"return_array_999879"]
[null,null,null,999880,"return_array_999880"]
[null,null,null,999881,"return_array_999881"]
[null,null,null,999882,"return_array_999882"]
[null,null,null,999883,"return_array_999883"]
[null,null,null,999884,"return_array_999884"]
[null,null,null,999885,"return_array_999885"]
[null,null,null,999886,"return_array_999886"]
[null,null,null,999887,"return_array_999887"]
[null,null,null,999888,"return_array_999888"]
[null,null,null,999889,"return_array_999889"]
[null,null,null,999890,"return_array_999890"]
[null,null,null,999891,"return_array_999891"]
[null,null,null,999892,"return_array_999892"]
[null,null,null,999893,"return_array_999893"]
[null,null,null,999894,"return_array_999894"]
[null,null,null,999895,"return_array_999895"]
[null,null,null,999896,"return_array_999896"]
[null,null,null,999897,"return_array_999897"]
[null,null,null,999898,"return_array_999898"]
[null,null,null,999899,"return_array_999899"]
[null,null,null,999900,"return_array_999900"]
[null,null,null,999901,"return_array_999901"]
[null,null,null,999902,"return_array_999902"]
[null,null,null,999903,"return_array_999903"]
[null,null,null,999904,"return_array_999904"]
[null,null,null,999905,"return_array_999905"]
[null,null,null,999906,"return_array_999906"]
[null,null,null,999907,"return_array_999907"]
[null,null,null,999908,"return_array_999908"]
[null,null,null,999909,"return_array_999909"]
[null,null,null,999910,"return_array_999910"]
[null,null,null,999911,"return_array_999911"]
[null,null,null,999912,"return_array_999912"]
[null,null,null,999913,"return_array_999913"]
[null,null,null,999914,"return_array_999914"]
[null,null,null,999915,"return_array_999915"]
[null,null,null,999916,"return_array_999916"]
[null,null,null,999917,"return_array_999917"]
[null,null,null,999918,"return_array_999918"]
[null,null,null,999919,"return_array_999919"]
[null,null,null,999920,"return_array_999920"]
[null,null,null,999921,"return_array_999921"]
[null,null,null,999922,"return_array_999922"]
[null,null,null,999923,"return_array_999923"]
[null,null,null,999924,"return_array_999924"]
[null,null,null,999925,"return_array_999925"]
[null,null,null,999926,"return_array_999926"]
[null,null,null,999927,"return_array_999927"]
[null,null,null,999928,"return_array_999928"]
[null,null,null,999929,"return_array_999929"]
[null,null,null,999930,"return_array_999930"]
[null,null,null,999931,"return_array_999931"]
[null,null,null,999932,"return_array_999932"]
[null,null,null,999933,"return_array_999933"]
[null,null,null,999934,"return_array_999934"]
[null,null,null,999935,"return_array_999935"]
[null,null,null,999936,"return_array_999936"]
[null,null,null,999937,"return_array_999937"]
[null,null,null,999938,"return_array_999938"]
[null,null,null,999939,"return_array_999939"]
[null,null,null,999940,"return_array_999940"]
[null,null,null,999941,"return_array_999941"]
[null,null,null,999942,"return_array_999942"]
[null,null,null,999943,"return_array_999943"]
[null,null,null,999944,"return_array_999944"]
[null,null,null,999945,"return_array_999945"]
[null,null,null,999946,"return_array_999946"]
[null,null,null,999947,"return_array_999947"]
[null,null,null,999948,"return_array_999948"]
[null,null,null,999949,"return_array_999949"]
[null,null,null,999950,"return_array_999950"]
[null,null,null,999951,"return_array_999951"]
[null,null,null,999952,"return_array_999952"]
[null,null,null,999953,"return_array_999953"]
[null,null,null,999954,"return_array_999954"]
[null,null,null,999955,"return_array_999955"]
[null,null,null,999956,"return_array_999956"]
[null,null,null,999957,"return_array_999957"]
[null,null,null,999958,"return_array_999958"]
[null,null,null,999959,"return_array_999959"]
[null,null,null,999960,"return_array_999960"]
[null,null,null,999961,"return_array_999961"]
[null,null,null,999962,"return_array_999962"]
[null,null,null,999963,"return_array_999963"]
[null,null,null,999964,"return_array_999964"]
[null,null,null,999965,"return_array_999965"]
[null,null,null,999966,"return_array_999966"]
[null,null,null,999967,"return_array_999967"]
[null,null,null,999968,"return_array_999968"]
[null,null,null,999969,"return_array_999969"]
[null,null,null,999970,"return_array_999970"]
[null,null,null,999971,"return_array_999971"]
[null,null,null,999972,"return_array_999972"]
[null,null,null,999973,"return_array_999973"]
[null,null,null,999974,"return_array_999974"]
[null,null,null,999975,"return_array_999975"]
[null,null,null,999976,"return_array_999976"]
[null,null,null,999977,"return_array_999977"]
[null,null,null,999978,"return_array_999978"]
[null,null,null,999979,"return_array_999979"]
[null,null,null,999980,"return_array_999980"]
[null,null,null,999981,"return_array_999981"]
[null,null,null,999982,"return_array_999982"]
[null,null,null,999983,"return_array_999983"]
[null,null,null,999984,"return_array_999984"]
[null,null,null,999985,"return_array_999985"]
[null,null,null,999986,"return_array_999986"]
[null,null,null,999987,"return_array_999987"]
[null,null,null,999988,"return_array_999988"]
[null,null,null,999989,"return_array_999989"]
[null,null,null,999990,"return_array_999990"]
[null,null,null,999991,"return_array_999991"]
[null,null,null,999992,"return_array_999992"]
[null,null,null,999993,"return_array_999993"]
[null,null,null,999994,"return_array_999994"]
[null,null,null,999995,"return_array_999995"]
[null,null,null,999996,"return_array_999996"]
[null,null,null,999997,"return_array_999997"]
[null,null,null,999998,"return_array_999998"]
[null,null,null,999999,"return_array_999999"]
[null,null,null,1000000,"return_array_1000000"]

{"sheet":"(2402 dynChart","index":3,"n_rows":14,"n_cols":3,"rows_kept":14,"cut":false,"hidden":false,"merged":[]}
[{"$f":"_xlfn.SEQUENCE(5,3)","v":1},2,3]
[4,5,6]
[7,8,9]
[10,11,12]
[13,14,15]
[]
[]
[]
[]
[]
[]
[]
["Ej 2021 Pro"]
["I viss mån 2402…"]

{"sheet":"2312 cosmetic","index":4,"n_rows":15,"n_cols":11,"rows_kept":15,"cut":false,"hidden":false,"merged":[]}
["Office has a new default theme:"]
["https://learn.microsoft.com/en-us/officeupdates/current-channel"]
[]
[{"$f":"_xlfn.LET(_xlpm.input_1,355,\n             _xlpm.input_2,113,\n_xlpm.output,_xlpm.input_1/_xlpm.input_2,\n_xlpm.output\n)","v":3.1415929203539825},null,{"$f":"_xlfn.FORMULATEXT(A4)","v":"=LET(input_1;355;\n             input_2;113;\noutput;input_1/input_2;\noutput\n)"}]
[null,null,"rpt(\" \";13)"]
[]
[null,null,null,null,null,"Prata-Excel-med-oss-17.xlsx"]
[null,null,null,null,null,"Projekt","Text","Timmar","Bil","slut km","km"]
[null,null,null,null,null,"Alpha","Modellbygge",2,"BIL 001",575,15]
[null,null,null,null,null,"Bravo","Leverans",1,"BIL 001",590,50]
[null,null,null,null,null,"Bravo","Train the Trainor",4,"BIL 002",1500,1515]
[null,null,null,null,null,"Alpha","Utbildning",2,"BIL 001",600]
[null,null,null,null,null,"Bravo","Leverans"]
[]
[null,null,null,null,null,"Prata-Excel-med-oss-04.xlsx"]

{"sheet":"2309 autoConv","index":5,"n_rows":6,"n_cols":1,"rows_kept":6,"cut":false,"hidden":false,"merged":[]}
["Automatic Data Conversion possible to disable"]
["https://insider.microsoft365.com/en-us/blog/control-data-conversions-in-excel"]
[]
["Version 2309 (Build 16827.20130)"]
[]
["Version 2402"]

{"sheet":"1903 pict2data","index":6,"n_rows":6,"n_cols":1,"rows_kept":6,"cut":false,"hidden":false,"merged":[]}
["Data from Picture"]
[]
["1903 (must have Microsoft Edge WebView2 Runtime installed)"]
[]
[]
["Screen capture a table from a website   If you’ve ever tried to copy and paste some data from a web site, you’ve likely noticed that the formatting looks different after you’ve pasted it than it did on the website. Instead, try to capture a screen clipping of the table (by pressing Windows log key + Shift + S), then select Data > From Picture > Picture From Clipboard. Then, follow the instructions on screen."]

{"sheet":"abouts","index":7,"n_rows":45,"n_cols":1,"rows_kept":45,"cut":false,"hidden":false,"merged":[]}
["Abouts"]
[]
["365 /2402"]
[]
[]
[]
[]
[]
[]
[]
[]
[]
[]
[]
[]
[]
[]
[]
[]
[]
[]
[]
[]
["2021 Pro +"]
[]
[]
[]
[]
[]
[]
[]
[]
[]
[]
[]
[]
[]
[]
[]
[]
[]
[]
[]
[]
["2019 Pro +"]